Workbook

Sheet Cover
A1: Cover
A3: Workbook title: | B3: Cost sharing & total costs reconciliation
A4: Version: | B4: 4f
A5: Model code: | B5: PR24PD14
A6: Filename: | B6: Cost-sharing-&-total-costs-Reconcilation-v4f
A7: Date: | B7: October 2025
A8: Author: | B8: Ofwat
A9: Author contact information: | B9: PR24@ofwat.gov.uk
A12: Summary of workbook: | B12: The cost sharing reconciliation model calculates any adjustment for underperformance or outperformance against forecast totex at the PR19 final determinations.
B13: Separate adjustments are made for wage growth, net totex and business rates and abstraction charges.
B14: The price base of the model is 2017-18 FYA CPIH with time value of money adjustments to 2024-25 present values using
B15: the FD wholesale WACC deflated for long-term CPIH.
A17: Known limitations: | B17: This model is subject to consultation and consequently may be subject to further changes.
A19: Instructions: | B19: na
A21: Disclaimer: | B21: This model is part of the Blind Year Reconciliation for 2024-25.
B22: For further information see the Blind Year decision documentation for 2024-25 and the PR24 final determinations setting out the price, service, and incentive package for water companies for the period 2025-30.
A24: Amendments: | B24: Below are details of changes to the model from the version 4a published Mar 23. The changes fix issues that have been identified and implements a change to include a bonus adjustment in the reconciliation calculations.
B26: Category | C26: Sheet(s) in current model | D26: Description of change(s) made | E26: Model link(s)
B27: Policy Implementation | C27: InpActive, Cost sharing calculations, Bioresources, Thames Tideway Tunnel | D27: The model has been amended to adjust the reconciliation adjustments for performance related pay recovery adjustments where they are not appropriate. A new input has been added which is removed from the final adjustments for each control. For applicable controls this adjustment is also removed from baseline allowances and actual totex spends when calculation cost sharing adjustments. | E27: =InpActive!$E$44 -> Performance related pay recovery mechanism adjustment - WR - Nominal (Neg)
E28: ='Cost sharing calculations'!$E$96 -> Actual net totex for cost sharing reconciliation - WR - Real
E29: ='Cost sharing calculations'!$E$101 -> Total Performance related pay recovery mechanism adjustment - WR - real
E30: ='Cost sharing calculations'!$E$106 -> Actual net totex for cost sharing reconciliation - WR - Real
E31: ='Cost sharing calculations'!$E$127 -> Net totex available for cost sharing after adjustments profiled - WR - Real
E32: ='Cost sharing calculations'!$E$181 -> Total adjustment for cost sharing after ex ante allowance & wage adjustment - WR - Real
B33: Refinement | C33: Abstraction & Rates | D33: Model previously linked to business rates row, this has been amended to link to the abstraction charges line | E33: ='Abstraction & Rates'!$F$48 -> 64.6489986
B34: Refinement | C34: Abstraction & Rates | D34: Calculation has been amended to remove fixed reference linking to the business rate lines | E34: ='Abstraction & Rates'!$F$70 -> 0
E35: ='Abstraction & Rates'!$F$74 -> 20.29916652
B36: Refinement | C36: Cost sharing calculations | D36: Calculation has been amended to calculate customer share instead of the company share | E36: ='Cost sharing calculations'!$F$355 -> 0
E37: ='Cost sharing calculations'!$F$529 -> 0
B38: Refinement | C38: Cost sharing calculations, Bioresources | D38: Updated formulas to link to actuals instead of allowances | E38: ='Cost sharing calculations'!$E$501 -> Actuals for CMA excluded items - WWN - nominal
E39: =Bioresources!$E$67 -> Actuals for CMA excluded items - BIO - nominal
B40: Refinement | C40: Cost sharing calculations, Bioresources | D40: Updated formulas to link to allowances instead of actuals | E40: ='Cost sharing calculations'!$E$505 -> Allowance for CMA excluded items - WWN - real
E41: =Bioresources!$E$71 -> Allowance for CMA excluded items - BIO - real
B42: Refinement | C42: Bioresources | D42: Original formula referred to blank row, this has amended to look at rows above. | E42: =Bioresources!$F$91 -> -1.3699581
E43: =Bioresources!$F$95 -> -2.188374627
B44: Refinement | C44: Cost sharing calculations, Bioresources | D44: Line originally referred to total variance for the AMP, this has been updated to look up to the annual basis. | E44: =Bioresources!$E$75 -> Variance to allowances for CMA excluded items - BIO
E45: ='Cost sharing calculations'!$E$509 -> Variance to allowances for CMA excluded items - WWN
B46: Refinement | C46: Bioresources | D46: Updated formula in cell F95 to read calculate RCV adjustment on total adjustment * (1 - PAYG rate) | E46: =Bioresources!$F$95 -> -2.188374627
A48: References: | B48: Totex allowances made in the final determinations
B49: PAYG rates from the final determinations
B50: OBR Forecast wage growth from the final determinations
B51: WACC from the final determinations
B52: Cost sharing rates and ex ante allowances from Final determinations
B53: ASHE Gross Hourly Wage index
B54: Actual CPIH index published by the ONS
A56: Error Checks: | B56: Total error check status
B57: =Check!$F$8 -> 0
A60: END OF SHEET

Sheet Documentation-->

Sheet Style Guide
A1: =RIGHT(CELL("filename", $A$1), LEN(CELL("filename", $A$1)) - SEARCH("]", CELL("filename", $A$1))) -> 
A3: SHEET TABS
H5: Light Yellow | J5: Input sheets
H7: No colour (default Excel tab colour) | J7: Calculation and documentation sheets
H9: Pale Blue | J9: Key output sheets
H11: Turquoise | J11: Quality control sheets
H13: Yellow | J13: To be completed, temporary, restructured, or deleted
A16: COLOUR
B18: Font colour only
H19: Blue font | J19: Imported from another sheet
H21: Red font | J21: Exported to another sheet (except from Input sheets)
H23: Black font | J23: Within sheet link or calculation
B25: Font + shade combinations
H26: Black font + Light Yellow shade | J26: Inputs
H28: Black font + Light Yellow shade with grey stripe | J28: Inputs that are not expected to be changed
H30: Black font + Light Grey shade on entire row | J30: Within-worksheet counter-flow
H32: Blue font + Light Grey shade on entire row | J32: Between-worksheet counter-flow
H34: Empty Cell with Light Grey shade | J34: Empty cells being deliberately referenced
B36: Other
H37: Black font + Pale Blue shade on entire row | J37: Section separator
H39: Light Turquoise shade | J39: Stored/dead/hard coded outputs
H41: Tan shade | J41: Pre-model time line actuals
H43: Yellow shade | J43: Work in progress / temporary
H45: Lime shade | J45: Values or logic to be reviewed
B47: Error checks
H48: Green shade | J48: OK
H50: Red shade | J50: Error
A52: End of sheet

Sheet ToC
A1: =RIGHT(CELL("filename", $A$1), LEN(CELL("filename", $A$1)) - SEARCH("]", CELL("filename", $A$1))) -> 
B3: ASSUMPTIONS | D3: INPUTS | F3: CALCULATIONS | H3: OUTPUTS | J3: Quality Control
B5: =Cover!A1 -> Cover | D5: =InpActive!A1 ->  | F5: =Index!A1 ->  | H5: =Outputs!A1 ->  | J5: =Check!A1 -> 
B6: Model documentation sheet | D6: Inputs sheet | F6: All the indexation related calculations are done in this sheet. | H6: Main output sheet showing total cost sharing adjustments | J6: Contains all the model integrity checks and alerts
B8: ='Style Guide'!A1 ->  | F8: =Time!A1 -> 
B9: Explanation of different formatting types | F9: The model timeline and flag calculations are done in this sheet.
B11: =A1 ->  | F11: ='Cost sharing calculations'!A1 -> 
B12: Table of contents | F12: Calculates the cost sharing adjustments to be made at PR24
F14: Abstraction & Rates
F15: Calculates the sharing adjustments for business rates and abstraction charges to be made at PR24
F17: =Bioresources!$A$1 -> 
F18: Calculates the totex reconciliation adjustments for bioresources to be made at PR24
F20: Thames Tideway Tunnel
F21: Calculates the sharing adjustments for Thames Tideway Tunnel to be made PR24
F23: Green recovery
F24: Calculates the cost sharing adjustments for green recovery to be made at PR24
A26: End of sheet

Sheet Inputs-->

Sheet F_Inputs-APR & PR19
C1: APR/PR19 cost rec inputs | E1: Run on 23 Jul 2025 9:55
A2: Acronym | B2: Reference | C2: Item description | D2: Unit | E2: Model | F2: Cyclical | L2: Price Review 2019
F4: Default for Cyclical base run | L4: Default for Price Review 2019 base run
F5: Latest | L5: Latest
F6: 2020-21 | G6: 2021-22 | H6: 2022-23 | I6: 2023-24 | J6: 2024-25 | K6: 2020-25 | L6: 2020-21 | M6: 2021-22 | N6: 2022-23 | O6: 2023-24 | P6: 2024-25 | Q6: 2020-25
A7: ANH | B7: B0143TAWR | C7: Totex (net of business rates, abstraction licence fees and grants and contributions) - Total actual totex (net of business rates, abstraction licence fees and grants and contributions) - 12 months ended 31 March 2021 - Water resources | D7: £m | E7: Cyclical Foundation | F7: 33.33 | G7: 36.60945457 | H7: 37.3264327 | I7: 51.903507 | J7: 55.50542692
A8: ANH | B8: B0143TAWNP | C8: Totex (net of business rates, abstraction licence fees and grants and contributions) - Total actual totex (net of business rates, abstraction licence fees and grants and contributions) - 12 months ended 31 March 2021 - Water network plus | D8: £m | E8: Cyclical Foundation | F8: 344.248 | G8: 398.6768109 | H8: 507.066001 | I8: 722.4887507 | J8: 636.3593965
A9: ANH | B9: B0143TAWWNP | C9: Totex (net of business rates, abstraction licence fees and grants and contributions) - Total actual totex (net of business rates, abstraction licence fees and grants and contributions) - 12 months ended 31 March 2021 - Wastewater network plus | D9: £m | E9: Cyclical Foundation | F9: 403.058 | G9: 442.1774836 | H9: 510.3141223 | I9: 570.1719693 | J9: 689.8250911
A10: ANH | B10: B0143TATTTH | C10: Totex (net of business rates, abstraction licence fees and grants and contributions) - Total actual totex (net of business rates, abstraction licence fees and grants and contributions) - 12 months ended 31 March 2021 - Thames Tideway/ Havant Thicket | D10: £m | E10: Cyclical Foundation | F10: 0 | G10: 0 | H10: 0 | I10: 0 | J10: 0
A11: ANH | B11: B0413TGTE_WR | C11: Total green recovery programme expenditure - Totex - Expenditure in report year - Water resources | D11: £m | E11: Cyclical Foundation | G11: 0 | H11: 0 | I11: 0 | J11: 0
A12: ANH | B12: B0420TGTE_RW | C12: Total green recovery programme expenditure - Totex - Expenditure in report year - Water network+ Raw water transport | D12: £m | E12: Cyclical Foundation | G12: 0 | H12: 0 | I12: 0 | J12: 0
A13: ANH | B13: B0427TGTE_SW | C13: Total green recovery programme expenditure - Totex - Expenditure in report year - Water network+ Raw water storage | D13: £m | E13: Cyclical Foundation | G13: 0 | H13: 0 | I13: 0 | J13: 0
A14: ANH | B14: B0434TGTE_TW | C14: Total green recovery programme expenditure - Totex - Expenditure in report year - Water network+ Water treatment | D14: £m | E14: Cyclical Foundation | G14: 0 | H14: 0 | I14: 0 | J14: 0
A15: ANH | B15: B0441TGTE_DW | C15: Total green recovery programme expenditure - Totex - Expenditure in report year - Water network+ Treated water distribution | D15: £m | E15: Cyclical Foundation | G15: 0 | H15: 0 | I15: 0 | J15: 0
A16: ANH | B16: B0513TGTE_FOW | C16: Total green recovery programme expenditure - Totex - Expenditure in report year - Wastewater network+ Foul | D16: £m | E16: Cyclical Foundation | G16: 0 | H16: 0 | I16: 0 | J16: 0
A17: ANH | B17: B0520TGTE_SUW | C17: Total green recovery programme expenditure - Totex - Expenditure in report year - Wastewater network+ Surface water drainage | D17: £m | E17: Cyclical Foundation | G17: 0 | H17: 0 | I17: 0 | J17: 0
A18: ANH | B18: B0527TGTE_HDW | C18: Total green recovery programme expenditure - Totex - Expenditure in report year - Wastewater network+ Highway drainage | D18: £m | E18: Cyclical Foundation | G18: 0 | H18: 0 | I18: 0 | J18: 0
A19: ANH | B19: B0534TGTE_STW | C19: Total green recovery programme expenditure - Totex - Expenditure in report year - Wastewater network+ Sewage treatment and disposal | D19: £m | E19: Cyclical Foundation | G19: 0 | H19: 0 | I19: 0 | J19: 0
A20: ANH | B20: B0541TGTE_SLW | C20: Total green recovery programme expenditure - Totex - Expenditure in report year - Wastewater network+ Sludge liquor treatment | D20: £m | E20: Cyclical Foundation | G20: 0 | H20: 0 | I20: 0 | J20: 0
A21: ANH | B21: WS01008WR | C21: Operating expenditure - Local authority and Cumulo rates - Water resources | D21: £m | E21: Cyclical Foundation | F21: 2.545 | G21: 2.886939877 | H21: 2.376 | I21: 2.583494 | J21: 2.584576393
A22: ANH | B22: BM317WN | C22: Local authority and Cumulo rates - Water Network+ | D22: £m | E22: Cyclical Foundation | F22: 37.585 | G22: 37.852372 | H22: 30.828 | I22: 34.080403 | J22: 37.03639359
A23: ANH | B23: BM817WNK | C23: Local authority and Cumulo rates - Wastewater Network+ | D23: £m | E23: Cyclical Foundation | F23: 21.362 | G23: 19.9665633 | H23: 20.75397836 | I23: 25.163563 | J23: 29.25960518
A24: ANH | B24: BM817SG | C24: Local authority and Cumulo rates - Sludge | D24: £m | E24: Cyclical Foundation | F24: 3.287 | G24: 3.12346506 | H24: 3.21163789 | I24: 3.870731 | J24: 4.668930049
A25: ANH | B25: BM817TTT | C25: Local authority rates - TTT | D25: £m | E25: Cyclical Foundation | G25: 0 | I25: 0
A26: ANH | B26: C_TBC_WR_PR19CA004_OFWAT | C26: Total base costs exclude enhancemnt opex - Water resources - OFWAT view | D26: £m | E26: Price Review 2019 | Q26: 194.6660001
A27: ANH | B27: C_TBC_WN_PR19CA004_OFWAT | C27: Total base costs exclude enhancemnt opex - Water network plus - OFWAT view | D27: £m | E27: Price Review 2019 | Q27: 1361.701245
A28: ANH | B28: C_TBC_WBR_PR19CA008_OFWAT | C28: Total base costs - Bioresources - OFWAT view | D28: £m | E28: Price Review 2019 | Q28: 383.3802375
A29: ANH | B29: C_TBC_WWN_PR19CA008_OFWAT | C29: Total base costs - Wastewater network plus - OFWAT view | D29: £m | E29: Price Review 2019 | Q29: 1785.812407
A30: ANH | B30: C_UBC_WR_PR19CA004_OFWAT | C30: Unmodelled base costs (Local authority and cumulo rates ) - Water resources - OFWAT view | D30: £m | E30: Price Review 2019 | Q30: 15.01787928
A31: ANH | B31: C_UBC_WN_PR19CA004_OFWAT | C31: Unmodelled base costs (Local authority and cumulo rates ) - Water network plus - OFWAT view | D31: £m | E31: Price Review 2019 | Q31: 173.7364231
A32: ANH | B32: C_UBC_WBR_PR19CA008_OFWAT | C32: Base costs - Unmodelled base costs (Local authority and cumulo rates ) - Bioresources - OFWAT view | D32: £m | E32: Price Review 2019 | Q32: 14.05712194
A33: ANH | B33: C_UBC_WWN_PR19CA008_OFWAT | C33: Base costs - Unmodelled base costs (Local authority and cumulo rates ) - Wastewater network plus - OFWAT view | D33: £m | E33: Price Review 2019 | Q33: 100.3146114
A34: ANH | B34: WS1003_WW4_WR | C34: Unmodelled base costs (Abstraction charges / discharge consent) WR | D34: £m | E34: Price Review 2019 | Q34: 46.10967993
A35: ANH | B35: WS1003_WW4_WN | C35: Unmodelled base costs (Abstraction charges / discharge consent) WN | D35: £m | E35: Price Review 2019 | Q35: 2.274785784
A36: ANH | B36: C_WWN_OUTPERFORM_001 | C36: Cost sharing rate for outperform | D36: % | E36: Price Review 2019 | Q36: 0.3496275683
A37: ANH | B37: C_WWN_UNDERPERFORM_001 | C37: Cost sharing rate for underperform | D37: % | E37: Price Review 2019 | Q37: 0.6503724317
A38: ANH | B38: B0012WR | C38: Abstraction charges/ discharge consents - Water resources | D38: £m | E38: Cyclical Foundation | F38: 9.869 | G38: 10.10863124 | H38: 10.09556575 | I38: 9.145774 | J38: 9.575
A39: ANH | B39: B0012WN | C39: Abstraction charges/ discharge consents - Water Network+ | D39: £m | E39: Cyclical Foundation | F39: 0.507 | G39: 0.488752 | H39: 0.48298692 | I39: 0.483013 | J39: 0.825
A40: ANH | B40: C_WR_CS_EXANTE_001 | C40: Ex-ante allowance above Ofwat forecast - Active - Water Resources | D40: £m | E40: Price Review 2019 | Q40: 0
A41: ANH | B41: C_WN_CS_EXANTE_001 | C41: Ex-ante allowance above Ofwat forecast - Active - Water Network | D41: £m | E41: Price Review 2019 | Q41: 0
A42: ANH | B42: C_WWN_CS_EXANTE_001 | C42: Ex-ante allowance above Ofwat forecast - Active - Wastewater Network | D42: £m | E42: Price Review 2019 | Q42: 0
A43: ANH | B43: C_WR_WN_OUTPERFORM_001 | C43: Cost sharing rate for outperform | D43: % | E43: Price Review 2019 | Q43: 0.3189391196
A44: ANH | B44: C_WR_WN_UNDERPERFORM_001 | C44: Cost sharing rate for underperform | D44: % | E44: Price Review 2019 | Q44: 0.6810608804
A45: WSH | B45: B0143TAWR | C45: Totex (net of business rates, abstraction licence fees and grants and contributions) - Total actual totex (net of business rates, abstraction licence fees and grants and contributions) - 12 months ended 31 March 2021 - Water resources | D45: £m | E45: Cyclical Foundation | F45: 52.355 | G45: 38.0685 | H45: 50.47 | I45: 27.78 | J45: 21.792
A46: WSH | B46: B0143TAWNP | C46: Totex (net of business rates, abstraction licence fees and grants and contributions) - Total actual totex (net of business rates, abstraction licence fees and grants and contributions) - 12 months ended 31 March 2021 - Water network plus | D46: £m | E46: Cyclical Foundation | F46: 234.892 | G46: 237.884196 | H46: 283.687 | I46: 339.957 | J46: 412.191
A47: WSH | B47: B0143TAWWNP | C47: Totex (net of business rates, abstraction licence fees and grants and contributions) - Total actual totex (net of business rates, abstraction licence fees and grants and contributions) - 12 months ended 31 March 2021 - Wastewater network plus | D47: £m | E47: Cyclical Foundation | F47: 261.916 | G47: 236.082 | H47: 266.781 | I47: 308.423 | J47: 370.596
A48: WSH | B48: B0143TATTTH | C48: Totex (net of business rates, abstraction licence fees and grants and contributions) - Total actual totex (net of business rates, abstraction licence fees and grants and contributions) - 12 months ended 31 March 2021 - Thames Tideway/ Havant Thicket | D48: £m | E48: Cyclical Foundation | F48: 0 | G48: 0 | H48: 0 | I48: 0 | J48: 0
A49: WSH | B49: B0413TGTE_WR | C49: Total green recovery programme expenditure - Totex - Expenditure in report year - Water resources | D49: £m | E49: Cyclical Foundation | G49: 0 | H49: 0 | I49: 0 | J49: 0
A50: WSH | B50: B0420TGTE_RW | C50: Total green recovery programme expenditure - Totex - Expenditure in report year - Water network+ Raw water transport | D50: £m | E50: Cyclical Foundation | G50: 0 | H50: 0 | I50: 0 | J50: 0
A51: WSH | B51: B0427TGTE_SW | C51: Total green recovery programme expenditure - Totex - Expenditure in report year - Water network+ Raw water storage | D51: £m | E51: Cyclical Foundation | G51: 0 | H51: 0 | I51: 0 | J51: 0
A52: WSH | B52: B0434TGTE_TW | C52: Total green recovery programme expenditure - Totex - Expenditure in report year - Water network+ Water treatment | D52: £m | E52: Cyclical Foundation | G52: 0 | H52: 0 | I52: 0 | J52: 0
A53: WSH | B53: B0441TGTE_DW | C53: Total green recovery programme expenditure - Totex - Expenditure in report year - Water network+ Treated water distribution | D53: £m | E53: Cyclical Foundation | G53: 0 | H53: 0 | I53: 0 | J53: 0
A54: WSH | B54: B0513TGTE_FOW | C54: Total green recovery programme expenditure - Totex - Expenditure in report year - Wastewater network+ Foul | D54: £m | E54: Cyclical Foundation | G54: 0 | H54: 0 | I54: 0 | J54: 0
A55: WSH | B55: B0520TGTE_SUW | C55: Total green recovery programme expenditure - Totex - Expenditure in report year - Wastewater network+ Surface water drainage | D55: £m | E55: Cyclical Foundation | G55: 0 | H55: 0 | I55: 0 | J55: 0
A56: WSH | B56: B0527TGTE_HDW | C56: Total green recovery programme expenditure - Totex - Expenditure in report year - Wastewater network+ Highway drainage | D56: £m | E56: Cyclical Foundation | G56: 0 | H56: 0 | I56: 0 | J56: 0
A57: WSH | B57: B0534TGTE_STW | C57: Total green recovery programme expenditure - Totex - Expenditure in report year - Wastewater network+ Sewage treatment and disposal | D57: £m | E57: Cyclical Foundation | G57: 0 | H57: 0 | I57: 0 | J57: 0
A58: WSH | B58: B0541TGTE_SLW | C58: Total green recovery programme expenditure - Totex - Expenditure in report year - Wastewater network+ Sludge liquor treatment | D58: £m | E58: Cyclical Foundation | G58: 0 | H58: 0 | I58: 0 | J58: 0
A59: WSH | B59: WS01008WR | C59: Operating expenditure - Local authority and Cumulo rates - Water resources | D59: £m | E59: Cyclical Foundation | F59: 0.764 | G59: 0.788 | H59: 2.232 | I59: 2.646 | J59: 2.711
A60: WSH | B60: BM317WN | C60: Local authority and Cumulo rates - Water Network+ | D60: £m | E60: Cyclical Foundation | F60: 15.228 | G60: 15.504 | H60: 13.913 | I60: 13.435 | J60: 13.975
A61: WSH | B61: BM817WNK | C61: Local authority and Cumulo rates - Wastewater Network+ | D61: £m | E61: Cyclical Foundation | F61: 8.153 | G61: 7.852 | H61: 8.291 | I61: 7.695 | J61: -0.754
A62: WSH | B62: BM817SG | C62: Local authority and Cumulo rates - Sludge | D62: £m | E62: Cyclical Foundation | F62: 0.64 | G62: 0.572 | H62: 0.64 | I62: 0.791 | J62: 0.941
A63: WSH | B63: BM817TTT | C63: Local authority rates - TTT | D63: £m | E63: Cyclical Foundation | G63: 0 | H63: 0 | I63: 0 | J63: 0
A64: WSH | B64: C_TBC_WR_PR19CA004_OFWAT | C64: Total base costs exclude enhancemnt opex - Water resources - OFWAT view | D64: £m | E64: Price Review 2019 | Q64: 159.4676905
A65: WSH | B65: C_TBC_WN_PR19CA004_OFWAT | C65: Total base costs exclude enhancemnt opex - Water network plus - OFWAT view | D65: £m | E65: Price Review 2019 | Q65: 963.4514527
A66: WSH | B66: C_TBC_WBR_PR19CA008_OFWAT | C66: Total base costs - Bioresources - OFWAT view | D66: £m | E66: Price Review 2019 | Q66: 117.5093943
A67: WSH | B67: C_TBC_WWN_PR19CA008_OFWAT | C67: Total base costs - Wastewater network plus - OFWAT view | D67: £m | E67: Price Review 2019 | Q67: 1047.898597
A68: WSH | B68: C_UBC_WR_PR19CA004_OFWAT | C68: Unmodelled base costs (Local authority and cumulo rates ) - Water resources - OFWAT view | D68: £m | E68: Price Review 2019 | Q68: 2.489537934
A69: WSH | B69: C_UBC_WN_PR19CA004_OFWAT | C69: Unmodelled base costs (Local authority and cumulo rates ) - Water network plus - OFWAT view | D69: £m | E69: Price Review 2019 | Q69: 72.02184428
A70: WSH | B70: C_UBC_WBR_PR19CA008_OFWAT | C70: Base costs - Unmodelled base costs (Local authority and cumulo rates ) - Bioresources - OFWAT view | D70: £m | E70: Price Review 2019 | Q70: 2.491575888
A71: WSH | B71: C_UBC_WWN_PR19CA008_OFWAT | C71: Base costs - Unmodelled base costs (Local authority and cumulo rates ) - Wastewater network plus - OFWAT view | D71: £m | E71: Price Review 2019 | Q71: 43.8044992
A72: WSH | B72: WS1003_WW4_WR | C72: Unmodelled base costs (Abstraction charges / discharge consent) WR | D72: £m | E72: Price Review 2019 | Q72: 39.58265052
A73: WSH | B73: WS1003_WW4_WN | C73: Unmodelled base costs (Abstraction charges / discharge consent) WN | D73: £m | E73: Price Review 2019 | Q73: 1.664895643
A74: WSH | B74: C_WWN_OUTPERFORM_001 | C74: Cost sharing rate for outperform | D74: % | E74: Price Review 2019 | Q74: 0.4150714664
A75: WSH | B75: C_WWN_UNDERPERFORM_001 | C75: Cost sharing rate for underperform | D75: % | E75: Price Review 2019 | Q75: 0.5849285336
A76: WSH | B76: B0012WR | C76: Abstraction charges/ discharge consents - Water resources | D76: £m | E76: Cyclical Foundation | F76: 9.387 | G76: 9.649 | H76: 9.662 | I76: 10.17 | J76: 10.608
A77: WSH | B77: B0012WN | C77: Abstraction charges/ discharge consents - Water Network+ | D77: £m | E77: Cyclical Foundation | F77: 0.259 | G77: 0.265 | H77: 0.24 | I77: 0.247 | J77: 0.293
A78: WSH | B78: C_WR_CS_EXANTE_001 | C78: Ex-ante allowance above Ofwat forecast - Active - Water Resources | D78: £m | E78: Price Review 2019 | Q78: 0
A79: WSH | B79: C_WN_CS_EXANTE_001 | C79: Ex-ante allowance above Ofwat forecast - Active - Water Network | D79: £m | E79: Price Review 2019 | Q79: 0
A80: WSH | B80: C_WWN_CS_EXANTE_001 | C80: Ex-ante allowance above Ofwat forecast - Active - Wastewater Network | D80: £m | E80: Price Review 2019 | Q80: 0
A81: WSH | B81: C_WR_WN_OUTPERFORM_001 | C81: Cost sharing rate for outperform | D81: % | E81: Price Review 2019 | Q81: 0.4265520002
A82: WSH | B82: C_WR_WN_UNDERPERFORM_001 | C82: Cost sharing rate for underperform | D82: % | E82: Price Review 2019 | Q82: 0.5734479998
A83: HDD | B83: B0143TAWR | C83: Totex (net of business rates, abstraction licence fees and grants and contributions) - Total actual totex (net of business rates, abstraction licence fees and grants and contributions) - 12 months ended 31 March 2021 - Water resources | D83: £m | E83: Cyclical Foundation | F83: 9.263 | G83: 3.313 | H83: 4.711251841 | I83: 2.643 | J83: 7.633
A84: HDD | B84: B0143TAWNP | C84: Totex (net of business rates, abstraction licence fees and grants and contributions) - Total actual totex (net of business rates, abstraction licence fees and grants and contributions) - 12 months ended 31 March 2021 - Water network plus | D84: £m | E84: Cyclical Foundation | F84: 22.002 | G84: 23.083 | H84: 28.86075923 | I84: 29.428 | J84: 31.045
A85: HDD | B85: B0143TAWWNP | C85: Totex (net of business rates, abstraction licence fees and grants and contributions) - Total actual totex (net of business rates, abstraction licence fees and grants and contributions) - 12 months ended 31 March 2021 - Wastewater network plus | D85: £m | E85: Cyclical Foundation | F85: 4.849 | G85: 6.257 | H85: 6.965099084 | I85: 7.094 | J85: 16.79
A86: HDD | B86: B0143TATTTH | C86: Totex (net of business rates, abstraction licence fees and grants and contributions) - Total actual totex (net of business rates, abstraction licence fees and grants and contributions) - 12 months ended 31 March 2021 - Thames Tideway/ Havant Thicket | D86: £m | E86: Cyclical Foundation | F86: 0 | G86: 0 | H86: 0 | I86: 0 | J86: 0
A87: HDD | B87: B0413TGTE_WR | C87: Total green recovery programme expenditure - Totex - Expenditure in report year - Water resources | D87: £m | E87: Cyclical Foundation | G87: 0 | H87: 0 | I87: 0 | J87: 0
A88: HDD | B88: B0420TGTE_RW | C88: Total green recovery programme expenditure - Totex - Expenditure in report year - Water network+ Raw water transport | D88: £m | E88: Cyclical Foundation | G88: 0 | H88: 0 | I88: 0 | J88: 0
A89: HDD | B89: B0427TGTE_SW | C89: Total green recovery programme expenditure - Totex - Expenditure in report year - Water network+ Raw water storage | D89: £m | E89: Cyclical Foundation | G89: 0 | H89: 0 | I89: 0 | J89: 0
A90: HDD | B90: B0434TGTE_TW | C90: Total green recovery programme expenditure - Totex - Expenditure in report year - Water network+ Water treatment | D90: £m | E90: Cyclical Foundation | G90: 0 | H90: 0 | I90: 0 | J90: 0
A91: HDD | B91: B0441TGTE_DW | C91: Total green recovery programme expenditure - Totex - Expenditure in report year - Water network+ Treated water distribution | D91: £m | E91: Cyclical Foundation | G91: 0 | H91: 0 | I91: 0 | J91: 0
A92: HDD | B92: B0513TGTE_FOW | C92: Total green recovery programme expenditure - Totex - Expenditure in report year - Wastewater network+ Foul | D92: £m | E92: Cyclical Foundation | G92: 0 | H92: 0 | I92: 0 | J92: 0
A93: HDD | B93: B0520TGTE_SUW | C93: Total green recovery programme expenditure - Totex - Expenditure in report year - Wastewater network+ Surface water drainage | D93: £m | E93: Cyclical Foundation | G93: 0 | H93: 0 | I93: 0 | J93: 0
A94: HDD | B94: B0527TGTE_HDW | C94: Total green recovery programme expenditure - Totex - Expenditure in report year - Wastewater network+ Highway drainage | D94: £m | E94: Cyclical Foundation | G94: 0 | H94: 0 | I94: 0 | J94: 0
A95: HDD | B95: B0534TGTE_STW | C95: Total green recovery programme expenditure - Totex - Expenditure in report year - Wastewater network+ Sewage treatment and disposal | D95: £m | E95: Cyclical Foundation | G95: 0 | H95: 0 | I95: 0 | J95: 0
A96: HDD | B96: B0541TGTE_SLW | C96: Total green recovery programme expenditure - Totex - Expenditure in report year - Wastewater network+ Sludge liquor treatment | D96: £m | E96: Cyclical Foundation | G96: 0 | H96: 0 | I96: 0 | J96: 0
A97: HDD | B97: WS01008WR | C97: Operating expenditure - Local authority and Cumulo rates - Water resources | D97: £m | E97: Cyclical Foundation | F97: -0.278 | G97: -0.528 | H97: 0 | I97: 0.09 | J97: 0.079
A98: HDD | B98: BM317WN | C98: Local authority and Cumulo rates - Water Network+ | D98: £m | E98: Cyclical Foundation | F98: -0.628 | G98: 1.819 | H98: 1.255239761 | I98: 0.51 | J98: 0.487
A99: HDD | B99: BM817WNK | C99: Local authority and Cumulo rates - Wastewater Network+ | D99: £m | E99: Cyclical Foundation | F99: 0.287 | G99: 0.286 | H99: 0.2645132 | I99: 0.291 | J99: 0.313
A100: HDD | B100: BM817SG | C100: Local authority and Cumulo rates - Sludge | D100: £m | E100: Cyclical Foundation | F100: 0 | G100: 0 | H100: 0.000124347 | I100: 0 | J100: 0
A101: HDD | B101: BM817TTT | C101: Local authority rates - TTT | D101: £m | E101: Cyclical Foundation | G101: 0 | H101: 0 | I101: 0 | J101: 0
A102: HDD | B102: C_TBC_WR_PR19CA004_OFWAT | C102: Total base costs exclude enhancemnt opex - Water resources - OFWAT view | D102: £m | E102: Price Review 2019 | Q102: 11.02661511
A103: HDD | B103: C_TBC_WN_PR19CA004_OFWAT | C103: Total base costs exclude enhancemnt opex - Water network plus - OFWAT view | D103: £m | E103: Price Review 2019 | Q103: 99.79320905
A104: HDD | B104: C_TBC_WBR_PR19CA008_OFWAT | C104: Total base costs - Bioresources - OFWAT view | D104: £m | E104: Price Review 2019 | Q104: 3.836412967
A105: HDD | B105: C_TBC_WWN_PR19CA008_OFWAT | C105: Total base costs - Wastewater network plus - OFWAT view | D105: £m | E105: Price Review 2019 | Q105: 21.38093309
A106: HDD | B106: C_UBC_WR_PR19CA004_OFWAT | C106: Unmodelled base costs (Local authority and cumulo rates ) - Water resources - OFWAT view | D106: £m | E106: Price Review 2019 | Q106: 0.7179473558
A107: HDD | B107: C_UBC_WN_PR19CA004_OFWAT | C107: Unmodelled base costs (Local authority and cumulo rates ) - Water network plus - OFWAT view | D107: £m | E107: Price Review 2019 | Q107: 7.044110163
A108: HDD | B108: C_UBC_WBR_PR19CA008_OFWAT | C108: Base costs - Unmodelled base costs (Local authority and cumulo rates ) - Bioresources - OFWAT view | D108: £m | E108: Price Review 2019 | Q108: 0.61938268
A109: HDD | B109: C_UBC_WWN_PR19CA008_OFWAT | C109: Base costs - Unmodelled base costs (Local authority and cumulo rates ) - Wastewater network plus - OFWAT view | D109: £m | E109: Price Review 2019 | Q109: 0.61938268
A110: HDD | B110: WS1003_WW4_WR | C110: Unmodelled base costs (Abstraction charges / discharge consent) WR | D110: £m | E110: Price Review 2019 | Q110: 2.26261144
A111: HDD | B111: WS1003_WW4_WN | C111: Unmodelled base costs (Abstraction charges / discharge consent) WN | D111: £m | E111: Price Review 2019 | Q111: 0
A112: HDD | B112: C_WWN_OUTPERFORM_001 | C112: Cost sharing rate for outperform | D112: % | E112: Price Review 2019 | Q112: 0.5911325572
A113: HDD | B113: C_WWN_UNDERPERFORM_001 | C113: Cost sharing rate for underperform | D113: % | E113: Price Review 2019 | Q113: 0.5
A114: HDD | B114: B0012WR | C114: Abstraction charges/ discharge consents - Water resources | D114: £m | E114: Cyclical Foundation | F114: 0.61 | G114: 0.597 | H114: 0.756071195 | I114: 0.736 | J114: 0.66
A115: HDD | B115: B0012WN | C115: Abstraction charges/ discharge consents - Water Network+ | D115: £m | E115: Cyclical Foundation | F115: 0.025 | G115: 0.027 | H115: 0.013413254 | I115: 0.012 | J115: 0.021
A116: HDD | B116: C_WR_CS_EXANTE_001 | C116: Ex-ante allowance above Ofwat forecast - Active - Water Resources | D116: £m | E116: Price Review 2019 | Q116: -0.09842887849
A117: HDD | B117: C_WN_CS_EXANTE_001 | C117: Ex-ante allowance above Ofwat forecast - Active - Water Network | D117: £m | E117: Price Review 2019 | Q117: -2.158560181
A118: HDD | B118: C_WWN_CS_EXANTE_001 | C118: Ex-ante allowance above Ofwat forecast - Active - Wastewater Network | D118: £m | E118: Price Review 2019 | Q118: -0.8949168715
A119: HDD | B119: C_WR_WN_OUTPERFORM_001 | C119: Cost sharing rate for outperform | D119: % | E119: Price Review 2019 | Q119: 0.5396005513
A120: HDD | B120: C_WR_WN_UNDERPERFORM_001 | C120: Cost sharing rate for underperform | D120: % | E120: Price Review 2019 | Q120: 0.5
A121: NES | B121: B0143TAWR | C121: Totex (net of business rates, abstraction licence fees and grants and contributions) - Total actual totex (net of business rates, abstraction licence fees and grants and contributions) - 12 months ended 31 March 2021 - Water resources | D121: £m | E121: Cyclical Foundation | F121: 32.772 | G121: 42.357 | H121: 55.223 | I121: 66.996 | J121: 62.111
A122: NES | B122: B0143TAWNP | C122: Totex (net of business rates, abstraction licence fees and grants and contributions) - Total actual totex (net of business rates, abstraction licence fees and grants and contributions) - 12 months ended 31 March 2021 - Water network plus | D122: £m | E122: Cyclical Foundation | F122: 229.382 | G122: 246.529 | H122: 296.458 | I122: 396.432271 | J122: 428.561
A123: NES | B123: B0143TAWWNP | C123: Totex (net of business rates, abstraction licence fees and grants and contributions) - Total actual totex (net of business rates, abstraction licence fees and grants and contributions) - 12 months ended 31 March 2021 - Wastewater network plus | D123: £m | E123: Cyclical Foundation | F123: 162.878 | G123: 189.146 | H123: 206.304 | I123: 254.1555 | J123: 308.311
A124: NES | B124: B0143TATTTH | C124: Totex (net of business rates, abstraction licence fees and grants and contributions) - Total actual totex (net of business rates, abstraction licence fees and grants and contributions) - 12 months ended 31 March 2021 - Thames Tideway/ Havant Thicket | D124: £m | E124: Cyclical Foundation | F124: 0 | G124: 0 | H124: 0 | I124: 0 | J124: 0
A125: NES | B125: B0413TGTE_WR | C125: Total green recovery programme expenditure - Totex - Expenditure in report year - Water resources | D125: £m | E125: Cyclical Foundation | G125: 0 | H125: 0 | I125: 0 | J125: 0
A126: NES | B126: B0420TGTE_RW | C126: Total green recovery programme expenditure - Totex - Expenditure in report year - Water network+ Raw water transport | D126: £m | E126: Cyclical Foundation | G126: 0 | H126: 0 | I126: 0 | J126: 0
A127: NES | B127: B0427TGTE_SW | C127: Total green recovery programme expenditure - Totex - Expenditure in report year - Water network+ Raw water storage | D127: £m | E127: Cyclical Foundation | G127: 0 | H127: 0 | I127: 0 | J127: 0
A128: NES | B128: B0434TGTE_TW | C128: Total green recovery programme expenditure - Totex - Expenditure in report year - Water network+ Water treatment | D128: £m | E128: Cyclical Foundation | G128: 0 | H128: 0 | I128: 0 | J128: 0
A129: NES | B129: B0441TGTE_DW | C129: Total green recovery programme expenditure - Totex - Expenditure in report year - Water network+ Treated water distribution | D129: £m | E129: Cyclical Foundation | G129: 0 | H129: 0 | I129: 0 | J129: 0
A130: NES | B130: B0513TGTE_FOW | C130: Total green recovery programme expenditure - Totex - Expenditure in report year - Wastewater network+ Foul | D130: £m | E130: Cyclical Foundation | G130: 0 | H130: 0 | I130: 0 | J130: 0
A131: NES | B131: B0520TGTE_SUW | C131: Total green recovery programme expenditure - Totex - Expenditure in report year - Wastewater network+ Surface water drainage | D131: £m | E131: Cyclical Foundation | G131: 0 | H131: 0 | I131: 0 | J131: 0
A132: NES | B132: B0527TGTE_HDW | C132: Total green recovery programme expenditure - Totex - Expenditure in report year - Wastewater network+ Highway drainage | D132: £m | E132: Cyclical Foundation | G132: 0 | H132: 0 | I132: 0 | J132: 0
A133: NES | B133: B0534TGTE_STW | C133: Total green recovery programme expenditure - Totex - Expenditure in report year - Wastewater network+ Sewage treatment and disposal | D133: £m | E133: Cyclical Foundation | G133: 0 | H133: 0 | I133: 0 | J133: 0
A134: NES | B134: B0541TGTE_SLW | C134: Total green recovery programme expenditure - Totex - Expenditure in report year - Wastewater network+ Sludge liquor treatment | D134: £m | E134: Cyclical Foundation | G134: 0 | H134: 0 | I134: 0 | J134: 0
A135: NES | B135: WS01008WR | C135: Operating expenditure - Local authority and Cumulo rates - Water resources | D135: £m | E135: Cyclical Foundation | F135: 4.234 | G135: 4.235 | H135: 4.222 | I135: 2.974 | J135: 3.19
A136: NES | B136: BM317WN | C136: Local authority and Cumulo rates - Water Network+ | D136: £m | E136: Cyclical Foundation | F136: 26.68 | G136: 26.664 | H136: 26.941 | I136: 18.996 | J136: 20.37
A137: NES | B137: BM817WNK | C137: Local authority and Cumulo rates - Wastewater Network+ | D137: £m | E137: Cyclical Foundation | F137: 6.95 | G137: 4.705 | H137: 7.717 | I137: 9.394 | J137: 8.719
A138: NES | B138: BM817SG | C138: Local authority and Cumulo rates - Sludge | D138: £m | E138: Cyclical Foundation | F138: 1.432 | G138: 0.955 | H138: 1.615 | I138: 1.983 | J138: 1.836
A139: NES | B139: BM817TTT | C139: Local authority rates - TTT | D139: £m | E139: Cyclical Foundation | G139: 0 | H139: 0 | J139: 0
A140: NES | B140: C_TBC_WR_PR19CA004_OFWAT | C140: Total base costs exclude enhancemnt opex - Water resources - OFWAT view | D140: £m | E140: Price Review 2019 | Q140: 246.326124
A141: NES | B141: C_TBC_WN_PR19CA004_OFWAT | C141: Total base costs exclude enhancemnt opex - Water network plus - OFWAT view | D141: £m | E141: Price Review 2019 | Q141: 1212.857611
A142: NES | B142: C_TBC_WBR_PR19CA008_OFWAT | C142: Total base costs - Bioresources - OFWAT view | D142: £m | E142: Price Review 2019 | Q142: 71.76767616
A143: NES | B143: C_TBC_WWN_PR19CA008_OFWAT | C143: Total base costs - Wastewater network plus - OFWAT view | D143: £m | E143: Price Review 2019 | Q143: 799.9599121
A144: NES | B144: C_UBC_WR_PR19CA004_OFWAT | C144: Unmodelled base costs (Local authority and cumulo rates ) - Water resources - OFWAT view | D144: £m | E144: Price Review 2019 | Q144: 27.14724687
A145: NES | B145: C_UBC_WN_PR19CA004_OFWAT | C145: Unmodelled base costs (Local authority and cumulo rates ) - Water network plus - OFWAT view | D145: £m | E145: Price Review 2019 | Q145: 171.0580927
A146: NES | B146: C_UBC_WBR_PR19CA008_OFWAT | C146: Base costs - Unmodelled base costs (Local authority and cumulo rates ) - Bioresources - OFWAT view | D146: £m | E146: Price Review 2019 | Q146: 6.624110078
A147: NES | B147: C_UBC_WWN_PR19CA008_OFWAT | C147: Base costs - Unmodelled base costs (Local authority and cumulo rates ) - Wastewater network plus - OFWAT view | D147: £m | E147: Price Review 2019 | Q147: 32.26610937
A148: NES | B148: WS1003_WW4_WR | C148: Unmodelled base costs (Abstraction charges / discharge consent) WR | D148: £m | E148: Price Review 2019 | Q148: 131.3320312
A149: NES | B149: WS1003_WW4_WN | C149: Unmodelled base costs (Abstraction charges / discharge consent) WN | D149: £m | E149: Price Review 2019 | Q149: 1.285182602
A150: NES | B150: C_WWN_OUTPERFORM_001 | C150: Cost sharing rate for outperform | D150: % | E150: Price Review 2019 | Q150: 0.3440448377
A151: NES | B151: C_WWN_UNDERPERFORM_001 | C151: Cost sharing rate for underperform | D151: % | E151: Price Review 2019 | Q151: 0.6559551623
A152: NES | B152: B0012WR | C152: Abstraction charges/ discharge consents - Water resources | D152: £m | E152: Cyclical Foundation | F152: 43.473 | G152: 43.449 | H152: 39.565 | I152: 40.183 | J152: 56.071
A153: NES | B153: B0012WN | C153: Abstraction charges/ discharge consents - Water Network+ | D153: £m | E153: Cyclical Foundation | F153: 0.337 | G153: 0.334 | H153: 0.318 | I153: 0.432 | J153: 0.434
A154: NES | B154: C_WR_CS_EXANTE_001 | C154: Ex-ante allowance above Ofwat forecast - Active - Water Resources | D154: £m | E154: Price Review 2019 | Q154: 0
A155: NES | B155: C_WN_CS_EXANTE_001 | C155: Ex-ante allowance above Ofwat forecast - Active - Water Network | D155: £m | E155: Price Review 2019 | Q155: 0
A156: NES | B156: C_WWN_CS_EXANTE_001 | C156: Ex-ante allowance above Ofwat forecast - Active - Wastewater Network | D156: £m | E156: Price Review 2019 | Q156: 0
A157: NES | B157: C_WR_WN_OUTPERFORM_001 | C157: Cost sharing rate for outperform | D157: % | E157: Price Review 2019 | Q157: 0.4619024717
A158: NES | B158: C_WR_WN_UNDERPERFORM_001 | C158: Cost sharing rate for underperform | D158: % | E158: Price Review 2019 | Q158: 0.5380975283
A159: SVE | B159: B0143TAWR | C159: Totex (net of business rates, abstraction licence fees and grants and contributions) - Total actual totex (net of business rates, abstraction licence fees and grants and contributions) - 12 months ended 31 March 2021 - Water resources | D159: £m | E159: Cyclical Foundation | F159: 76.907 | G159: 73.455 | H159: 74.44 | I159: 78.174 | J159: 81.955
A160: SVE | B160: B0143TAWNP | C160: Totex (net of business rates, abstraction licence fees and grants and contributions) - Total actual totex (net of business rates, abstraction licence fees and grants and contributions) - 12 months ended 31 March 2021 - Water network plus | D160: £m | E160: Cyclical Foundation | F160: 480.9051174 | G160: 524.014 | H160: 622.941 | I160: 769.303 | J160: 655.026
A161: SVE | B161: B0143TAWWNP | C161: Totex (net of business rates, abstraction licence fees and grants and contributions) - Total actual totex (net of business rates, abstraction licence fees and grants and contributions) - 12 months ended 31 March 2021 - Wastewater network plus | D161: £m | E161: Cyclical Foundation | F161: 452.6289815 | G161: 506.173 | H161: 586.486 | I161: 918.922 | J161: 913.376
A162: SVE | B162: B0143TATTTH | C162: Totex (net of business rates, abstraction licence fees and grants and contributions) - Total actual totex (net of business rates, abstraction licence fees and grants and contributions) - 12 months ended 31 March 2021 - Thames Tideway/ Havant Thicket | D162: £m | E162: Cyclical Foundation | F162: 0 | G162: 0 | H162: 0 | I162: 0 | J162: 0
A163: SVE | B163: B0413TGTE_WR | C163: Total green recovery programme expenditure - Totex - Expenditure in report year - Water resources | D163: £m | E163: Cyclical Foundation | G163: 0.363 | H163: 2.227 | I163: 10.608 | J163: 10.583
A164: SVE | B164: B0420TGTE_RW | C164: Total green recovery programme expenditure - Totex - Expenditure in report year - Water network+ Raw water transport | D164: £m | E164: Cyclical Foundation | G164: 0 | H164: 0 | I164: 0 | J164: 0
A165: SVE | B165: B0427TGTE_SW | C165: Total green recovery programme expenditure - Totex - Expenditure in report year - Water network+ Raw water storage | D165: £m | E165: Cyclical Foundation | G165: 0 | H165: 0 | I165: 0 | J165: 0
A166: SVE | B166: B0434TGTE_TW | C166: Total green recovery programme expenditure - Totex - Expenditure in report year - Water network+ Water treatment | D166: £m | E166: Cyclical Foundation | G166: 4.134 | H166: 35.165 | I166: 65.752 | J166: 58.268
A167: SVE | B167: B0441TGTE_DW | C167: Total green recovery programme expenditure - Totex - Expenditure in report year - Water network+ Treated water distribution | D167: £m | E167: Cyclical Foundation | G167: 3.709 | H167: 23.029 | I167: 40.666 | J167: 54.967
A168: SVE | B168: B0513TGTE_FOW | C168: Total green recovery programme expenditure - Totex - Expenditure in report year - Wastewater network+ Foul | D168: £m | E168: Cyclical Foundation | G168: 0 | H168: 0.001 | I168: 0 | J168: 0
A169: SVE | B169: B0520TGTE_SUW | C169: Total green recovery programme expenditure - Totex - Expenditure in report year - Wastewater network+ Surface water drainage | D169: £m | E169: Cyclical Foundation | G169: 0.312 | H169: 3.796 | I169: 11.381 | J169: 33.796
A170: SVE | B170: B0527TGTE_HDW | C170: Total green recovery programme expenditure - Totex - Expenditure in report year - Wastewater network+ Highway drainage | D170: £m | E170: Cyclical Foundation | G170: 1.25 | H170: 5.006 | I170: 30.302 | J170: 45.308
A171: SVE | B171: B0534TGTE_STW | C171: Total green recovery programme expenditure - Totex - Expenditure in report year - Wastewater network+ Sewage treatment and disposal | D171: £m | E171: Cyclical Foundation | G171: 4.172 | H171: 9.973 | I171: 36.603 | J171: 103.104
A172: SVE | B172: B0541TGTE_SLW | C172: Total green recovery programme expenditure - Totex - Expenditure in report year - Wastewater network+ Sludge liquor treatment | D172: £m | E172: Cyclical Foundation | G172: 0 | H172: 0 | I172: 0 | J172: 0
A173: SVE | B173: WS01008WR | C173: Operating expenditure - Local authority and Cumulo rates - Water resources | D173: £m | E173: Cyclical Foundation | F173: 4.51 | G173: 4.971 | H173: 4.473 | I173: 4.917 | J173: 4.99
A174: SVE | B174: BM317WN | C174: Local authority and Cumulo rates - Water Network+ | D174: £m | E174: Cyclical Foundation | F174: 47.712 | G174: 48.098 | H174: 47.804 | I174: 48.753 | J174: 51.253
A175: SVE | B175: BM817WNK | C175: Local authority and Cumulo rates - Wastewater Network+ | D175: £m | E175: Cyclical Foundation | F175: 23.118 | G175: 22.84 | H175: 22.368 | I175: 27.316 | J175: 32.477
A176: SVE | B176: BM817SG | C176: Local authority and Cumulo rates - Sludge | D176: £m | E176: Cyclical Foundation | F176: 3.287 | G176: 2.973 | H176: 3.035 | I176: 3.242 | J176: 3.417
A177: SVE | B177: BM817TTT | C177: Local authority rates - TTT | D177: £m | E177: Cyclical Foundation | G177: 0 | H177: 0 | I177: 0 | J177: 0
A178: SVE | B178: C_TBC_WR_PR19CA004_OFWAT | C178: Total base costs exclude enhancemnt opex - Water resources - OFWAT view | D178: £m | E178: Price Review 2019 | Q178: 280.2328184
A179: SVE | B179: C_TBC_WN_PR19CA004_OFWAT | C179: Total base costs exclude enhancemnt opex - Water network plus - OFWAT view | D179: £m | E179: Price Review 2019 | Q179: 2183.109318
A180: SVE | B180: C_TBC_WBR_PR19CA008_OFWAT | C180: Total base costs - Bioresources - OFWAT view | D180: £m | E180: Price Review 2019 | Q180: 310.9508971
A181: SVE | B181: C_TBC_WWN_PR19CA008_OFWAT | C181: Total base costs - Wastewater network plus - OFWAT view | D181: £m | E181: Price Review 2019 | Q181: 2332.621571
A182: SVE | B182: C_UBC_WR_PR19CA004_OFWAT | C182: Unmodelled base costs (Local authority and cumulo rates ) - Water resources - OFWAT view | D182: £m | E182: Price Review 2019 | Q182: 21.95271565
A183: SVE | B183: C_UBC_WN_PR19CA004_OFWAT | C183: Unmodelled base costs (Local authority and cumulo rates ) - Water network plus - OFWAT view | D183: £m | E183: Price Review 2019 | Q183: 207.8768688
A184: SVE | B184: C_UBC_WBR_PR19CA008_OFWAT | C184: Base costs - Unmodelled base costs (Local authority and cumulo rates ) - Bioresources - OFWAT view | D184: £m | E184: Price Review 2019 | Q184: 21.11886329
A185: SVE | B185: C_UBC_WWN_PR19CA008_OFWAT | C185: Base costs - Unmodelled base costs (Local authority and cumulo rates ) - Wastewater network plus - OFWAT view | D185: £m | E185: Price Review 2019 | Q185: 106.8094036
A186: SVE | B186: WS1003_WW4_WR | C186: Unmodelled base costs (Abstraction charges / discharge consent) WR | D186: £m | E186: Price Review 2019 | Q186: 54.32246252
A187: SVE | B187: WS1003_WW4_WN | C187: Unmodelled base costs (Abstraction charges / discharge consent) WN | D187: £m | E187: Price Review 2019 | Q187: 0
A188: SVE | B188: C_WWN_OUTPERFORM_001 | C188: Cost sharing rate for outperform | D188: % | E188: Price Review 2019 | Q188: 0.5
A189: SVE | B189: C_WWN_UNDERPERFORM_001 | C189: Cost sharing rate for underperform | D189: % | E189: Price Review 2019 | Q189: 0.5
A190: SVE | B190: B0012WR | C190: Abstraction charges/ discharge consents - Water resources | D190: £m | E190: Cyclical Foundation | F190: 11.549 | G190: 11.569 | H190: 15.236 | I190: 15.09 | J190: 15.043
A191: SVE | B191: B0012WN | C191: Abstraction charges/ discharge consents - Water Network+ | D191: £m | E191: Cyclical Foundation | F191: 0.398 | G191: 0.43 | H191: 0.532 | I191: 0.508 | J191: 0.786
A192: SVE | B192: C_WR_CS_EXANTE_001 | C192: Ex-ante allowance above Ofwat forecast - Active - Water Resources | D192: £m | E192: Price Review 2019 | Q192: 0
A193: SVE | B193: C_WN_CS_EXANTE_001 | C193: Ex-ante allowance above Ofwat forecast - Active - Water Network | D193: £m | E193: Price Review 2019 | Q193: 0
A194: SVE | B194: C_WWN_CS_EXANTE_001 | C194: Ex-ante allowance above Ofwat forecast - Active - Wastewater Network | D194: £m | E194: Price Review 2019 | Q194: 0
A195: SVE | B195: C_WR_WN_OUTPERFORM_001 | C195: Cost sharing rate for outperform | D195: % | E195: Price Review 2019 | Q195: 0.5
A196: SVE | B196: C_WR_WN_UNDERPERFORM_001 | C196: Cost sharing rate for underperform | D196: % | E196: Price Review 2019 | Q196: 0.5
A197: SWB | B197: B0143TAWR | C197: Totex (net of business rates, abstraction licence fees and grants and contributions) - Total actual totex (net of business rates, abstraction licence fees and grants and contributions) - 12 months ended 31 March 2021 - Water resources | D197: £m | E197: Cyclical Foundation | F197: 12.06 | G197: 16.814 | H197: 45.32 | I197: 102.094 | J197: 53.337
A198: SWB | B198: B0143TAWNP | C198: Totex (net of business rates, abstraction licence fees and grants and contributions) - Total actual totex (net of business rates, abstraction licence fees and grants and contributions) - 12 months ended 31 March 2021 - Water network plus | D198: £m | E198: Cyclical Foundation | F198: 136.47 | G198: 151.892 | H198: 218.817 | I198: 287.747 | J198: 288.107
A199: SWB | B199: B0143TAWWNP | C199: Totex (net of business rates, abstraction licence fees and grants and contributions) - Total actual totex (net of business rates, abstraction licence fees and grants and contributions) - 12 months ended 31 March 2021 - Wastewater network plus | D199: £m | E199: Cyclical Foundation | F199: 145.571 | G199: 170.847 | H199: 238.239 | I199: 316.453 | J199: 332.79
A200: SWB | B200: B0143TATTTH | C200: Totex (net of business rates, abstraction licence fees and grants and contributions) - Total actual totex (net of business rates, abstraction licence fees and grants and contributions) - 12 months ended 31 March 2021 - Thames Tideway/ Havant Thicket | D200: £m | E200: Cyclical Foundation | F200: 0 | G200: 0 | H200: 0 | I200: 0 | J200: 0
A201: SWB | B201: B0413TGTE_WR | C201: Total green recovery programme expenditure - Totex - Expenditure in report year - Water resources | D201: £m | E201: Cyclical Foundation | G201: 0.926 | H201: 3.591 | I201: 3.434 | J201: 5.058
... 451 more rows

Sheet F_Inputs
C1: PR24 inputs for cost rec | E1: Run on 10 Sep 2025 16:02
A2: Acronym | B2: Reference | C2: Item description | D2: Unit | E2: Model | F2: 2020-21 | G2: 2021-22 | H2: 2022-23 | I2: 2023-24 | J2: 2024-25 | K2: 2025-26 | L2: 2020-25
F4: Price Review 2024 | G4: Price Review 2024 | H4: Price Review 2024 | I4: Price Review 2024 | J4: Price Review 2024 | K4: Price Review 2024 | L4: Price Review 2024
F5: BYR25DD | G5: BYR25DD | H5: BYR25DD | I5: BYR25DD | J5: BYR25DD | K5: BYR25DD | L5: BYR25DD
F6: Latest | G6: Latest | H6: Latest | I6: Latest | J6: Latest | K6: Latest | L6: Latest
A7: TMS | B7: B0143TAWR_PR24 | C7: Totex (net of business rates, abstraction licence fees and grants and contributions) - Total actual totex (net of business rates, abstraction licence fees and grants and contributions) - Water resources | D7: £m | E7: Price Review 2024 | H7: 78.869 | I7: 68.53329169 | J7: 70.05962516
A8: TMS | B8: B0143TAWNP_PR24 | C8: Totex (net of business rates, abstraction licence fees and grants and contributions) - Total actual totex (net of business rates, abstraction licence fees and grants and contributions) - Water network plus | D8: £m | E8: Price Review 2024 | H8: 1015.163538 | I8: 981.8297269 | J8: 883.0435555
A9: TMS | B9: B0143TAWWNP_PR24 | C9: Totex (net of business rates, abstraction licence fees and grants and contributions) - Total actual totex (net of business rates, abstraction licence fees and grants and contributions) - Wastewater network plus | D9: £m | E9: Price Review 2024 | H9: 944.791 | I9: 1123.217778 | J9: 1162.134606
A10: TMS | B10: B0143TABIO_PR24 | C10: Totex (net of business rates, abstraction licence fees and grants and contributions) - Total actual totex (net of business rates, abstraction licence fees and grants and contributions) - Bioresources | D10: £m | E10: Price Review 2024 | H10: 155.335 | I10: 188.1324247 | J10: 160.183102
A11: TMS | B11: B0143TATTTH_PR24 | C11: Totex (net of business rates, abstraction licence fees and grants and contributions) - Total actual totex (net of business rates, abstraction licence fees and grants and contributions) - Additional Control | D11: £m | E11: Price Review 2024 | H11: 33.324 | I11: 30.25033667 | J11: 26.09025912
A12: TMS | B12: PD9_08WR_PR24 | C12: Totex - business rates and abstraction licence fees - Actual totex - business rates - Water resources | D12: £m | E12: Price Review 2024 | H12: 3.324 | I12: 3.525616698 | J12: 3.3092458
A13: TMS | B13: PD9_08WNP_PR24 | C13: Totex - business rates and abstraction licence fees - Actual totex - business rates - Water network plus | D13: £m | E13: Price Review 2024 | H13: 68 | I13: 73.18311195 | J13: 67.45720856
A14: TMS | B14: PD9_08WWNP_PR24 | C14: Totex - business rates and abstraction licence fees - Actual totex - business rates - Wastewater network plus | D14: £m | E14: Price Review 2024 | H14: 43.67 | I14: 44.13662239 | J14: 45.77774724
A15: TMS | B15: PD9_08BIO_PR24 | C15: Totex - business rates and abstraction licence fees - Actual totex - business rates - Bioresources | D15: £m | E15: Price Review 2024 | H15: 0.499 | I15: 0.4876660342 | J15: 0.53976048
A16: TMS | B16: PD9_08ADDN1_PR24 | C16: Totex - business rates and abstraction licence fees - Actual totex - business rates - Additional Control | D16: £m | E16: Price Review 2024 | H16: 0 | I16: 0 | J16: 0
A17: TMS | B17: PD9_10WR_PR24 | C17: Totex - business rates and abstraction licence fees - Actual totex - abstraction licence fees - Water resources | D17: £m | E17: Price Review 2024 | H17: 23.579 | I17: 23.72580645 | J17: 21.63998904
A18: TMS | B18: PD9_10WNP_PR24 | C18: Totex - business rates and abstraction licence fees - Actual totex - abstraction licence fees - Water network plus | D18: £m | E18: Price Review 2024 | H18: 0 | I18: 0 | J18: 0
A19: TMS | B19: PD9_10WWNP_PR24 | C19: Totex - business rates and abstraction licence fees - Actual totex - abstraction licence fees - Wastewater network plus | D19: £m | E19: Price Review 2024 | H19: 5.322 | I19: 6.371916509 | J19: 9.45407004
A20: TMS | B20: PD9_10BIO_PR24 | C20: Totex - business rates and abstraction licence fees - Actual totex - abstraction licence fees - Bioresources | D20: £m | E20: Price Review 2024 | H20: 1.55 | I20: 0.07115749526 | J20: 0
A21: TMS | B21: PD9_10ADDN1_PR24 | C21: Totex - business rates and abstraction licence fees - Actual totex - abstraction licence fees - Additional Control | D21: £m | E21: Price Review 2024 | H21: 0 | I21: 0 | J21: 0
A22: TMS | B22: PD9_13WR_PR24 | C22: CMA companies only – items excluded from general cost sharing with bespoke sharing rates - Company cost sharing rates - Water resources | D22: % | E22: Price Review 2024 | H22: 0 | I22: 0 | J22: 0
A23: TMS | B23: PD9_13WNP_PR24 | C23: CMA companies only – items excluded from general cost sharing with bespoke sharing rates - Company cost sharing rates - Water network plus | D23: % | E23: Price Review 2024 | H23: 1 | I23: 1 | J23: 1
A24: TMS | B24: PD9_13WWNP_PR24 | C24: CMA companies only – items excluded from general cost sharing with bespoke sharing rates - Company cost sharing rates - Wastewater network plus | D24: % | E24: Price Review 2024 | H24: 0 | I24: 0 | J24: 0
A25: TMS | B25: PD9_13BIO_PR24 | C25: CMA companies only – items excluded from general cost sharing with bespoke sharing rates - Company cost sharing rates - Bioresources | D25: % | E25: Price Review 2024 | H25: 0 | I25: 0 | J25: 0
A26: TMS | B26: PD9_13ADDN1_PR24 | C26: CMA companies only – items excluded from general cost sharing with bespoke sharing rates - Company cost sharing rates - Additional Control | D26: % | E26: Price Review 2024 | H26: 0 | I26: 0 | J26: 0
A27: TMS | B27: B0413TGTE_WR_PR24 | C27: Green recovery programme - Total green recovery programme expenditure - Totex - Water resources - Expenditure in report year | D27: £m | E27: Price Review 2024 | H27: 0 | I27: 0 | J27: 0 | K27: 0
A28: TMS | B28: B0420TGTE_RW_PR24 | C28: Green recovery programme - Total green recovery programme expenditure - Totex - Raw water transport - Water network+ - Expenditure in report year | D28: £m | E28: Price Review 2024 | H28: 0 | I28: 0 | J28: 0 | K28: 0
A29: TMS | B29: B0427TGTE_SW_PR24 | C29: Green recovery programme - Total green recovery programme expenditure - Totex - Raw water storage - Water network+ - Expenditure in report year | D29: £m | E29: Price Review 2024 | H29: 0 | I29: 0 | J29: 0 | K29: 0
A30: TMS | B30: B0434TGTE_TW_PR24 | C30: Green recovery programme - Total green recovery programme expenditure - Totex - Water treatment - Water network+ - Expenditure in report year | D30: £m | E30: Price Review 2024 | H30: 0 | I30: 0 | J30: 0 | K30: 0
A31: TMS | B31: B0441TGTE_DW_PR24 | C31: Green recovery programme - Total green recovery programme expenditure - Totex - Treated water distribution - Water network+ - Expenditure in report year | D31: £m | E31: Price Review 2024 | H31: 0 | I31: 0 | J31: 0 | K31: 0
A32: TMS | B32: B0513TGTE_FOW_PR24 | C32: Green recovery programme - Total green recovery programme expenditure - Totex - Foul - Wastewater network+ - Expenditure in report year | D32: £m | E32: Price Review 2024 | H32: 0 | I32: 0 | J32: 0 | K32: 0
A33: TMS | B33: B0520TGTE_SUW_PR24 | C33: Green recovery programme - Total green recovery programme expenditure - Totex - Surface water drainage - Wastewater network+ - Expenditure in report year | D33: £m | E33: Price Review 2024 | H33: 0 | I33: 0 | J33: 0 | K33: 0
A34: TMS | B34: B0527TGTE_HDW_PR24 | C34: Green recovery programme - Total green recovery programme expenditure - Totex - Highway drainage - Wastewater network+ - Expenditure in report year | D34: £m | E34: Price Review 2024 | H34: 0 | I34: 0 | J34: 0 | K34: 0
A35: TMS | B35: B0534TGTE_STW_PR24 | C35: Green recovery programme - Total green recovery programme expenditure - Totex - Sewage treatment and disposal - Wastewater network+ - Expenditure in report year | D35: £m | E35: Price Review 2024 | H35: 0 | I35: 0 | J35: 0 | K35: 0
A36: TMS | B36: B0541TGTE_SLW_PR24 | C36: Green recovery programme - Total green recovery programme expenditure - Totex - Sludge liquor treatment - Wastewater network+ - Expenditure in report year | D36: £m | E36: Price Review 2024 | H36: 0 | I36: 0 | J36: 0 | K36: 0
A37: TMS | B37: B0547TGTE_SAB_PR24 | C37: Green recovery programme - Total green recovery programme expenditure - Totex - Sludge transport - Bioresources - Expenditure in report year | D37: £m | E37: Price Review 2024 | H37: 0 | I37: 0 | J37: 0 | K37: 0
A38: TMS | B38: B0554TGTE_SEB_PR24 | C38: Green recovery programme - Total green recovery programme expenditure - Totex - Sludge treatment - Bioresources - Expenditure in report year | D38: £m | E38: Price Review 2024 | H38: 0 | I38: 0 | J38: 0 | K38: 0
A39: TMS | B39: B0561TGTE_SDB_PR24 | C39: Green recovery programme - Total green recovery programme expenditure - Totex - Sludge disposal - Bioresources - Expenditure in report year | D39: £m | E39: Price Review 2024 | H39: 0 | I39: 0 | J39: 0 | K39: 0
A40: TMS | B40: BB3905AL_PR24 | C40: Consumer price index (including housing costs) - Consumer Price Index (with housing) for April | D40: nr | E40: Price Review 2024 | F40: 108.6 | G40: 110.4 | H40: 119 | I40: 128.3 | J40: 132.2 | K40: 137.7
A41: TMS | B41: BB3905MY_PR24 | C41: Consumer price index (including housing costs) - Consumer Price Index (with housing) for May | D41: nr | E41: Price Review 2024 | F41: 108.6 | G41: 111 | H41: 119.7 | I41: 129.1 | J41: 132.7 | K41: 138
A42: TMS | B42: BB3905JN_PR24 | C42: Consumer price index (including housing costs) - Consumer Price Index (with housing) for June | D42: nr | E42: Price Review 2024 | F42: 108.8 | G42: 111.4 | H42: 120.5 | I42: 129.4 | J42: 133 | K42: 138.4
A43: TMS | B43: BB3905JL_PR24 | C43: Consumer price index (including housing costs) - Consumer Price Index (with housing) for July | D43: nr | E43: Price Review 2024 | F43: 109.2 | G43: 111.4 | H43: 121.2 | I43: 129 | J43: 132.9 | K43: 138.5
A44: TMS | B44: BB3905AT_PR24 | C44: Consumer price index (including housing costs) - Consumer Price Index (with housing) for August | D44: nr | E44: Price Review 2024 | F44: 108.8 | G44: 112.1 | H44: 121.8 | I44: 129.4 | J44: 133.4
A45: TMS | B45: BB3905SR_PR24 | C45: Consumer price index (including housing costs) - Consumer Price Index (with housing) for September | D45: nr | E45: Price Review 2024 | F45: 109.2 | G45: 112.4 | H45: 122.3 | I45: 130.1 | J45: 133.5
A46: TMS | B46: BB3905OR_PR24 | C46: Consumer price index (including housing costs) - Consumer Price Index (with housing) for October | D46: nr | E46: Price Review 2024 | F46: 109.2 | G46: 113.4 | H46: 124.3 | I46: 130.2 | J46: 134.3
A47: TMS | B47: BB3905NR_PR24 | C47: Consumer price index (including housing costs) - Consumer Price Index (with housing) for November | D47: nr | E47: Price Review 2024 | F47: 109.1 | G47: 114.1 | H47: 124.8 | I47: 130 | J47: 134.6 | K47: 139.4456
A48: TMS | B48: BB3905DR_PR24 | C48: Consumer price index (including housing costs) - Consumer Price Index (with housing) for December | D48: nr | E48: Price Review 2024 | F48: 109.4 | G48: 114.7 | H48: 125.3 | I48: 130.5 | J48: 135.1
A49: TMS | B49: BB3905JY_PR24 | C49: Consumer price index (including housing costs) - Consumer Price Index (with housing) for January | D49: nr | E49: Price Review 2024 | F49: 109.3 | G49: 114.6 | H49: 124.8 | I49: 130 | J49: 135.1
A50: TMS | B50: BB3905FY_PR24 | C50: Consumer price index (including housing costs) - Consumer Price Index (with housing) for February | D50: nr | E50: Price Review 2024 | F50: 109.4 | G50: 115.4 | H50: 126 | I50: 130.8 | J50: 135.6
A51: TMS | B51: BB3905MH_PR24 | C51: Consumer price index (including housing costs) - Consumer Price Index (with housing) for March | D51: nr | E51: Price Review 2024 | F51: 109.7 | G51: 116.5 | H51: 126.8 | I51: 131.6 | J51: 136.1
A52: TMS | B52: C_OPEX_SPLIT_BASE_WR_PR19CA091 | C52: PR19 Opex split profile - Base costs - WR | D52: % | E52: Price Review 2024 | F52: 0.1620889768 | G52: 0.1659454849 | H52: 0.1602635369 | I52: 0.1559599993 | J52: 0.161909839
A53: TMS | B53: C_OPEX_SPLIT_BASE_WN_PR19CA091 | C53: PR19 Opex split profile - Base costs - WN | D53: % | E53: Price Review 2024 | F53: 0.1061957358 | G53: 0.1042417628 | H53: 0.1000588804 | I53: 0.09711666001 | J53: 0.09634665673
A54: TMS | B54: C_OPEX_SPLIT_BASE_WWN_PR19CA091 | C54: PR19 Opex split profile - Base costs - WWN | D54: % | E54: Price Review 2024 | F54: 0.1025942701 | G54: 0.09832045693 | H54: 0.09637933908 | I54: 0.09570810239 | J54: 0.09650555475
A55: TMS | B55: C_OPEX_SPLIT_BASE_BR_PR19CA091 | C55: PR19 Opex split profile - Base costs - BR | D55: % | E55: Price Review 2024 | F55: 0.07089917301 | G55: 0.0746919429 | H55: 0.0765297189 | I55: 0.07288439705 | J55: 0.07297641713
A56: TMS | B56: C_OPEX_SPLIT_BASE_DMMY_PR19CA091 | C56: PR19 Opex split profile - Base costs - DMMY | D56: % | E56: Price Review 2024 | F56: 0 | G56: 0 | H56: 0 | I56: 0 | J56: 0
A57: TMS | B57: C_CAPEX_SPLIT_BASE_WR_PR19CA091 | C57: PR19 Capex Split Profile - Base costs - WR | D57: % | E57: Price Review 2024 | F57: 0.07317102333 | G57: 0.06302198224 | H57: 0.04495102676 | I57: 0.007606150575 | J57: 0.005081980244
A58: TMS | B58: C_CAPEX_SPLIT_BASE_WN_PR19CA091 | C58: PR19 Capex Split Profile - Base costs - WN | D58: % | E58: Price Review 2024 | F58: 0.1197765476 | G58: 0.1123595348 | H58: 0.09314365851 | I58: 0.08758309611 | J58: 0.08317746726
A59: TMS | B59: C_CAPEX_SPLIT_BASE_WWN_PR19CA091 | C59: PR19 Capex Split Profile - Base costs - WWN | D59: % | E59: Price Review 2024 | F59: 0.1081780884 | G59: 0.1226413125 | H59: 0.1115497387 | I59: 0.09173383006 | J59: 0.07638930715
A60: TMS | B60: C_CAPEX_SPLIT_BASE_BR_PR19CA091 | C60: PR19 Capex Split Profile - Base costs - BR | D60: % | E60: Price Review 2024 | F60: 0.08513374019 | G60: 0.1532476868 | H60: 0.1567105021 | I60: 0.1327111842 | J60: 0.1042152377
A61: TMS | B61: C_CAPEX_SPLIT_BASE_DMMY_PR19CA091 | C61: PR19 Capex Split Profile - Base costs - DMMY | D61: % | E61: Price Review 2024 | F61: 0 | G61: 0 | H61: 0 | I61: 0 | J61: 0
A62: TMS | B62: C_PR19_E_WW_WINEP_WWN | C62: PR19 - WINEP in the round for cost reconciliation - WWN | D62: £m | E62: Price Review 2024 | L62: 328.0668239
A63: TMS | B63: C_PR19_E_W_METERING_WN | C63: PR19 - metering for cost reconciliation - WN | D63: £m | E63: Price Review 2024 | L63: 203.2737589
A64: TMS | B64: C__PR24PD11_PD11_12WR_PRETVM_PR24 | C64: PR19 WINEP / NEP RCV adjustment in 2017-18 FYA (CPIH deflated) prices (WR) - Pre time value of money adjustment | D64: £m | E64: Price Review 2024 | H64: -27.58633333 | I64: -27.58633333 | J64: -27.58633333 | L64: -82.759
A65: TMS | B65: C__PR24PD11_PD11_12WN_PRETVM_PR24 | C65: PR19 WINEP / NEP RCV adjustment in 2017-18 FYA (CPIH deflated) prices (WN) - Pre time value of money adjustment | D65: £m | E65: Price Review 2024 | H65: 0 | I65: 0 | J65: 0 | L65: 0
A66: TMS | B66: C__PR24PD11_PD11_12WWN_PRETVM_PR24 | C66: PR19 WINEP / NEP RCV adjustment in 2017-18 FYA (CPIH deflated) prices (WWN) - Pre time value of money adjustment | D66: £m | E66: Price Review 2024 | H66: -26.5151 | I66: -26.5151 | J66: -26.5151 | L66: -79.5453
A67: TMS | B67: C__PR24PD11_PD11_12BIO_PRETVM_PR24 | C67: PR19 WINEP / NEP RCV adjustment in 2017-18 FYA (CPIH deflated) prices (BR) - Pre time value of money adjustment | D67: £m | E67: Price Review 2024 | H67: 0 | I67: 0 | J67: 0 | L67: 0
A68: TMS | B68: C__PR24PD11_PD11_12ADDN1_PRETVM_PR24 | C68: PR19 WINEP / NEP RCV adjustment in 2017-18 FYA (CPIH deflated) prices (ADDN1) - Pre time value of money adjustment | D68: £m | E68: Price Review 2024 | H68: 0 | I68: 0 | J68: 0 | L68: 0
A69: TMS | B69: C_PR24PD11_PD11_12ADDN2_PR24 | C69: PR19 WINEP / NEP RCV adjustment in 2017-18 FYA (CPIH deflated) prices (ADDN2) | D69: £m | E69: Price Review 2024
A70: TMS | B70: C_PR24PD21_01WR_PR24 | C70: Total adjusted cost allowance - WR - real | D70: £m | E70: Price Review 2024 | F70: 0 | G70: 0 | H70: 0 | I70: 0 | J70: 0
A71: TMS | B71: C_PR24PD21_01WN_PR24 | C71: Total adjusted cost allowance - WN+ - real | D71: £m | E71: Price Review 2024 | F71: 0 | G71: 0 | H71: 0 | I71: 0 | J71: 0
A72: TMS | B72: C_PR24PD21_01WWN_PR24 | C72: Total adjusted cost allowance - WWN+ - real | D72: £m | E72: Price Review 2024 | F72: 0 | G72: 0 | H72: 0 | I72: 0 | J72: 0
A73: TMS | B73: C_PR24PD21_01BIO_PR24 | C73: Total adjusted cost allowance - BR - real | D73: £m | E73: Price Review 2024 | F73: 0 | G73: 0 | H73: 0 | I73: 0 | J73: 0
A74: TMS | B74: PD9_11WR_PR24 | C74: CMA companies only – items excluded from general cost sharing with bespoke sharing rates - CMA final determination allowed totex – items with bespoke sharing rates - Water resources | D74: £m | E74: Price Review 2024 | H74: 0 | I74: 0 | J74: 0
A75: TMS | B75: PD9_11WNP_PR24 | C75: CMA companies only – items excluded from general cost sharing with bespoke sharing rates - CMA final determination allowed totex – items with bespoke sharing rates - Water network plus | D75: £m | E75: Price Review 2024 | H75: 72.18197792 | I75: 191.4981123 | J75: 108.8323045
A76: TMS | B76: PD9_11WWNP_PR24 | C76: CMA companies only – items excluded from general cost sharing with bespoke sharing rates - CMA final determination allowed totex – items with bespoke sharing rates - Wastewater network plus | D76: £m | E76: Price Review 2024 | H76: 0 | I76: 0 | J76: 0
A77: TMS | B77: PD9_11BIO_PR24 | C77: CMA companies only – items excluded from general cost sharing with bespoke sharing rates - CMA final determination allowed totex – items with bespoke sharing rates - Bioresources | D77: £m | E77: Price Review 2024 | H77: 0 | I77: 0 | J77: 0
A78: TMS | B78: PD9_11ADDN1_PR24 | C78: CMA companies only – items excluded from general cost sharing with bespoke sharing rates - CMA final determination allowed totex – items with bespoke sharing rates - Additional Control | D78: £m | E78: Price Review 2024 | H78: 0 | I78: 0 | J78: 0
A79: TMS | B79: PD9_12WR_PR24 | C79: CMA companies only – items excluded from general cost sharing with bespoke sharing rates - Actual totex – items with bespoke sharing rates - Water resources | D79: £m | E79: Price Review 2024 | H79: 0 | I79: 0 | J79: 0
A80: TMS | B80: PD9_12WNP_PR24 | C80: CMA companies only – items excluded from general cost sharing with bespoke sharing rates - Actual totex – items with bespoke sharing rates - Water network plus | D80: £m | E80: Price Review 2024 | H80: 25.98146158 | I80: 153.6025179 | J80: 145.1111168
A81: TMS | B81: PD9_12WWNP_PR24 | C81: CMA companies only – items excluded from general cost sharing with bespoke sharing rates - Actual totex – items with bespoke sharing rates - Wastewater network plus | D81: £m | E81: Price Review 2024 | H81: 0 | I81: 0 | J81: 0
A82: TMS | B82: PD9_12BIO_PR24 | C82: CMA companies only – items excluded from general cost sharing with bespoke sharing rates - Actual totex – items with bespoke sharing rates - Bioresources | D82: £m | E82: Price Review 2024 | H82: 0 | I82: 0 | J82: 0
A83: TMS | B83: PD9_12ADDN1_PR24 | C83: CMA companies only – items excluded from general cost sharing with bespoke sharing rates - Actual totex – items with bespoke sharing rates - Additional Control | D83: £m | E83: Price Review 2024 | H83: 0 | I83: 0 | J83: 0
A84: TMS | B84: C_PR19_E_WW_WINEP_BIO | C84: PR19 - WINEP in the round for cost reconciliation - BIO | D84: £m | E84: Price Review 2024 | L84: 0

Sheet Consolidated actual totex inp
A1: Company acronym | E1: TMS | G1: ='F_Inputs-APR & PR19'!F6 -> 2020-21 | H1: ='F_Inputs-APR & PR19'!G6 -> 2021-22 | I1: ='F_Inputs-APR & PR19'!H6 -> 2022-23 | J1: ='F_Inputs-APR & PR19'!I6 -> 2023-24 | K1: ='F_Inputs-APR & PR19'!J6 -> 2024-25
F2: CPIH fin year ave | G2: =AVERAGE(F_Inputs!F40:F51) -> 109.1083333 | H2: =AVERAGE(F_Inputs!G40:G51) -> 113.1166667 | I2: =AVERAGE(F_Inputs!H40:H51) -> 123.0416667 | J2: =AVERAGE(F_Inputs!I40:I51) -> 129.8666667 | K2: =AVERAGE(F_Inputs!J40:J51) -> 134.0416667
F3: Conversion factor for business plan totex from 22-23 real to nominal | I3: =I2/$I$2 -> 1 | J3: =J2/$I$2 -> 1.055469015 | K3: 1.08940061
D4: Data before override
B5: B0143TAWR | C5: B0143TAWR_PR24 | F5: Totex (net of business rates, abstraction licence fees and grants and contributions) - Total actual totex (net of business rates, abstraction licence fees and grants and contributions) - Water resources | G5: =SUMIFS('F_Inputs-APR & PR19'!F:F, 'F_Inputs-APR & PR19'!$A:$A, 'Consolidated actual totex inp'!$E$1, 'F_Inputs-APR & PR19'!$B:$B, 'Consolidated actual totex inp'!$B5) -> 66.795 | H5: =SUMIFS('F_Inputs-APR & PR19'!G:G, 'F_Inputs-APR & PR19'!$A:$A, 'Consolidated actual totex inp'!$E$1, 'F_Inputs-APR & PR19'!$B:$B, 'Consolidated actual totex inp'!$B5) -> 80.704 | I5: =SUMIFS(F_Inputs!H:H, F_Inputs!$A:$A, 'Consolidated actual totex inp'!$E$1, F_Inputs!$B:$B, 'Consolidated actual totex inp'!$C5)*'Consolidated actual totex inp'!I$3 -> 78.869 | J5: =SUMIFS(F_Inputs!I:I, F_Inputs!$A:$A, 'Consolidated actual totex inp'!$E$1, F_Inputs!$B:$B, 'Consolidated actual totex inp'!$C5)*'Consolidated actual totex inp'!J$3 -> 72.33476585 | K5: =SUMIFS(F_Inputs!J:J, F_Inputs!$A:$A, 'Consolidated actual totex inp'!$E$1, F_Inputs!$B:$B, 'Consolidated actual totex inp'!$C5)*'Consolidated actual totex inp'!K$3 -> 76.32299835
B6: B0143TAWNP | C6: B0143TAWNP_PR24 | F6: Totex (net of business rates, abstraction licence fees and grants and contributions) - Total actual totex (net of business rates, abstraction licence fees and grants and contributions) - Water network plus | G6: =SUMIFS('F_Inputs-APR & PR19'!F:F, 'F_Inputs-APR & PR19'!$A:$A, 'Consolidated actual totex inp'!$E$1, 'F_Inputs-APR & PR19'!$B:$B, 'Consolidated actual totex inp'!$B6) -> 809.001 | H6: =SUMIFS('F_Inputs-APR & PR19'!G:G, 'F_Inputs-APR & PR19'!$A:$A, 'Consolidated actual totex inp'!$E$1, 'F_Inputs-APR & PR19'!$B:$B, 'Consolidated actual totex inp'!$B6) -> 867.498 | I6: =SUMIFS(F_Inputs!H:H, F_Inputs!$A:$A, 'Consolidated actual totex inp'!$E$1, F_Inputs!$B:$B, 'Consolidated actual totex inp'!$C6)*'Consolidated actual totex inp'!I$3 -> 1015.163538 | J6: =SUMIFS(F_Inputs!I:I, F_Inputs!$A:$A, 'Consolidated actual totex inp'!$E$1, F_Inputs!$B:$B, 'Consolidated actual totex inp'!$C6)*'Consolidated actual totex inp'!J$3 -> 1036.290854 | K6: =SUMIFS(F_Inputs!J:J, F_Inputs!$A:$A, 'Consolidated actual totex inp'!$E$1, F_Inputs!$B:$B, 'Consolidated actual totex inp'!$C6)*'Consolidated actual totex inp'!K$3 -> 961.9881876
B7: B0143TAWWNP | C7: B0143TAWWNP_PR24 | F7: Totex (net of business rates, abstraction licence fees and grants and contributions) - Total actual totex (net of business rates, abstraction licence fees and grants and contributions) - Wastewater network plus | G7: =SUMIFS('F_Inputs-APR & PR19'!F:F, 'F_Inputs-APR & PR19'!$A:$A, 'Consolidated actual totex inp'!$E$1, 'F_Inputs-APR & PR19'!$B:$B, 'Consolidated actual totex inp'!$B7) -> 633.156 | H7: =SUMIFS('F_Inputs-APR & PR19'!G:G, 'F_Inputs-APR & PR19'!$A:$A, 'Consolidated actual totex inp'!$E$1, 'F_Inputs-APR & PR19'!$B:$B, 'Consolidated actual totex inp'!$B7) -> 748.559 | I7: =SUMIFS(F_Inputs!H:H, F_Inputs!$A:$A, 'Consolidated actual totex inp'!$E$1, F_Inputs!$B:$B, 'Consolidated actual totex inp'!$C7)*'Consolidated actual totex inp'!I$3 -> 944.791 | J7: =SUMIFS(F_Inputs!I:I, F_Inputs!$A:$A, 'Consolidated actual totex inp'!$E$1, F_Inputs!$B:$B, 'Consolidated actual totex inp'!$C7)*'Consolidated actual totex inp'!J$3 -> 1185.521561 | K7: =SUMIFS(F_Inputs!J:J, F_Inputs!$A:$A, 'Consolidated actual totex inp'!$E$1, F_Inputs!$B:$B, 'Consolidated actual totex inp'!$C7)*'Consolidated actual totex inp'!K$3 -> 1266.030148
B8: B0143TATTTH | C8: B0143TATTTH_PR24 | F8: Totex (net of business rates, abstraction licence fees and grants and contributions) - Total actual totex (net of business rates, abstraction licence fees and grants and contributions) - Additional Control | G8: =SUMIFS('F_Inputs-APR & PR19'!F:F, 'F_Inputs-APR & PR19'!$A:$A, 'Consolidated actual totex inp'!$E$1, 'F_Inputs-APR & PR19'!$B:$B, 'Consolidated actual totex inp'!$B8) -> 19.249 | H8: =SUMIFS('F_Inputs-APR & PR19'!G:G, 'F_Inputs-APR & PR19'!$A:$A, 'Consolidated actual totex inp'!$E$1, 'F_Inputs-APR & PR19'!$B:$B, 'Consolidated actual totex inp'!$B8) -> 29.329 | I8: =SUMIFS(F_Inputs!H:H, F_Inputs!$A:$A, 'Consolidated actual totex inp'!$E$1, F_Inputs!$B:$B, 'Consolidated actual totex inp'!$C8)*'Consolidated actual totex inp'!I$3 -> 33.324 | J8: =SUMIFS(F_Inputs!I:I, F_Inputs!$A:$A, 'Consolidated actual totex inp'!$E$1, F_Inputs!$B:$B, 'Consolidated actual totex inp'!$C8)*'Consolidated actual totex inp'!J$3 -> 31.92829304 | K8: =SUMIFS(F_Inputs!J:J, F_Inputs!$A:$A, 'Consolidated actual totex inp'!$E$1, F_Inputs!$B:$B, 'Consolidated actual totex inp'!$C8)*'Consolidated actual totex inp'!K$3 -> 28.42274419
B9: WS01008WR | C9: PD9_08WR_PR24 | F9: Totex - business rates and abstraction licence fees - Actual totex - business rates - Water resources | G9: =SUMIFS('F_Inputs-APR & PR19'!F:F, 'F_Inputs-APR & PR19'!$A:$A, 'Consolidated actual totex inp'!$E$1, 'F_Inputs-APR & PR19'!$B:$B, 'Consolidated actual totex inp'!$B9) -> 3.807 | H9: =SUMIFS('F_Inputs-APR & PR19'!G:G, 'F_Inputs-APR & PR19'!$A:$A, 'Consolidated actual totex inp'!$E$1, 'F_Inputs-APR & PR19'!$B:$B, 'Consolidated actual totex inp'!$B9) -> 4.752 | I9: =SUMIFS(F_Inputs!H:H, F_Inputs!$A:$A, 'Consolidated actual totex inp'!$E$1, F_Inputs!$B:$B, 'Consolidated actual totex inp'!$C9)*'Consolidated actual totex inp'!I$3 -> 3.324 | J9: =SUMIFS(F_Inputs!I:I, F_Inputs!$A:$A, 'Consolidated actual totex inp'!$E$1, F_Inputs!$B:$B, 'Consolidated actual totex inp'!$C9)*'Consolidated actual totex inp'!J$3 -> 3.721179182 | K9: =SUMIFS(F_Inputs!J:J, F_Inputs!$A:$A, 'Consolidated actual totex inp'!$E$1, F_Inputs!$B:$B, 'Consolidated actual totex inp'!$C9)*'Consolidated actual totex inp'!K$3 -> 3.605094392
B10: BM317WN | C10: PD9_08WNP_PR24 | F10: Totex - business rates and abstraction licence fees - Actual totex - business rates - Water network plus | G10: =SUMIFS('F_Inputs-APR & PR19'!F:F, 'F_Inputs-APR & PR19'!$A:$A, 'Consolidated actual totex inp'!$E$1, 'F_Inputs-APR & PR19'!$B:$B, 'Consolidated actual totex inp'!$B10) -> 79.034 | H10: =SUMIFS('F_Inputs-APR & PR19'!G:G, 'F_Inputs-APR & PR19'!$A:$A, 'Consolidated actual totex inp'!$E$1, 'F_Inputs-APR & PR19'!$B:$B, 'Consolidated actual totex inp'!$B10) -> 49.743 | I10: =SUMIFS(F_Inputs!H:H, F_Inputs!$A:$A, 'Consolidated actual totex inp'!$E$1, F_Inputs!$B:$B, 'Consolidated actual totex inp'!$C10)*'Consolidated actual totex inp'!I$3 -> 68 | J10: =SUMIFS(F_Inputs!I:I, F_Inputs!$A:$A, 'Consolidated actual totex inp'!$E$1, F_Inputs!$B:$B, 'Consolidated actual totex inp'!$C10)*'Consolidated actual totex inp'!J$3 -> 77.24250706 | K10: =SUMIFS(F_Inputs!J:J, F_Inputs!$A:$A, 'Consolidated actual totex inp'!$E$1, F_Inputs!$B:$B, 'Consolidated actual totex inp'!$C10)*'Consolidated actual totex inp'!K$3 -> 73.48792412
B11: BM817WNK | C11: PD9_08WWNP_PR24 | F11: Totex - business rates and abstraction licence fees - Actual totex - business rates - Wastewater network plus | G11: =SUMIFS('F_Inputs-APR & PR19'!F:F, 'F_Inputs-APR & PR19'!$A:$A, 'Consolidated actual totex inp'!$E$1, 'F_Inputs-APR & PR19'!$B:$B, 'Consolidated actual totex inp'!$B11) -> 37.65 | H11: =SUMIFS('F_Inputs-APR & PR19'!G:G, 'F_Inputs-APR & PR19'!$A:$A, 'Consolidated actual totex inp'!$E$1, 'F_Inputs-APR & PR19'!$B:$B, 'Consolidated actual totex inp'!$B11) -> 25.771 | I11: =SUMIFS(F_Inputs!H:H, F_Inputs!$A:$A, 'Consolidated actual totex inp'!$E$1, F_Inputs!$B:$B, 'Consolidated actual totex inp'!$C11)*'Consolidated actual totex inp'!I$3 -> 43.67 | J11: =SUMIFS(F_Inputs!I:I, F_Inputs!$A:$A, 'Consolidated actual totex inp'!$E$1, F_Inputs!$B:$B, 'Consolidated actual totex inp'!$C11)*'Consolidated actual totex inp'!J$3 -> 46.58483734 | K11: =SUMIFS(F_Inputs!J:J, F_Inputs!$A:$A, 'Consolidated actual totex inp'!$E$1, F_Inputs!$B:$B, 'Consolidated actual totex inp'!$C11)*'Consolidated actual totex inp'!K$3 -> 49.87030575
B12: BM817SG | C12: PD9_08BIO_PR24 | F12: Totex - business rates and abstraction licence fees - Actual totex - business rates - Bioresources | G12: =SUMIFS('F_Inputs-APR & PR19'!F:F, 'F_Inputs-APR & PR19'!$A:$A, 'Consolidated actual totex inp'!$E$1, 'F_Inputs-APR & PR19'!$B:$B, 'Consolidated actual totex inp'!$B12) -> 0.477 | H12: =SUMIFS('F_Inputs-APR & PR19'!G:G, 'F_Inputs-APR & PR19'!$A:$A, 'Consolidated actual totex inp'!$E$1, 'F_Inputs-APR & PR19'!$B:$B, 'Consolidated actual totex inp'!$B12) -> 6.335 | I12: =SUMIFS(F_Inputs!H:H, F_Inputs!$A:$A, 'Consolidated actual totex inp'!$E$1, F_Inputs!$B:$B, 'Consolidated actual totex inp'!$C12)*'Consolidated actual totex inp'!I$3 -> 0.499 | J12: =SUMIFS(F_Inputs!I:I, F_Inputs!$A:$A, 'Consolidated actual totex inp'!$E$1, F_Inputs!$B:$B, 'Consolidated actual totex inp'!$C12)*'Consolidated actual totex inp'!J$3 -> 0.5147163885 | K12: =SUMIFS(F_Inputs!J:J, F_Inputs!$A:$A, 'Consolidated actual totex inp'!$E$1, F_Inputs!$B:$B, 'Consolidated actual totex inp'!$C12)*'Consolidated actual totex inp'!K$3 -> 0.5880153959
B13: BM817TTT | C13: PD9_08ADDN1_PR24 | F13: Totex - business rates and abstraction licence fees - Actual totex - business rates - Additional Control | G13: =SUMIFS('F_Inputs-APR & PR19'!F:F, 'F_Inputs-APR & PR19'!$A:$A, 'Consolidated actual totex inp'!$E$1, 'F_Inputs-APR & PR19'!$B:$B, 'Consolidated actual totex inp'!$B13) -> 0 | H13: =SUMIFS('F_Inputs-APR & PR19'!G:G, 'F_Inputs-APR & PR19'!$A:$A, 'Consolidated actual totex inp'!$E$1, 'F_Inputs-APR & PR19'!$B:$B, 'Consolidated actual totex inp'!$B13) -> 0 | I13: =SUMIFS(F_Inputs!H:H, F_Inputs!$A:$A, 'Consolidated actual totex inp'!$E$1, F_Inputs!$B:$B, 'Consolidated actual totex inp'!$C13)*'Consolidated actual totex inp'!I$3 -> 0 | J13: =SUMIFS(F_Inputs!I:I, F_Inputs!$A:$A, 'Consolidated actual totex inp'!$E$1, F_Inputs!$B:$B, 'Consolidated actual totex inp'!$C13)*'Consolidated actual totex inp'!J$3 -> 0 | K13: =SUMIFS(F_Inputs!J:J, F_Inputs!$A:$A, 'Consolidated actual totex inp'!$E$1, F_Inputs!$B:$B, 'Consolidated actual totex inp'!$C13)*'Consolidated actual totex inp'!K$3 -> 0
B14: B0012WR | C14: PD9_10WR_PR24 | F14: Totex - business rates and abstraction licence fees - Actual totex - abstraction licence fees - Water resources | G14: =SUMIFS('F_Inputs-APR & PR19'!F:F, 'F_Inputs-APR & PR19'!$A:$A, 'Consolidated actual totex inp'!$E$1, 'F_Inputs-APR & PR19'!$B:$B, 'Consolidated actual totex inp'!$B14) -> 17.129 | H14: =SUMIFS('F_Inputs-APR & PR19'!G:G, 'F_Inputs-APR & PR19'!$A:$A, 'Consolidated actual totex inp'!$E$1, 'F_Inputs-APR & PR19'!$B:$B, 'Consolidated actual totex inp'!$B14) -> 17.003 | I14: =SUMIFS(F_Inputs!H:H, F_Inputs!$A:$A, 'Consolidated actual totex inp'!$E$1, F_Inputs!$B:$B, 'Consolidated actual totex inp'!$C14)*'Consolidated actual totex inp'!I$3 -> 23.579 | J14: =SUMIFS(F_Inputs!I:I, F_Inputs!$A:$A, 'Consolidated actual totex inp'!$E$1, F_Inputs!$B:$B, 'Consolidated actual totex inp'!$C14)*'Consolidated actual totex inp'!J$3 -> 25.04185356 | K14: =SUMIFS(F_Inputs!J:J, F_Inputs!$A:$A, 'Consolidated actual totex inp'!$E$1, F_Inputs!$B:$B, 'Consolidated actual totex inp'!$C14)*'Consolidated actual totex inp'!K$3 -> 23.57461725
B15: B0012WN | C15: PD9_10WNP_PR24 | F15: Totex - business rates and abstraction licence fees - Actual totex - abstraction licence fees - Water network plus | G15: =SUMIFS('F_Inputs-APR & PR19'!F:F, 'F_Inputs-APR & PR19'!$A:$A, 'Consolidated actual totex inp'!$E$1, 'F_Inputs-APR & PR19'!$B:$B, 'Consolidated actual totex inp'!$B15) -> 0 | H15: =SUMIFS('F_Inputs-APR & PR19'!G:G, 'F_Inputs-APR & PR19'!$A:$A, 'Consolidated actual totex inp'!$E$1, 'F_Inputs-APR & PR19'!$B:$B, 'Consolidated actual totex inp'!$B15) -> 0 | I15: =SUMIFS(F_Inputs!H:H, F_Inputs!$A:$A, 'Consolidated actual totex inp'!$E$1, F_Inputs!$B:$B, 'Consolidated actual totex inp'!$C15)*'Consolidated actual totex inp'!I$3 -> 0 | J15: =SUMIFS(F_Inputs!I:I, F_Inputs!$A:$A, 'Consolidated actual totex inp'!$E$1, F_Inputs!$B:$B, 'Consolidated actual totex inp'!$C15)*'Consolidated actual totex inp'!J$3 -> 0 | K15: =SUMIFS(F_Inputs!J:J, F_Inputs!$A:$A, 'Consolidated actual totex inp'!$E$1, F_Inputs!$B:$B, 'Consolidated actual totex inp'!$C15)*'Consolidated actual totex inp'!K$3 -> 0
B16: B0413TGTE_WR | C16: B0413TGTE_WR_PR24 | F16: Green recovery programme - Total green recovery programme expenditure - Totex - Water resources - Expenditure in report year | G16: =SUMIFS('F_Inputs-APR & PR19'!F:F, 'F_Inputs-APR & PR19'!$A:$A, 'Consolidated actual totex inp'!$E$1, 'F_Inputs-APR & PR19'!$B:$B, 'Consolidated actual totex inp'!$B16) -> 0 | H16: =SUMIFS('F_Inputs-APR & PR19'!G:G, 'F_Inputs-APR & PR19'!$A:$A, 'Consolidated actual totex inp'!$E$1, 'F_Inputs-APR & PR19'!$B:$B, 'Consolidated actual totex inp'!$B16) -> 0 | I16: =SUMIFS(F_Inputs!H:H, F_Inputs!$A:$A, 'Consolidated actual totex inp'!$E$1, F_Inputs!$B:$B, 'Consolidated actual totex inp'!$C16)*'Consolidated actual totex inp'!I$3 -> 0 | J16: =SUMIFS(F_Inputs!I:I, F_Inputs!$A:$A, 'Consolidated actual totex inp'!$E$1, F_Inputs!$B:$B, 'Consolidated actual totex inp'!$C16)*'Consolidated actual totex inp'!J$3 -> 0 | K16: =SUMIFS(F_Inputs!J:J, F_Inputs!$A:$A, 'Consolidated actual totex inp'!$E$1, F_Inputs!$B:$B, 'Consolidated actual totex inp'!$C16)*'Consolidated actual totex inp'!K$3 -> 0
B17: B0420TGTE_RW | C17: B0420TGTE_RW_PR24 | F17: Green recovery programme - Total green recovery programme expenditure - Totex - Raw water transport - Water network+ - Expenditure in report year | G17: =SUMIFS('F_Inputs-APR & PR19'!F:F, 'F_Inputs-APR & PR19'!$A:$A, 'Consolidated actual totex inp'!$E$1, 'F_Inputs-APR & PR19'!$B:$B, 'Consolidated actual totex inp'!$B17) -> 0 | H17: =SUMIFS('F_Inputs-APR & PR19'!G:G, 'F_Inputs-APR & PR19'!$A:$A, 'Consolidated actual totex inp'!$E$1, 'F_Inputs-APR & PR19'!$B:$B, 'Consolidated actual totex inp'!$B17) -> 0 | I17: =SUMIFS(F_Inputs!H:H, F_Inputs!$A:$A, 'Consolidated actual totex inp'!$E$1, F_Inputs!$B:$B, 'Consolidated actual totex inp'!$C17)*'Consolidated actual totex inp'!I$3 -> 0 | J17: =SUMIFS(F_Inputs!I:I, F_Inputs!$A:$A, 'Consolidated actual totex inp'!$E$1, F_Inputs!$B:$B, 'Consolidated actual totex inp'!$C17)*'Consolidated actual totex inp'!J$3 -> 0 | K17: =SUMIFS(F_Inputs!J:J, F_Inputs!$A:$A, 'Consolidated actual totex inp'!$E$1, F_Inputs!$B:$B, 'Consolidated actual totex inp'!$C17)*'Consolidated actual totex inp'!K$3 -> 0
B18: B0427TGTE_SW | C18: B0427TGTE_SW_PR24 | F18: Green recovery programme - Total green recovery programme expenditure - Totex - Raw water storage - Water network+ - Expenditure in report year | G18: =SUMIFS('F_Inputs-APR & PR19'!F:F, 'F_Inputs-APR & PR19'!$A:$A, 'Consolidated actual totex inp'!$E$1, 'F_Inputs-APR & PR19'!$B:$B, 'Consolidated actual totex inp'!$B18) -> 0 | H18: =SUMIFS('F_Inputs-APR & PR19'!G:G, 'F_Inputs-APR & PR19'!$A:$A, 'Consolidated actual totex inp'!$E$1, 'F_Inputs-APR & PR19'!$B:$B, 'Consolidated actual totex inp'!$B18) -> 0 | I18: =SUMIFS(F_Inputs!H:H, F_Inputs!$A:$A, 'Consolidated actual totex inp'!$E$1, F_Inputs!$B:$B, 'Consolidated actual totex inp'!$C18)*'Consolidated actual totex inp'!I$3 -> 0 | J18: =SUMIFS(F_Inputs!I:I, F_Inputs!$A:$A, 'Consolidated actual totex inp'!$E$1, F_Inputs!$B:$B, 'Consolidated actual totex inp'!$C18)*'Consolidated actual totex inp'!J$3 -> 0 | K18: =SUMIFS(F_Inputs!J:J, F_Inputs!$A:$A, 'Consolidated actual totex inp'!$E$1, F_Inputs!$B:$B, 'Consolidated actual totex inp'!$C18)*'Consolidated actual totex inp'!K$3 -> 0
B19: B0434TGTE_TW | C19: B0434TGTE_TW_PR24 | F19: Green recovery programme - Total green recovery programme expenditure - Totex - Water treatment - Water network+ - Expenditure in report year | G19: =SUMIFS('F_Inputs-APR & PR19'!F:F, 'F_Inputs-APR & PR19'!$A:$A, 'Consolidated actual totex inp'!$E$1, 'F_Inputs-APR & PR19'!$B:$B, 'Consolidated actual totex inp'!$B19) -> 0 | H19: =SUMIFS('F_Inputs-APR & PR19'!G:G, 'F_Inputs-APR & PR19'!$A:$A, 'Consolidated actual totex inp'!$E$1, 'F_Inputs-APR & PR19'!$B:$B, 'Consolidated actual totex inp'!$B19) -> 0 | I19: =SUMIFS(F_Inputs!H:H, F_Inputs!$A:$A, 'Consolidated actual totex inp'!$E$1, F_Inputs!$B:$B, 'Consolidated actual totex inp'!$C19)*'Consolidated actual totex inp'!I$3 -> 0 | J19: =SUMIFS(F_Inputs!I:I, F_Inputs!$A:$A, 'Consolidated actual totex inp'!$E$1, F_Inputs!$B:$B, 'Consolidated actual totex inp'!$C19)*'Consolidated actual totex inp'!J$3 -> 0 | K19: =SUMIFS(F_Inputs!J:J, F_Inputs!$A:$A, 'Consolidated actual totex inp'!$E$1, F_Inputs!$B:$B, 'Consolidated actual totex inp'!$C19)*'Consolidated actual totex inp'!K$3 -> 0
B20: B0441TGTE_DW | C20: B0441TGTE_DW_PR24 | F20: Green recovery programme - Total green recovery programme expenditure - Totex - Treated water distribution - Water network+ - Expenditure in report year | G20: =SUMIFS('F_Inputs-APR & PR19'!F:F, 'F_Inputs-APR & PR19'!$A:$A, 'Consolidated actual totex inp'!$E$1, 'F_Inputs-APR & PR19'!$B:$B, 'Consolidated actual totex inp'!$B20) -> 0 | H20: =SUMIFS('F_Inputs-APR & PR19'!G:G, 'F_Inputs-APR & PR19'!$A:$A, 'Consolidated actual totex inp'!$E$1, 'F_Inputs-APR & PR19'!$B:$B, 'Consolidated actual totex inp'!$B20) -> 0 | I20: =SUMIFS(F_Inputs!H:H, F_Inputs!$A:$A, 'Consolidated actual totex inp'!$E$1, F_Inputs!$B:$B, 'Consolidated actual totex inp'!$C20)*'Consolidated actual totex inp'!I$3 -> 0 | J20: =SUMIFS(F_Inputs!I:I, F_Inputs!$A:$A, 'Consolidated actual totex inp'!$E$1, F_Inputs!$B:$B, 'Consolidated actual totex inp'!$C20)*'Consolidated actual totex inp'!J$3 -> 0 | K20: =SUMIFS(F_Inputs!J:J, F_Inputs!$A:$A, 'Consolidated actual totex inp'!$E$1, F_Inputs!$B:$B, 'Consolidated actual totex inp'!$C20)*'Consolidated actual totex inp'!K$3 -> 0
B21: B0513TGTE_FOW | C21: B0513TGTE_FOW_PR24 | F21: Green recovery programme - Total green recovery programme expenditure - Totex - Foul - Wastewater network+ - Expenditure in report year | G21: =SUMIFS('F_Inputs-APR & PR19'!F:F, 'F_Inputs-APR & PR19'!$A:$A, 'Consolidated actual totex inp'!$E$1, 'F_Inputs-APR & PR19'!$B:$B, 'Consolidated actual totex inp'!$B21) -> 0 | H21: =SUMIFS('F_Inputs-APR & PR19'!G:G, 'F_Inputs-APR & PR19'!$A:$A, 'Consolidated actual totex inp'!$E$1, 'F_Inputs-APR & PR19'!$B:$B, 'Consolidated actual totex inp'!$B21) -> 0 | I21: =SUMIFS(F_Inputs!H:H, F_Inputs!$A:$A, 'Consolidated actual totex inp'!$E$1, F_Inputs!$B:$B, 'Consolidated actual totex inp'!$C21)*'Consolidated actual totex inp'!I$3 -> 0 | J21: =SUMIFS(F_Inputs!I:I, F_Inputs!$A:$A, 'Consolidated actual totex inp'!$E$1, F_Inputs!$B:$B, 'Consolidated actual totex inp'!$C21)*'Consolidated actual totex inp'!J$3 -> 0 | K21: =SUMIFS(F_Inputs!J:J, F_Inputs!$A:$A, 'Consolidated actual totex inp'!$E$1, F_Inputs!$B:$B, 'Consolidated actual totex inp'!$C21)*'Consolidated actual totex inp'!K$3 -> 0
B22: B0520TGTE_SUW | C22: B0520TGTE_SUW_PR24 | F22: Green recovery programme - Total green recovery programme expenditure - Totex - Surface water drainage - Wastewater network+ - Expenditure in report year | G22: =SUMIFS('F_Inputs-APR & PR19'!F:F, 'F_Inputs-APR & PR19'!$A:$A, 'Consolidated actual totex inp'!$E$1, 'F_Inputs-APR & PR19'!$B:$B, 'Consolidated actual totex inp'!$B22) -> 0 | H22: =SUMIFS('F_Inputs-APR & PR19'!G:G, 'F_Inputs-APR & PR19'!$A:$A, 'Consolidated actual totex inp'!$E$1, 'F_Inputs-APR & PR19'!$B:$B, 'Consolidated actual totex inp'!$B22) -> 0 | I22: =SUMIFS(F_Inputs!H:H, F_Inputs!$A:$A, 'Consolidated actual totex inp'!$E$1, F_Inputs!$B:$B, 'Consolidated actual totex inp'!$C22)*'Consolidated actual totex inp'!I$3 -> 0 | J22: =SUMIFS(F_Inputs!I:I, F_Inputs!$A:$A, 'Consolidated actual totex inp'!$E$1, F_Inputs!$B:$B, 'Consolidated actual totex inp'!$C22)*'Consolidated actual totex inp'!J$3 -> 0 | K22: =SUMIFS(F_Inputs!J:J, F_Inputs!$A:$A, 'Consolidated actual totex inp'!$E$1, F_Inputs!$B:$B, 'Consolidated actual totex inp'!$C22)*'Consolidated actual totex inp'!K$3 -> 0
B23: B0527TGTE_HDW | C23: B0527TGTE_HDW_PR24 | F23: Green recovery programme - Total green recovery programme expenditure - Totex - Highway drainage - Wastewater network+ - Expenditure in report year | G23: =SUMIFS('F_Inputs-APR & PR19'!F:F, 'F_Inputs-APR & PR19'!$A:$A, 'Consolidated actual totex inp'!$E$1, 'F_Inputs-APR & PR19'!$B:$B, 'Consolidated actual totex inp'!$B23) -> 0 | H23: =SUMIFS('F_Inputs-APR & PR19'!G:G, 'F_Inputs-APR & PR19'!$A:$A, 'Consolidated actual totex inp'!$E$1, 'F_Inputs-APR & PR19'!$B:$B, 'Consolidated actual totex inp'!$B23) -> 0 | I23: =SUMIFS(F_Inputs!H:H, F_Inputs!$A:$A, 'Consolidated actual totex inp'!$E$1, F_Inputs!$B:$B, 'Consolidated actual totex inp'!$C23)*'Consolidated actual totex inp'!I$3 -> 0 | J23: =SUMIFS(F_Inputs!I:I, F_Inputs!$A:$A, 'Consolidated actual totex inp'!$E$1, F_Inputs!$B:$B, 'Consolidated actual totex inp'!$C23)*'Consolidated actual totex inp'!J$3 -> 0 | K23: =SUMIFS(F_Inputs!J:J, F_Inputs!$A:$A, 'Consolidated actual totex inp'!$E$1, F_Inputs!$B:$B, 'Consolidated actual totex inp'!$C23)*'Consolidated actual totex inp'!K$3 -> 0
B24: B0534TGTE_STW | C24: B0534TGTE_STW_PR24 | F24: Green recovery programme - Total green recovery programme expenditure - Totex - Sewage treatment and disposal - Wastewater network+ - Expenditure in report year | G24: =SUMIFS('F_Inputs-APR & PR19'!F:F, 'F_Inputs-APR & PR19'!$A:$A, 'Consolidated actual totex inp'!$E$1, 'F_Inputs-APR & PR19'!$B:$B, 'Consolidated actual totex inp'!$B24) -> 0 | H24: =SUMIFS('F_Inputs-APR & PR19'!G:G, 'F_Inputs-APR & PR19'!$A:$A, 'Consolidated actual totex inp'!$E$1, 'F_Inputs-APR & PR19'!$B:$B, 'Consolidated actual totex inp'!$B24) -> 0 | I24: =SUMIFS(F_Inputs!H:H, F_Inputs!$A:$A, 'Consolidated actual totex inp'!$E$1, F_Inputs!$B:$B, 'Consolidated actual totex inp'!$C24)*'Consolidated actual totex inp'!I$3 -> 0 | J24: =SUMIFS(F_Inputs!I:I, F_Inputs!$A:$A, 'Consolidated actual totex inp'!$E$1, F_Inputs!$B:$B, 'Consolidated actual totex inp'!$C24)*'Consolidated actual totex inp'!J$3 -> 0 | K24: =SUMIFS(F_Inputs!J:J, F_Inputs!$A:$A, 'Consolidated actual totex inp'!$E$1, F_Inputs!$B:$B, 'Consolidated actual totex inp'!$C24)*'Consolidated actual totex inp'!K$3 -> 0
B25: B0541TGTE_SLW | C25: B0541TGTE_SLW_PR24 | F25: Green recovery programme - Total green recovery programme expenditure - Totex - Sludge liquor treatment - Wastewater network+ - Expenditure in report year | G25: =SUMIFS('F_Inputs-APR & PR19'!F:F, 'F_Inputs-APR & PR19'!$A:$A, 'Consolidated actual totex inp'!$E$1, 'F_Inputs-APR & PR19'!$B:$B, 'Consolidated actual totex inp'!$B25) -> 0 | H25: =SUMIFS('F_Inputs-APR & PR19'!G:G, 'F_Inputs-APR & PR19'!$A:$A, 'Consolidated actual totex inp'!$E$1, 'F_Inputs-APR & PR19'!$B:$B, 'Consolidated actual totex inp'!$B25) -> 0 | I25: =SUMIFS(F_Inputs!H:H, F_Inputs!$A:$A, 'Consolidated actual totex inp'!$E$1, F_Inputs!$B:$B, 'Consolidated actual totex inp'!$C25)*'Consolidated actual totex inp'!I$3 -> 0 | J25: =SUMIFS(F_Inputs!I:I, F_Inputs!$A:$A, 'Consolidated actual totex inp'!$E$1, F_Inputs!$B:$B, 'Consolidated actual totex inp'!$C25)*'Consolidated actual totex inp'!J$3 -> 0 | K25: =SUMIFS(F_Inputs!J:J, F_Inputs!$A:$A, 'Consolidated actual totex inp'!$E$1, F_Inputs!$B:$B, 'Consolidated actual totex inp'!$C25)*'Consolidated actual totex inp'!K$3 -> 0
C26: PD9_12WR_PR24 | F26: CMA companies only – items excluded from general cost sharing with bespoke sharing rates - Actual totex – items with bespoke sharing rates - Water resources | I26: =SUMIF(F_Inputs!$B:$B, 'Consolidated actual totex inp'!$C26, F_Inputs!H:H)*'Consolidated actual totex inp'!I$3 -> 0 | J26: =SUMIF(F_Inputs!$B:$B, 'Consolidated actual totex inp'!$C26, F_Inputs!I:I)*'Consolidated actual totex inp'!J$3 -> 0 | K26: =SUMIF(F_Inputs!$B:$B, 'Consolidated actual totex inp'!$C26, F_Inputs!J:J)*'Consolidated actual totex inp'!K$3 -> 0
C27: PD9_12WNP_PR24 | F27: CMA companies only – items excluded from general cost sharing with bespoke sharing rates - Actual totex – items with bespoke sharing rates - Water network plus | I27: =SUMIF(F_Inputs!$B:$B, 'Consolidated actual totex inp'!$C27, F_Inputs!H:H)*'Consolidated actual totex inp'!I$3 -> 25.98146158 | J27: =SUMIF(F_Inputs!$B:$B, 'Consolidated actual totex inp'!$C27, F_Inputs!I:I)*'Consolidated actual totex inp'!J$3 -> 162.1226982 | K27: =SUMIF(F_Inputs!$B:$B, 'Consolidated actual totex inp'!$C27, F_Inputs!J:J)*'Consolidated actual totex inp'!K$3 -> 158.0841391
C28: PD9_12WWNP_PR24 | F28: CMA companies only – items excluded from general cost sharing with bespoke sharing rates - Actual totex – items with bespoke sharing rates - Wastewater network plus | I28: =SUMIF(F_Inputs!$B:$B, 'Consolidated actual totex inp'!$C28, F_Inputs!H:H)*'Consolidated actual totex inp'!I$3 -> 0 | J28: =SUMIF(F_Inputs!$B:$B, 'Consolidated actual totex inp'!$C28, F_Inputs!I:I)*'Consolidated actual totex inp'!J$3 -> 0 | K28: =SUMIF(F_Inputs!$B:$B, 'Consolidated actual totex inp'!$C28, F_Inputs!J:J)*'Consolidated actual totex inp'!K$3 -> 0
C29: PD9_12BIO_PR24 | F29: CMA companies only – items excluded from general cost sharing with bespoke sharing rates - Actual totex – items with bespoke sharing rates - Bioresources | I29: =SUMIF(F_Inputs!$B:$B, 'Consolidated actual totex inp'!$C29, F_Inputs!H:H)*'Consolidated actual totex inp'!I$3 -> 0 | J29: =SUMIF(F_Inputs!$B:$B, 'Consolidated actual totex inp'!$C29, F_Inputs!I:I)*'Consolidated actual totex inp'!J$3 -> 0 | K29: =SUMIF(F_Inputs!$B:$B, 'Consolidated actual totex inp'!$C29, F_Inputs!J:J)*'Consolidated actual totex inp'!K$3 -> 0
D31: Data override
F32: Totex (net of business rates, abstraction licence fees and grants and contributions) - Total actual totex (net of business rates, abstraction licence fees and grants and contributions) - Water resources
F33: Totex (net of business rates, abstraction licence fees and grants and contributions) - Total actual totex (net of business rates, abstraction licence fees and grants and contributions) - Water network plus | G33: 807.3366549 | H33: 864.6746406 | I33: =I6+I27 -> 1041.145 | J33: =J6+J27 -> 1198.413552 | K33: =K6+K27 -> 1120.072327 | L33: OFW-OBQ-TMS-131 remove conditional allowances reconciled separately, updated for DD reps forecast
F34: Totex (net of business rates, abstraction licence fees and grants and contributions) - Total actual totex (net of business rates, abstraction licence fees and grants and contributions) - Wastewater network plus
F35: Totex (net of business rates, abstraction licence fees and grants and contributions) - Total actual totex (net of business rates, abstraction licence fees and grants and contributions) - Additional Control
F36: Totex - business rates and abstraction licence fees - Actual totex - business rates - Water resources
F37: Totex - business rates and abstraction licence fees - Actual totex - business rates - Water network plus
F38: Totex - business rates and abstraction licence fees - Actual totex - business rates - Wastewater network plus
F39: Totex - business rates and abstraction licence fees - Actual totex - business rates - Bioresources
F40: Totex - business rates and abstraction licence fees - Actual totex - business rates - Additional Control
F41: Totex - business rates and abstraction licence fees - Actual totex - abstraction licence fees - Water resources
F42: Totex - business rates and abstraction licence fees - Actual totex - abstraction licence fees - Water network plus
F43: Green recovery programme - Total green recovery programme expenditure - Totex - Water resources - Expenditure in report year
F44: Green recovery programme - Total green recovery programme expenditure - Totex - Raw water transport - Water network+ - Expenditure in report year
F45: Green recovery programme - Total green recovery programme expenditure - Totex - Raw water storage - Water network+ - Expenditure in report year
F46: Green recovery programme - Total green recovery programme expenditure - Totex - Water treatment - Water network+ - Expenditure in report year
F47: Green recovery programme - Total green recovery programme expenditure - Totex - Treated water distribution - Water network+ - Expenditure in report year | J47: 0 | K47: 0 | L47: OFW-OBQ-TMS-202 Not completing green recovery scheme
F48: Green recovery programme - Total green recovery programme expenditure - Totex - Foul - Wastewater network+ - Expenditure in report year
F49: Green recovery programme - Total green recovery programme expenditure - Totex - Surface water drainage - Wastewater network+ - Expenditure in report year
F50: Green recovery programme - Total green recovery programme expenditure - Totex - Highway drainage - Wastewater network+ - Expenditure in report year
F51: Green recovery programme - Total green recovery programme expenditure - Totex - Sewage treatment and disposal - Wastewater network+ - Expenditure in report year
F52: Green recovery programme - Total green recovery programme expenditure - Totex - Sludge liquor treatment - Wastewater network+ - Expenditure in report year
F53: CMA companies only – items excluded from general cost sharing with bespoke sharing rates - Actual totex – items with bespoke sharing rates - Water resources
F54: CMA companies only – items excluded from general cost sharing with bespoke sharing rates - Actual totex – items with bespoke sharing rates - Water network plus | G54: =G93 -> 1.477 | H54: =H93 -> 2.307 | I54: 2.955106 | J54: 8.320029 | K54: 20.929271 | L54: OFW-OBQ-TMS-131 updated for TMS conditional allowance gate 4 and development costs
F55: CMA companies only – items excluded from general cost sharing with bespoke sharing rates - Actual totex – items with bespoke sharing rates - Wastewater network plus
F56: CMA companies only – items excluded from general cost sharing with bespoke sharing rates - Actual totex – items with bespoke sharing rates - Bioresources
Q57: =24.3766+17.3006 -> 41.6772
D58: Data after override
F59: Totex (net of business rates, abstraction licence fees and grants and contributions) - Total actual totex (net of business rates, abstraction licence fees and grants and contributions) - Water resources | G59: =IF(ISBLANK(G32),G5,G32) -> 66.795 | H59: =IF(ISBLANK(H32),H5,H32) -> 80.704 | I59: =IF(ISBLANK(I32),I5,I32) -> 78.869 | J59: 72.33476585 | K59: 76.32299835 | L59: Net totex for cost sharing reconciliation - WR - Nominal
F60: Totex (net of business rates, abstraction licence fees and grants and contributions) - Total actual totex (net of business rates, abstraction licence fees and grants and contributions) - Water network plus | G60: =IF(ISBLANK(G33),G6,G33) -> 807.3366549 | H60: 864.6746406 | I60: 1041.145 | J60: 1198.413552 | K60: 1120.072327 | L60: Net totex for cost sharing reconciliation - WN - Nominal
F61: Totex (net of business rates, abstraction licence fees and grants and contributions) - Total actual totex (net of business rates, abstraction licence fees and grants and contributions) - Wastewater network plus | G61: =IF(ISBLANK(G34),G7,G34) -> 633.156 | H61: 748.559 | I61: 944.791 | J61: 1185.521561 | K61: 1266.030148 | L61: Net totex for cost sharing reconciliation - WWN - nominal
F62: Totex (net of business rates, abstraction licence fees and grants and contributions) - Total actual totex (net of business rates, abstraction licence fees and grants and contributions) - Additional Control | G62: =IF(ISBLANK(G35),G8,G35) -> 19.249 | H62: 29.329 | I62: 33.324 | J62: 31.92829304 | K62: 28.42274419 | L62: Net totex for cost sharing reconciliation - TTT - nominal
F63: Totex - business rates and abstraction licence fees - Actual totex - business rates - Water resources | G63: =IF(ISBLANK(G36),G9,G36) -> 3.807 | H63: 4.752 | I63: 3.324 | J63: 3.721179182 | K63: 3.605094392 | L63: Business rates - Actual - WR - Nominal
F64: Totex - business rates and abstraction licence fees - Actual totex - business rates - Water network plus | G64: =IF(ISBLANK(G37),G10,G37) -> 79.034 | H64: 49.743 | I64: 68 | J64: 77.24250706 | K64: 73.48792412 | L64: Business rates - Actual - WN - Nominal
F65: Totex - business rates and abstraction licence fees - Actual totex - business rates - Wastewater network plus | G65: =IF(ISBLANK(G38),G11,G38) -> 37.65 | H65: 25.771 | I65: 43.67 | J65: 46.58483734 | K65: 49.87030575 | L65: Business rates - Actual - WWN - Nominal
F66: Totex - business rates and abstraction licence fees - Actual totex - business rates - Bioresources | G66: =IF(ISBLANK(G39),G12,G39) -> 0.477 | H66: 6.335 | I66: 0.499 | J66: 0.5147163885 | K66: 0.5880153959 | L66: Business rates - Actual - BIO - Nominal
F67: Totex - business rates and abstraction licence fees - Actual totex - business rates - Additional Control | G67: =IF(ISBLANK(G40),G13,G40) -> 0 | H67: 0 | I67: 0 | J67: 0 | K67: 0
F68: Totex - business rates and abstraction licence fees - Actual totex - abstraction licence fees - Water resources | G68: =IF(ISBLANK(G41),G14,G41) -> 17.129 | H68: 17.003 | I68: 23.579 | J68: 25.04185356 | K68: 23.57461725 | L68: Abstraction charges - Actual - WR - Nominal
F69: Totex - business rates and abstraction licence fees - Actual totex - abstraction licence fees - Water network plus | G69: =IF(ISBLANK(G42),G15,G42) -> 0 | H69: 0 | I69: 0 | J69: 0 | K69: 0 | L69: Abstraction charges - Actual - WN - Nominal
F70: Green recovery programme - Total green recovery programme expenditure - Totex - Water resources - Expenditure in report year | G70: =IF(ISBLANK(G43),G16,G43) -> 0 | H70: 0 | I70: 0 | J70: 0 | K70: 0 | L70: Actual Green Recovery Expenditure - WR - nominal
F71: Green recovery programme - Total green recovery programme expenditure - Totex - Raw water transport - Water network+ - Expenditure in report year | G71: =IF(ISBLANK(G44),G17,G44) -> 0 | H71: 0 | I71: 0 | J71: 0 | K71: 0 | L71: Actual Green Recovery Expenditure - WN - nominal
F72: Green recovery programme - Total green recovery programme expenditure - Totex - Raw water storage - Water network+ - Expenditure in report year | G72: =IF(ISBLANK(G45),G18,G45) -> 0 | H72: 0 | I72: 0 | J72: 0 | K72: 0 | L72: Actual Green Recovery Expenditure - WN - nominal
F73: Green recovery programme - Total green recovery programme expenditure - Totex - Water treatment - Water network+ - Expenditure in report year | G73: =IF(ISBLANK(G46),G19,G46) -> 0 | H73: 0 | I73: 0 | J73: =IF(ISBLANK(J46),J19,J46) -> 0 | K73: =IF(ISBLANK(K46),K19,K46) -> 0 | L73: Actual Green Recovery Expenditure - WN - nominal
F74: Green recovery programme - Total green recovery programme expenditure - Totex - Treated water distribution - Water network+ - Expenditure in report year | G74: =IF(ISBLANK(G47),G20,G47) -> 0 | H74: 0 | I74: 0 | J74: =IF(ISBLANK(J47),J20,J47) -> 0 | K74: =IF(ISBLANK(K47),K20,K47) -> 0 | L74: Actual Green Recovery Expenditure - WN - nominal
F75: Green recovery programme - Total green recovery programme expenditure - Totex - Foul - Wastewater network+ - Expenditure in report year | G75: =IF(ISBLANK(G48),G21,G48) -> 0 | H75: 0 | I75: 0 | J75: 0 | K75: 0 | L75: Actual Green Recovery Expenditure - WWN - nominal
F76: Green recovery programme - Total green recovery programme expenditure - Totex - Surface water drainage - Wastewater network+ - Expenditure in report year | G76: =IF(ISBLANK(G49),G22,G49) -> 0 | H76: 0 | I76: 0 | J76: 0 | K76: 0 | L76: Actual Green Recovery Expenditure - WWN - nominal
F77: Green recovery programme - Total green recovery programme expenditure - Totex - Highway drainage - Wastewater network+ - Expenditure in report year | G77: =IF(ISBLANK(G50),G23,G50) -> 0 | H77: 0 | I77: 0 | J77: 0 | K77: 0 | L77: Actual Green Recovery Expenditure - WWN - nominal
F78: Green recovery programme - Total green recovery programme expenditure - Totex - Sewage treatment and disposal - Wastewater network+ - Expenditure in report year | G78: =IF(ISBLANK(G51),G24,G51) -> 0 | H78: 0 | I78: 0 | J78: 0 | K78: 0 | L78: Actual Green Recovery Expenditure - WWN - nominal
F79: Green recovery programme - Total green recovery programme expenditure - Totex - Sludge liquor treatment - Wastewater network+ - Expenditure in report year | G79: =IF(ISBLANK(G52),G25,G52) -> 0 | H79: 0 | I79: 0 | J79: 0 | K79: 0 | L79: Actual Green Recovery Expenditure - WWN - nominal
F80: CMA companies only – items excluded from general cost sharing with bespoke sharing rates - Actual totex – items with bespoke sharing rates - Water resources | G80: =IF(ISBLANK(G53),G26,G53) -> 0 | H80: 0 | I80: 0 | J80: 0 | K80: 0 | L80: Actuals for CMA excluded items - WR - nominal
F81: CMA companies only – items excluded from general cost sharing with bespoke sharing rates - Actual totex – items with bespoke sharing rates - Water network plus | G81: =IF(ISBLANK(G54),G27,G54) -> 1.477 | H81: 2.307 | I81: 2.955106 | J81: 8.320029 | K81: 20.929271 | L81: Actuals for CMA excluded items - WN - nominal
F82: CMA companies only – items excluded from general cost sharing with bespoke sharing rates - Actual totex – items with bespoke sharing rates - Wastewater network plus | G82: =IF(ISBLANK(G55),G28,G55) -> 0 | H82: 0 | I82: 0 | J82: 0 | K82: 0 | L82: Actuals for CMA excluded items - WWN - nominal
F83: CMA companies only – items excluded from general cost sharing with bespoke sharing rates - Actual totex – items with bespoke sharing rates - Bioresources | G83: =IF(ISBLANK(G56),G29,G56) -> 0 | H83: 0 | I83: 0 | J83: 0 | K83: 0 | L83: Actuals for CMA excluded items - BIO - nominal
G87: 2020-21 | H87: 2021-22 | I87: 2022-23 | J87: 2023-24 | K87: 2024-25 | L87: total
F88: TMS gated resilience allowance - post efficiency challenge | G88: 0 | H88: 0 | I88: 2.111606 | J88: 7.850029 | K88: 20.929271
F89: Allowed programme costs | G89: 1.477 | H89: 2.293 | I89: 0.957 | J89: 0.498 | K89: 0 | L89: =SUM(G89:K89) -> 5.225
F90: Actual programme costs | G90: 1.477 | H90: 2.321 | I90: 0.73 | J90: 0.442 | K90: 0 | L90: =SUM(G90:K90) -> 4.97
F91: Programme costs underspend/(overspend) | G91: =G89-G90 -> 0 | H91: =H89-H90 -> -0.028 | I91: 0.227 | J91: 0.056 | K91: 0 | L91: =SUM(G91:K91) -> 0.255
F92: 50:50 programme cost sharing rate | G92: =G91*0.5 -> 0 | H92: =H91*0.5 -> -0.014 | I92: 0.1135 | J92: 0.028 | K92: 0 | L92: =SUM(G92:K92) -> 0.1275
F93: Total gated allowance | G93: =G88+G89-G92 -> 1.477 | H93: =H88+H89-H92 -> 2.307 | I93: 2.955106 | J93: 8.320029 | K93: 20.929271

Sheet Non-fountain inputs
A1: =RIGHT(CELL("filename", $A$1), LEN(CELL("filename", $A$1)) - SEARCH("]", CELL("filename", $A$1))) -> 
A2: ASHE - Mean hourly pay, all manufacturing £/h nominal | B2: Earnings and hours worked, industry by two-digit SIC: ASHE Table 4 - Office for National Statistics (ons.gov.uk)
B3: 2019-20 | C3: 2020-21 | D3: 2021-22 | E3: 22-23 | F3: 23-24
B4: 17.06 | C4: 17.54 | D4: 18.14 | E4: 19.68 | F4: 20.81
B5: Final | C5: Final | D5: Final | E5: Final (29/10/24) | F5: Provisional
A7: Allowance for CMA excluded items - 2017-18 prices | C7: 2020-21 | D7: 2021-22 | E7: 2022-23 | F7: 2023-24 | G7: 2024-25
A8: ANH | B8: Allowance for CMA excluded items - WR - real | C8: 0 | D8: 0 | E8: 0 | F8: 0 | G8: 0
A9: ANH | B9: Allowance for CMA excluded items - WN - real | C9: 0 | D9: 0 | E9: 0 | F9: 0 | G9: 0
A10: ANH | B10: Allowance for CMA excluded items - WWN - real | C10: 0 | D10: 0 | E10: 0 | F10: 0 | G10: 0
A11: ANH | B11: Allowance for CMA excluded items - BIO - real | C11: 0 | D11: 0 | E11: 0 | F11: 0 | G11: 0
A12: NES | B12: Allowance for CMA excluded items - WR - real | C12: 0 | D12: 0 | E12: 0 | F12: 0 | G12: 0
A13: NES | B13: Allowance for CMA excluded items - WN - real | C13: 0 | D13: 0 | E13: 0 | F13: 0 | G13: 0
A14: NES | B14: Allowance for CMA excluded items - WWN - real | C14: 0 | D14: 0 | E14: 0 | F14: 0 | G14: 0
A15: NES | B15: Allowance for CMA excluded items - BIO - real | C15: 2.4 | D15: 2.4 | E15: 2.4 | F15: 2.4 | G15: 2.4
A16: YKY | B16: Allowance for CMA excluded items - WR - real | C16: 0 | D16: 0 | E16: 0 | F16: 0 | G16: 0
A17: YKY | B17: Allowance for CMA excluded items - WN - real | C17: 0 | D17: 0 | E17: 0 | F17: 0 | G17: 0
A18: YKY | B18: Allowance for CMA excluded items - WWN - real | C18: 0 | D18: 0 | E18: 0 | F18: 0 | G18: 0
A19: YKY | B19: Allowance for CMA excluded items - BIO - real | C19: 0 | D19: 0 | E19: 0 | F19: 0 | G19: 0
A20: BRL | B20: Allowance for CMA excluded items - WR - real | C20: 0 | D20: 0 | E20: 0 | F20: 0 | G20: 0 | H20: BRL incl CMA redetermination costs as excluded but since these were included in the
A21: BRL | B21: Allowance for CMA excluded items - WN - real | C21: 0 | D21: 0 | E21: 0 | F21: 0 | G21: 0 | H21: CMA's redetermination allowance there is no reconciliation required.
A22: BRL | B22: Allowance for CMA excluded items - WWN - real | C22: 0 | D22: 0 | E22: 0 | F22: 0 | G22: 0
A23: BRL | B23: Allowance for CMA excluded items - BIO - real | C23: 0 | D23: 0 | E23: 0 | F23: 0 | G23: 0
A24: TMS | B24: Allowance for CMA excluded items - WR - real | C24: 0 | D24: 0 | E24: 0 | F24: 0 | G24: 0
A25: TMS | B25: Allowance for CMA excluded items - WN - real | C25: 28.20314628 | D25: 37.33113936 | E25: 40.95097815 | F25: 38.771684 | G25: =40.5430522116383+24.3744+17.3006+2+0.62656 -> 84.84461221 | H25: OFW-OBQ-TMS-131 plus inclusion in year 5 of: - allowance being allowed as AMP8 carryover of mains rehab and trunk mains - clawback of £2m (0.7% of £300m LWICA allowance to represent proportion of £400m shareholder contribution not spent) - £626,560k penalty for non-delivery of green belt schemes
A26: TMS | B26: Allowance for CMA excluded items - WWN - real | C26: 0 | D26: 0 | E26: 0 | F26: 0 | G26: 0
A27: TMS | B27: Allowance for CMA excluded items - BIO - real | C27: 0 | D27: 0 | E27: 0 | F27: 0 | G27: 0
A29: Bespoke cost sharing rates
B30: PR19 | C30: CMA
A31: Cost sharing rates Business rates - Overperformance | B31: 0.25 | C31: 0.1
A32: Cost sharing rates Business rates - Underperformance | B32: 0.25 | C32: 0.1
A33: Cost sharing rates Abstraction - Overperformance | B33: 0.25 | C33: 0.25
A34: Cost sharing rates Abstraction - Underperformance | B34: 0.25 | C34: 0.25
A35: Green Recovery Outperformance Rate | B35: 0.1
A36: Green Recovery Underperformance Rate | B36: 0.5
A38: Weighted average PAYG rates, % | B38: From chapter 4 of companies' PR19 FD or as revised by the CMA
B39: WR | C39: WN+ | D39: WWN+ | E39: BIO | F39: TTT
A40: ANH | B40: 0.7957895305 | C40: 0.5193503583 | D40: 0.4186012921 | E40: 0.8280942436
A41: WSH | B41: 0.574 | C41: 0.551 | D41: 0.554 | E41: 0.629
A42: HDD | B42: 0.705 | C42: 0.713 | D42: 0.472 | E42: 1
A43: NES | B43: 0.9138050499 | C43: 0.5638708227 | D43: 0.3747586099 | E43: 0.4071399239
A44: SVE | B44: 0.71 | C44: 0.612 | D44: 0.568 | E44: 0.388
A45: SWB | B45: 0.783 | C45: 0.588 | D45: 0.519 | E45: 0.757
A46: SRN | B46: 0.528 | C46: 0.482 | D46: 0.413 | E46: 0.522
A47: TMS | B47: 0.548 | C47: 0.438 | D47: 0.473 | E47: 0.385
A48: NWT | B48: 0.762 | C48: 0.716 | D48: 0.473 | E48: 0.542
A49: WSX | B49: 0.641 | C49: 0.722 | D49: 0.403 | E49: 0.73
A50: YKY | B50: 0.8212960663 | C50: 0.755471858 | D50: 0.4542361687 | E50: 0.5821258187
A51: AFW | B51: 0.364 | C51: 0.615
A52: BRL | B52: 0.7897658354 | C52: 0.7393650268
A53: PRT | B53: 0.818 | C53: 0.688
A54: SEW | B54: 0.591 | C54: 0.671
A55: SSC | B55: 0.638 | C55: 0.635
A56: SES | B56: 0.815 | C56: 0.49
A58: Wholesale WACC (Real CPIH)
A59: ANH | B59: 0.0312
A60: NES | B60: 0.0312
A61: YKY | B61: 0.0312
A62: BRL | B62: 0.0329
A63: PRT | B63: 0.0311
A64: SSC | B64: 0.0311
A65: HDD | B65: 0.0292
A66: SRN | B66: 0.0292
A67: SVE | B67: 0.0292
A68: SWB | B68: 0.0292
A69: TMS | B69: 0.0292
A70: UUW | B70: 0.0292
A71: WSH | B71: 0.0292
A72: WSX | B72: 0.0292
A73: AFW | B73: 0.0292
A74: SES | B74: 0.0292
A75: SEW | B75: 0.0292
A77: Financial flows dataset | B77: https://www.ofwat.gov.uk/wp-content/uploads/2023/05/Financial-Flows-Data-Source-new-2022-23v8.xlsx
D78: 2020-21 | E78: 2021-22 | F78: 2022-23 | G78: 2023-24 | H78: 2024-25 | I78: 2020-25
A79: AFW | B79: Totex WR - Allowed totex net of Grants & contributions, abstraction charges & business rates | C79: £m | D79: 33.53656991 | E79: 41.6422875 | F79: 39.31800838 | G79: 44.10503386 | H79: 27.91507909 | I79: =SUM(D79:H79) -> 186.5169787
A80: AFW | B80: Totex WN - Allowed totex net of Grants & contributions, abstraction charges & business rates | C80: £m | D80: 206.8903153 | E80: 204.191971 | F80: 197.8031579 | G80: 181.4462739 | H80: 176.7546259 | I80: =SUM(D80:H80) -> 967.0863439
A81: AFW | B81: Totex WWN - Allowed totex net of Grants & contributions, abstraction charges & business rates | C81: £m | D81: 0 | E81: 0 | F81: 0 | G81: 0 | H81: 0 | I81: 0
A82: AFW | B82: Totex BR - Allowed totex net of Grants & contributions, abstraction charges & business rates | C82: £m | D82: 0 | E82: 0 | F82: 0 | G82: 0 | H82: 0 | I82: 0
A83: AFW | B83: Totex DMMY - Allowed totex net of Grants & contributions, abstraction charges & business rates | C83: £m | D83: 0 | E83: 0 | F83: 0 | G83: 0 | H83: 0 | I83: 0
A84: AFW | B84: WR opex for cost sharing | D84: 0.0516520245 | E84: 0.05454526422 | F84: 0.05546059998 | G84: 0.05305099218 | H84: 0.04383555323
A85: AFW | B85: WR Capex for cost sharing | D85: 0.1281523565 | E85: 0.1687174531 | F85: 0.1553406292 | G85: 0.1834155974 | H85: 0.1058295297
A86: AFW | B86: WN opex for cost sharing | D86: 0.103039817 | E86: 0.1012746145 | F86: 0.09949861299 | G86: 0.1051378718 | H86: 0.1030322278
A87: AFW | B87: WN Capex for cost sharing | D87: 0.1108917689 | E87: 0.1098667922 | F87: 0.1050365447 | G87: 0.08248371453 | H87: 0.07973803564
A88: AFW | B88: WWN opex for cost sharing
A89: AFW | B89: WWN Capex for cost sharing
A90: BRL | B90: Totex WR - Allowed totex net of Grants & contributions, abstraction charges & business rates | C90: £m | D90: 12.13863463 | E90: 11.8120384 | F90: 15.21749071 | G90: 11.56798803 | H90: 11.52774726 | I90: 62.26389903
A91: BRL | B91: Totex WN - Allowed totex net of Grants & contributions, abstraction charges & business rates | C91: £m | D91: 62.61321735 | E91: 61.17227598 | F91: 57.97079528 | G91: 60.34266132 | H91: 60.578193 | I91: 302.6771429
A92: BRL | B92: Totex WWN - Allowed totex net of Grants & contributions, abstraction charges & business rates | C92: £m | D92: 0 | E92: 0 | F92: 0 | G92: 0 | H92: 0 | I92: 0
A93: BRL | B93: Totex BR - Allowed totex net of Grants & contributions, abstraction charges & business rates | C93: £m | D93: 0 | E93: 0 | F93: 0 | G93: 0 | H93: 0 | I93: 0
A94: BRL | B94: Totex DMMY - Allowed totex net of Grants & contributions, abstraction charges & business rates | C94: £m | D94: 0 | E94: 0 | F94: 0 | G94: 0 | H94: 0 | I94: 0
A95: BRL | B95: WR opex for cost sharing | D95: 0.1330032388 | E95: 0.1323003468 | F95: 0.1320897519 | G95: 0.1319641007 | H95: 0.132160543
A96: BRL | B96: WR Capex for cost sharing | D96: 0.06195137891 | E96: 0.05740891632 | F96: 0.1123133605 | G96: 0.0538255497 | H96: 0.05298281352
A97: BRL | B97: WN opex for cost sharing | D97: 0.1179892716 | E97: 0.1163657147 | F97: 0.1157877167 | G97: 0.1152554196 | H97: 0.1153056953
A98: BRL | B98: WN Capex for cost sharing | D98: 0.08887543163 | E98: 0.08573833377 | F98: 0.07573911852 | G98: 0.08410770617 | H98: 0.08483559195
A99: BRL | B99: WWN opex for cost sharing
A100: BRL | B100: WWN Capex for cost sharing
A101: PRT | B101: Totex WR - Allowed totex net of Grants & contributions, abstraction charges & business rates | C101: £m | D101: 5.827219985 | E101: 4.103151819 | F101: 3.778336854 | G101: 5.270445246 | H101: 4.955577784 | I101: 23.93473169
A102: PRT | B102: Totex WN - Allowed totex net of Grants & contributions, abstraction charges & business rates | C102: £m | D102: 27.26519257 | E102: 27.6131638 | F102: 28.04924909 | G102: 26.89996618 | H102: 26.89446684 | I102: 136.7220385
A103: PRT | B103: Totex WWN - Allowed totex net of Grants & contributions, abstraction charges & business rates | C103: £m | D103: 0 | E103: 0 | F103: 0 | G103: 0 | H103: 0 | I103: 0
A104: PRT | B104: Totex BR - Allowed totex net of Grants & contributions, abstraction charges & business rates | C104: £m | D104: 0 | E104: 0 | F104: 0 | G104: 0 | H104: 0 | I104: 0
A105: PRT | B105: Totex DMMY - Allowed totex net of Grants & contributions, abstraction charges & business rates | C105: £m | D105: 10.10622301 | E105: 6.10532867 | F105: 7.099616914 | G105: 17.65027822 | H105: 20.46505411 | I105: 61.42650092
A106: PRT | B106: WR opex for cost sharing | D106: 0.1447697591 | E106: 0.1489334524 | F106: 0.1503320582 | G106: 0.1471597204 | H106: 0.1425003494
A107: PRT | B107: WR Capex for cost sharing | D107: 0.09869317423 | E107: 0.02249741519 | F107: 0.007527946399 | G107: 0.07304100354 | H107: 0.06454512115
A108: PRT | B108: WN opex for cost sharing | D108: 0.1271318548 | E108: 0.1282538318 | F108: 0.1280608558 | G108: 0.1271249996 | H108: 0.1259143554
A109: PRT | B109: WN Capex for cost sharing | D109: 0.07228875704 | E109: 0.07371187986 | F109: 0.07709443154 | G109: 0.06962430634 | H109: 0.07079472778
A110: PRT | B110: WWN opex for cost sharing
A111: PRT | B111: WWN Capex for cost sharing
A112: SES | B112: Totex WR - Allowed totex net of Grants & contributions, abstraction charges & business rates | C112: £m | D112: 4.15773111 | E112: 4.219880855 | F112: 3.950231879 | G112: 3.715232769 | H112: 3.631433077 | I112: 19.67450969
A113: SES | B113: Totex WN - Allowed totex net of Grants & contributions, abstraction charges & business rates | C113: £m | D113: 39.20619665 | E113: 42.47971309 | F113: 38.19867127 | G113: 32.74675933 | H113: 31.5427491 | I113: 184.1740895
A114: SES | B114: Totex WWN - Allowed totex net of Grants & contributions, abstraction charges & business rates | C114: £m | D114: 0 | E114: 0 | F114: 0 | G114: 0 | H114: 0 | I114: 0
A115: SES | B115: Totex BR - Allowed totex net of Grants & contributions, abstraction charges & business rates | C115: £m | D115: 0 | E115: 0 | F115: 0 | G115: 0 | H115: 0 | I115: 0
A116: SES | B116: Totex DMMY - Allowed totex net of Grants & contributions, abstraction charges & business rates | C116: £m | D116: 0 | E116: 0 | F116: 0 | G116: 0 | H116: 0 | I116: 0
A117: SES | B117: WR opex for cost sharing | D117: 0.1620134326 | E117: 0.1579142349 | F117: 0.1539751423 | G117: 0.143845322 | H117: 0.1383051791
A118: SES | B118: WR Capex for cost sharing | D118: 0.04931234755 | E118: 0.056570442 | F118: 0.0468040355 | G118: 0.04498951189 | H118: 0.04627035209
A119: SES | B119: WN opex for cost sharing | D119: 0.09072383237 | E119: 0.08772263773 | F119: 0.08411334324 | G119: 0.07942812894 | H119: 0.07576446717
A120: SES | B120: WN Capex for cost sharing | D120: 0.1221519135 | E120: 0.1429271416 | F120: 0.123291897 | G120: 0.09837516267 | H120: 0.09550147582
A121: SES | B121: WWN opex for cost sharing
A122: SES | B122: WWN Capex for cost sharing
A123: SEW | B123: Totex WR - Allowed totex net of Grants & contributions, abstraction charges & business rates | C123: £m | D123: 21.75915448 | E123: 20.12864769 | F123: 19.70467307 | G123: 17.80877802 | H123: 17.74279041 | I123: 97.14404367
A124: SEW | B124: Totex WN - Allowed totex net of Grants & contributions, abstraction charges & business rates | C124: £m | D124: 107.1249048 | E124: 123.6584245 | F124: 128.2036503 | G124: 116.3251822 | H124: 120.320543 | I124: 595.6327048
A125: SEW | B125: Totex WWN - Allowed totex net of Grants & contributions, abstraction charges & business rates | C125: £m | D125: 0 | E125: 0 | F125: 0 | G125: 0 | H125: 0 | I125: 0
A126: SEW | B126: Totex BR - Allowed totex net of Grants & contributions, abstraction charges & business rates | C126: £m | D126: 0 | E126: 0 | F126: 0 | G126: 0 | H126: 0 | I126: 0
A127: SEW | B127: Totex DMMY - Allowed totex net of Grants & contributions, abstraction charges & business rates | C127: £m | D127: 0 | E127: 0 | F127: 0 | G127: 0 | H127: 0 | I127: 0
A128: SEW | B128: WR opex for cost sharing | D128: 0.08629260787 | E128: 0.08735309998 | F128: 0.08833060255 | G128: 0.09083468744 | H128: 0.09200421113
A129: SEW | B129: WR Capex for cost sharing | D129: 0.1376959524 | E129: 0.1198510365 | F129: 0.1145091427 | G129: 0.09248872951 | H129: 0.09063992989
A130: SEW | B130: WN opex for cost sharing | D130: 0.1010457742 | E130: 0.1045339882 | F130: 0.1054268342 | G130: 0.1070040781 | H130: 0.1087151089
A131: SEW | B131: WN Capex for cost sharing | D131: 0.07880483496 | E131: 0.1030745321 | F131: 0.1098126066 | G131: 0.08829275705 | H131: 0.09328948573
A132: SEW | B132: WWN opex for cost sharing
A133: SEW | B133: WWN Capex for cost sharing
A134: SSC | B134: Totex WR - Allowed totex net of Grants & contributions, abstraction charges & business rates | C134: £m | D134: 8.879069106 | E134: 7.196855004 | F134: 6.723757127 | G134: 6.799839496 | H134: 7.240202152 | I134: 36.83972288
A135: SSC | B135: Totex WN - Allowed totex net of Grants & contributions, abstraction charges & business rates | C135: £m | D135: 88.6437101 | E135: 92.73295883 | F135: 92.8989794 | G135: 72.5948569 | H135: 74.47117965 | I135: 421.3416849
A136: SSC | B136: Totex WWN - Allowed totex net of Grants & contributions, abstraction charges & business rates | C136: £m | D136: 0 | E136: 0 | F136: 0 | G136: 0 | H136: 0 | I136: 0
A137: SSC | B137: Totex BR - Allowed totex net of Grants & contributions, abstraction charges & business rates | C137: £m | D137: 0 | E137: 0 | F137: 0 | G137: 0 | H137: 0 | I137: 0
A138: SSC | B138: Totex DMMY - Allowed totex net of Grants & contributions, abstraction charges & business rates | C138: £m | D138: 0 | E138: 0 | F138: 0 | G138: 0 | H138: 0 | I138: 0
A139: SSC | B139: WR opex for cost sharing | D139: 0.09065106259 | E139: 0.09071003061 | F139: 0.09948167255 | G139: 0.09943937729 | H139: 0.09944747559
A140: SSC | B140: WR Capex for cost sharing | D140: 0.1503678271 | E140: 0.1046458092 | F140: 0.08303210879 | G140: 0.08513963046 | H140: 0.09708500578
A141: SSC | B141: WN opex for cost sharing | D141: 0.1313179821 | E141: 0.1282580072 | F141: 0.1229046311 | G141: 0.1155929317 | H141: 0.115530141
A142: SSC | B142: WN Capex for cost sharing | D142: 0.07906640014 | E142: 0.09183167814 | F142: 0.09757908253 | G142: 0.05670157296 | H142: 0.06121757311
A143: SSC | B143: WWN opex for cost sharing
A144: SSC | B144: WWN Capex for cost sharing
A145: ANH | B145: Totex WR - Allowed totex net of Grants & contributions, abstraction charges & business rates | C145: £m | D145: 32.47822784 | E145: 34.58569906 | F145: 39.27776055 | G145: 33.8201014 | H145: 31.87857754 | I145: =SUM(D145:H145) -> 172.0403664
A146: ANH | B146: Totex WN - Allowed totex net of Grants & contributions, abstraction charges & business rates | C146: £m | D146: 299.0344185 | E146: 372.2010098 | F146: 416.5564823 | G146: 401.8742918 | H146: 302.786616 | I146: 1792.452818
A147: ANH | B147: Totex WWN - Allowed totex net of Grants & contributions, abstraction charges & business rates | C147: £m | D147: 347.8543422 | E147: 497.6977874 | F147: 480.3497888 | G147: 503.203492 | H147: 411.5004906 | I147: 2240.605901
A148: ANH | B148: Totex BR - Allowed totex net of Grants & contributions, abstraction charges & business rates | C148: £m | D148: 77.75180967 | E148: 82.60308252 | F148: 77.76841666 | G148: 72.7435209 | H148: 73.6181628 | I148: 384.4849925
A149: ANH | B149: Totex DMMY - Allowed totex net of Grants & contributions, abstraction charges & business rates | C149: £m | D149: 0 | E149: 0 | F149: 0 | G149: 0 | H149: 0 | I149: 0
A150: ANH | B150: WR opex for cost sharing | D150: 0.1416841268 | E150: 0.1353075737 | F150: 0.1374504954 | G150: 0.1342023332 | H150: 0.150834837
A151: ANH | B151: WR Capex for cost sharing | D151: 0.04709847411 | E151: 0.065724892 | F151: 0.09085499697 | G151: 0.06238002774 | H151: 0.034462243
A152: ANH | B152: WN opex for cost sharing | D152: 0.0971177914 | E152: 0.09629371909 | F152: 0.0991211364 | G152: 0.09846898273 | H152: 0.09812663915
A153: ANH | B153: WN Capex for cost sharing | D153: 0.0697119379 | E153: 0.1113552667 | F153: 0.1332735342 | G153: 0.125734571 | H153: 0.07079642141
A154: ANH | B154: WWN opex for cost sharing | D154: 0.0782422055 | E154: 0.07947787923 | F154: 0.08027119318 | G154: 0.080328904 | H154: 0.08152777721
A155: ANH | B155: WWN Capex for cost sharing | D155: 0.0770079177 | E155: 0.1426485497 | F155: 0.1341126878 | G155: 0.1442547641 | H155: 0.1021281216
A156: NES | B156: Totex WR - Allowed totex net of Grants & contributions, abstraction charges & business rates | C156: £m | D156: 23.46962216 | E156: 23.16554176 | F156: 21.32549105 | G156: 19.70072384 | H156: 19.46445978 | I156: 107.1258386
A157: NES | B157: Totex WN - Allowed totex net of Grants & contributions, abstraction charges & business rates | C157: £m | D157: 238.272045 | E157: 249.2329851 | F157: 241.1901989 | G157: 223.3646824 | H157: 209.0124498 | I157: 1161.072361
A158: NES | B158: Totex WWN - Allowed totex net of Grants & contributions, abstraction charges & business rates | C158: £m | D158: 146.3595049 | E158: 164.3292491 | F158: 186.3341076 | G158: 243.2157559 | H158: 194.6663941 | I158: 934.9050115
A159: NES | B159: Totex BR - Allowed totex net of Grants & contributions, abstraction charges & business rates | C159: £m | D159: 15.45481268 | E159: 15.40838376 | F159: 15.30971184 | G159: 15.21440601 | H159: 15.12134105 | I159: 76.50865534
A160: NES | B160: Totex DMMY - Allowed totex net of Grants & contributions, abstraction charges & business rates | C160: £m | D160: 0 | E160: 0 | F160: 0 | G160: 0 | H160: 0 | I160: 0
A161: NES | B161: WR opex for cost sharing | D161: 0.147928517 | E161: 0.1455906131 | F161: 0.1434381113 | G161: 0.1413077427 | H161: 0.1392852179
A162: NES | B162: WR Capex for cost sharing | D162: 0.07115608925 | E162: 0.07065545846 | F162: 0.05563142532 | G162: 0.04259489088 | H162: 0.04241193407
A163: NES | B163: WN opex for cost sharing | D163: 0.1043069068 | E163: 0.1028680565 | F163: 0.101993498 | G163: 0.1007408923 | H163: 0.09975769663
A164: NES | B164: WN Capex for cost sharing | D164: 0.1009103156 | E164: 0.111789525 | F164: 0.1057370509 | G164: 0.0916370247 | H164: 0.08025903339
A165: NES | B165: WWN opex for cost sharing | D165: 0.07208846592 | E165: 0.07122084863 | F165: 0.07042065124 | G165: 0.06960599396 | H165: 0.06894719462
A166: NES | B166: WWN Capex for cost sharing | D166: 0.08446166812 | E166: 0.1045502159 | F166: 0.1288874125 | G166: 0.1905442383 | H166: 0.1392733108
A167: NWT | B167: Totex WR - Allowed totex net of Grants & contributions, abstraction charges & business rates | C167: £m | D167: 37.22548768 | E167: 38.01719102 | F167: 41.95433282 | G167: 48.24781242 | H167: 54.66489313 | I167: 220.1097171
A168: NWT | B168: Totex WN - Allowed totex net of Grants & contributions, abstraction charges & business rates | C168: £m | D168: 370.3403925 | E168: 356.3826614 | F168: 357.1064691 | G168: 337.5329806 | H168: 312.6145275 | I168: 1733.977031
A169: NWT | B169: Totex WWN - Allowed totex net of Grants & contributions, abstraction charges & business rates | C169: £m | D169: 412.2609676 | E169: 432.9816281 | F169: 398.2004988 | G169: 582.7181711 | H169: 514.8060919 | I169: 2340.967357
A170: NWT | B170: Totex BR - Allowed totex net of Grants & contributions, abstraction charges & business rates | C170: £m | D170: 67.99974053 | E170: 70.3473362 | F170: 65.74756948 | G170: 60.94640644 | H170: 63.09124696 | I170: 328.1322996
A171: NWT | B171: Totex DMMY - Allowed totex net of Grants & contributions, abstraction charges & business rates | C171: £m | D171: 0 | E171: 0 | F171: 0 | G171: 0 | H171: 0 | I171: 0
A172: NWT | B172: WR opex for cost sharing | D172: 0.1272796465 | E172: 0.1309315821 | F172: 0.1371102288 | G172: 0.155477591 | H172: 0.1854618498
A173: NWT | B173: WR Capex for cost sharing | D173: 0.04184277193 | E173: 0.04178769417 | F173: 0.05349622593 | G173: 0.06372132975 | H173: 0.06289108008
A174: NWT | B174: WN opex for cost sharing | D174: 0.1382865642 | E174: 0.1410386839 | F174: 0.1404839854 | G174: 0.1445756437 | H174: 0.1404899726
A175: NWT | B175: WN Capex for cost sharing | D175: 0.07529203916 | E175: 0.06449037155 | F175: 0.06546249641 | G175: 0.05008263295 | H175: 0.03979761011
A176: NWT | B176: WWN opex for cost sharing | D176: 0.08603210581 | E176: 0.087210111 | F176: 0.08784260477 | G176: 0.09257752092 | H176: 0.0962917901
A177: NWT | B177: WWN Capex for cost sharing | D177: 0.09007499207 | E177: 0.0977483109 | F177: 0.08225822875 | G177: 0.156344434 | H177: 0.1236199016
A178: SRN | B178: Totex WR - Allowed totex net of Grants & contributions, abstraction charges & business rates | C178: £m | D178: 15.79885757 | E178: 15.48261584 | F178: 15.37689472 | G178: 16.76416463 | H178: 19.15225873 | I178: 82.57479151
A179: SRN | B179: Totex WN - Allowed totex net of Grants & contributions, abstraction charges & business rates | C179: £m | D179: 166.4916785 | E179: 165.9949926 | F179: 149.2050652 | G179: 136.2941015 | H179: 151.5270377 | I179: 769.5128755
A180: SRN | B180: Totex WWN - Allowed totex net of Grants & contributions, abstraction charges & business rates | C180: £m | D180: 317.5178396 | E180: 411.2439414 | F180: 422.7621596 | G180: 360.0247325 | H180: 298.2483794 | I180: 1809.797052
A181: SRN | B181: Totex BR - Allowed totex net of Grants & contributions, abstraction charges & business rates | C181: £m | D181: 34.16832906 | E181: 38.45999653 | F181: 55.64577797 | G181: 34.51820225 | H181: 28.81977233 | I181: 191.6120781
A182: SRN | B182: Totex DMMY - Allowed totex net of Grants & contributions, abstraction charges & business rates | C182: £m | D182: 0 | E182: 0 | F182: 0 | G182: 0 | H182: 0 | I182: 0
A183: SRN | B183: WR opex for cost sharing | D183: 0.1153594487 | E183: 0.1126238793 | F183: 0.1165644069 | G183: 0.1140455163 | H183: 0.1106599105
A184: SRN | B184: WR Capex for cost sharing | D184: 0.07596840433 | E184: 0.07487421256 | F184: 0.06965337748 | G184: 0.08897243058 | H184: 0.1212784133
A185: SRN | B185: WN opex for cost sharing | D185: 0.08077220544 | E185: 0.07888121715 | F185: 0.07751220135 | G185: 0.07775635079 | H185: 0.07571436655
A186: SRN | B186: WN Capex for cost sharing | D186: 0.1355876292 | E186: 0.1368331625 | F186: 0.1163832746 | G186: 0.09936102548 | H186: 0.121198567
A187: SRN | B187: WWN opex for cost sharing | D187: 0.06685249982 | E187: 0.06535615618 | F187: 0.0643525207 | G187: 0.06268567478 | H187: 0.06114564472
A188: SRN | B188: WWN Capex for cost sharing | D188: 0.1085913927 | E188: 0.1618759199 | F188: 0.1692439254 | G188: 0.1362453225 | H188: 0.1036509434
A189: SWB | B189: Totex WR - Allowed totex net of Grants & contributions, abstraction charges & business rates | C189: £m | D189: 9.12302887 | E189: 9.704893323 | F189: 8.717148443 | G189: 7.618399669 | H189: 7.344383855 | I189: 42.50785416
A190: SWB | B190: Totex WN - Allowed totex net of Grants & contributions, abstraction charges & business rates | C190: £m | D190: 125.0809626 | E190: 137.0707411 | F190: 150.9997471 | G190: 142.7807172 | H190: 139.2480438 | I190: 695.1802118
A191: SWB | B191: Totex WWN - Allowed totex net of Grants & contributions, abstraction charges & business rates | C191: £m | D191: 166.1669026 | E191: 161.923839 | F191: 146.4474902 | G191: 145.3530423 | H191: 134.4826255 | I191: 754.3738996
A192: SWB | B192: Totex BR - Allowed totex net of Grants & contributions, abstraction charges & business rates | C192: £m | D192: 17.57856527 | E192: 17.83610308 | F192: 18.11655338 | G192: 17.97907693 | H192: 17.78332554 | I192: 89.2936242
A193: SWB | B193: Totex DMMY - Allowed totex net of Grants & contributions, abstraction charges & business rates | C193: £m | D193: 0 | E193: 0 | F193: 0 | G193: 0 | H193: 0 | I193: 0
A194: SWB | B194: WR opex for cost sharing | D194: 0.1106441772 | E194: 0.1120921382 | F194: 0.1124875992 | G194: 0.1132144254 | H194: 0.1142147092
A195: SWB | B195: WR Capex for cost sharing | D195: 0.103975663 | E195: 0.1162161007 | F195: 0.09258387792 | G195: 0.06600891621 | H195: 0.05856239285
A196: SWB | B196: WN opex for cost sharing | D196: 0.08855842703 | E196: 0.08904427346 | F196: 0.08849241702 | G196: 0.08698480434 | H196: 0.08649534182
A197: SWB | B197: WN Capex for cost sharing | D197: 0.09136752658 | E197: 0.108128688 | F197: 0.1287170843 | G197: 0.1184018203 | H197: 0.1138096172
A198: SWB | B198: WWN opex for cost sharing | D198: 0.08845682797 | E198: 0.08803643481 | F198: 0.0875029739 | G198: 0.08542195134 | H198: 0.08438367621
A199: SWB | B199: WWN Capex for cost sharing | D199: 0.1318144496 | E199: 0.1266102266 | F199: 0.1066281993 | G199: 0.107258419 | H199: 0.09388684129
A200: TMS | B200: Totex WR - Allowed totex net of Grants & contributions, abstraction charges & business rates | C200: £m | D200: 76.70833985 | E200: 80.83260236 | F200: 88.93674401 | G200: 73.09079102 | H200: 57.9325983 | I200: 377.5010755
A201: TMS | B201: Totex WN - Allowed totex net of Grants & contributions, abstraction charges & business rates | C201: £m | D201: 800.7646955 | E201: 821.2259276 | F201: 765.0081653 | G201: 725.0392784 | H201: 684.5781571 | I201: =SUM(D201:H201)-185.8 -> 3610.816224 | J201: OFW-OBQ-TMS-131 Remove conditional allowances reconciled separately
A202: TMS | B202: Totex WWN - Allowed totex net of Grants & contributions, abstraction charges & business rates | C202: £m | D202: 708.412484 | E202: 746.3630428 | F202: 751.527191 | G202: 704.8646409 | H202: 634.8930023 | I202: 3546.060361
A203: TMS | B203: Totex BR - Allowed totex net of Grants & contributions, abstraction charges & business rates | C203: £m | D203: 81.74502112 | E203: 123.7072805 | F203: 126.8392485 | G203: 110.7258012 | H203: 94.16243846 | I203: 537.1797898
A204: TMS | B204: Totex DMMY - Allowed totex net of Grants & contributions, abstraction charges & business rates | C204: £m | D204: 22.61558163 | E204: 34.37048821 | F204: 20.10931856 | G204: -190.9645132 | H204: -216.7340098 | I204: 119.8 | J204: Remove allowance related to land sales
A205: TMS | B205: WR opex for cost sharing | D205: 0.117391079 | E205: 0.1216188337 | F205: 0.1128036662 | G205: 0.1081180389 | H205: 0.1144487197
... 64 more rows

Sheet InpActive
A1: =RIGHT(CELL("filename", $A$1), LEN(CELL("filename", $A$1)) - SEARCH("]", CELL("filename", $A$1))) ->  | P1: TMS
E2: =Time!E$22 -> Model Period BEG | J2: =Time!J$22 -> 2019-04-01 | K2: =Time!K$22 -> 2020-04-01 | L2: =Time!L$22 -> 2021-04-01 | M2: =Time!M$22 -> 2022-04-01 | N2: =Time!N$22 -> 2023-04-01 | O2: =Time!O$22 -> 2024-04-01 | P2: =Time!P$22 -> 2025-04-01
E3: =Time!E$23 -> Model Period END | F3: =Check!F$8 -> 0 | G3: Error chks | J3: =Time!J$23 -> 2020-03-31 | K3: =Time!K$23 -> 2021-03-31 | L3: =Time!L$23 -> 2022-03-31 | M3: =Time!M$23 -> 2023-03-31 | N3: =Time!N$23 -> 2024-03-31 | O3: =Time!O$23 -> 2025-03-31 | P3: =Time!P$23 -> 2026-03-31
E4: =Time!E$59 -> Pre Forecast vs Forecast | J4: =Time!J$59 -> Pre Fcst | K4: =Time!K$59 -> Forecast | L4: =Time!L$59 -> Forecast | M4: =Time!M$59 -> Forecast | N4: =Time!N$59 -> Forecast | O4: =Time!O$59 -> Forecast | P4: =Time!P$59 -> Post-Fcst
E5: =Time!E$101 -> Financial Year Ending | J5: =Time!J$101 -> 2020 | K5: =Time!K$101 -> 2021 | L5: =Time!L$101 -> 2022 | M5: =Time!M$101 -> 2023 | N5: =Time!N$101 -> 2024 | O5: =Time!O$101 -> 2025 | P5: =Time!P$101 -> 2026
E6: =Time!E$11 -> Model column counter | F6: Constant | G6: Unit | H6: Total | J6: =Time!J$11 -> 1 | K6: =Time!K$11 -> 2 | L6: =Time!L$11 -> 3 | M6: =Time!M$11 -> 4 | N6: =Time!N$11 -> 5 | O6: =Time!O$11 -> 6 | P6: =Time!P$11 -> 7
A8: TIME
E10: First date of time ruler | F10: 2019-04-01 | G10: date
E12: Last Pre Forecast Date | F12: 2020-03-31 | G12: date
E14: Acquisition date (midnight) | F14: 2020-03-31 | G14: date
E15: Length of forecast period | F15: 5 | G15: years
E16: Last forecast date | F16: =DATE(YEAR(F14)+F15,MONTH(F14),DAY(F14)) -> 2025-03-31 | G16: date
E19: Operation Start Date (midnight) | F19: 2021-03-31 | G19: date
E20: Operation Finish Date (midnight) | F20: 2025-03-31 | G20: date
E21: First Modelling Column Financial Year Number | F21: 2020 | G21: year
E22: Financial Year End Month Number | F22: 3 | G22: month #
A25: TOTEX INPUTS
B27: Water Resources
C28: Wage adjustment
A29: C_TBC_WR_PR19CA004_OFWAT | D29: 2017/18 CPIH | E29: Base Costs - WR - Real | F29: =SUMIFS('F_Inputs-APR & PR19'!Q:Q, 'F_Inputs-APR & PR19'!A:A, InpActive!$P$1, 'F_Inputs-APR & PR19'!B:B, InpActive!A29) -> 342.3583447 | G29: £m
D30: 2017/18 CPIH | E30: Metering (excluding new connections) for meters requested by optants, customers and businesses - WR - Real | G30: £m
A32: C_OPEX_SPLIT_BASE_WR_PR19CA091 | E32: Opex split profile - Base costs - WR | G32: % | K32: =SUMIFS(F_Inputs!F:F, F_Inputs!$A:$A, InpActive!$P$1, F_Inputs!$B:$B, InpActive!$A32) -> 0.1620889768 | L32: =SUMIFS(F_Inputs!G:G, F_Inputs!$A:$A, InpActive!$P$1, F_Inputs!$B:$B, InpActive!$A32) -> 0.1659454849 | M32: =SUMIFS(F_Inputs!H:H, F_Inputs!$A:$A, InpActive!$P$1, F_Inputs!$B:$B, InpActive!$A32) -> 0.1602635369 | N32: =SUMIFS(F_Inputs!I:I, F_Inputs!$A:$A, InpActive!$P$1, F_Inputs!$B:$B, InpActive!$A32) -> 0.1559599993 | O32: =SUMIFS(F_Inputs!J:J, F_Inputs!$A:$A, InpActive!$P$1, F_Inputs!$B:$B, InpActive!$A32) -> 0.161909839
A33: C_CAPEX_SPLIT_BASE_WR_PR19CA091 | E33: Capex Split Profile - Base costs - WR | G33: % | K33: =SUMIFS(F_Inputs!F:F, F_Inputs!$A:$A, InpActive!$P$1, F_Inputs!$B:$B, InpActive!$A33) -> 0.07317102333 | L33: =SUMIFS(F_Inputs!G:G, F_Inputs!$A:$A, InpActive!$P$1, F_Inputs!$B:$B, InpActive!$A33) -> 0.06302198224 | M33: =SUMIFS(F_Inputs!H:H, F_Inputs!$A:$A, InpActive!$P$1, F_Inputs!$B:$B, InpActive!$A33) -> 0.04495102676 | N33: =SUMIFS(F_Inputs!I:I, F_Inputs!$A:$A, InpActive!$P$1, F_Inputs!$B:$B, InpActive!$A33) -> 0.007606150575 | O33: =SUMIFS(F_Inputs!J:J, F_Inputs!$A:$A, InpActive!$P$1, F_Inputs!$B:$B, InpActive!$A33) -> 0.005081980244
A35: WR opex for cost sharing | E35: Opex split profile - Cost sharing - WR | G35: % | K35: =SUMIFS('Non-fountain inputs'!D:D, 'Non-fountain inputs'!$A:$A, InpActive!$P$1, 'Non-fountain inputs'!$B:$B, InpActive!$A35) -> 0.117391079 | L35: =SUMIFS('Non-fountain inputs'!E:E, 'Non-fountain inputs'!$A:$A, InpActive!$P$1, 'Non-fountain inputs'!$B:$B, InpActive!$A35) -> 0.1216188337 | M35: =SUMIFS('Non-fountain inputs'!F:F, 'Non-fountain inputs'!$A:$A, InpActive!$P$1, 'Non-fountain inputs'!$B:$B, InpActive!$A35) -> 0.1128036662 | N35: =SUMIFS('Non-fountain inputs'!G:G, 'Non-fountain inputs'!$A:$A, InpActive!$P$1, 'Non-fountain inputs'!$B:$B, InpActive!$A35) -> 0.1081180389 | O35: =SUMIFS('Non-fountain inputs'!H:H, 'Non-fountain inputs'!$A:$A, InpActive!$P$1, 'Non-fountain inputs'!$B:$B, InpActive!$A35) -> 0.1144487197
A36: WR Capex for cost sharing | E36: Capex split profile - Cost sharing - WR | G36: % | K36: =SUMIFS('Non-fountain inputs'!D:D, 'Non-fountain inputs'!$A:$A, InpActive!$P$1, 'Non-fountain inputs'!$B:$B, InpActive!$A36) -> 0.08580924232 | L36: =SUMIFS('Non-fountain inputs'!E:E, 'Non-fountain inputs'!$A:$A, InpActive!$P$1, 'Non-fountain inputs'!$B:$B, InpActive!$A36) -> 0.09250665516 | M36: =SUMIFS('Non-fountain inputs'!F:F, 'Non-fountain inputs'!$A:$A, InpActive!$P$1, 'Non-fountain inputs'!$B:$B, InpActive!$A36) -> 0.1227896865 | N36: =SUMIFS('Non-fountain inputs'!G:G, 'Non-fountain inputs'!$A:$A, InpActive!$P$1, 'Non-fountain inputs'!$B:$B, InpActive!$A36) -> 0.08549939896 | O36: =SUMIFS('Non-fountain inputs'!H:H, 'Non-fountain inputs'!$A:$A, InpActive!$P$1, 'Non-fountain inputs'!$B:$B, InpActive!$A36) -> 0.03901467958
E38: Business Rates forecast profile - WR | G38: % | K38: 0.2 | L38: 0.2 | M38: 0.2 | N38: 0.2 | O38: 0.2
E39: Abstraction Charges forecast profile - WR | G39: % | K39: 0.2 | L39: 0.2 | M39: 0.2 | N39: 0.2 | O39: 0.2
C41: Net totex for cost sharing reconciliation
D42: nominal | E42: Net totex for cost sharing reconciliation - WR - Nominal | G42: £m | K42: =SUMIF('Consolidated actual totex inp'!$L:$L, InpActive!$E$42, 'Consolidated actual totex inp'!G:G) -> 66.795 | L42: =SUMIF('Consolidated actual totex inp'!$L:$L, InpActive!$E$42, 'Consolidated actual totex inp'!H:H) -> 80.704 | M42: =SUMIF('Consolidated actual totex inp'!$L:$L, InpActive!$E$42, 'Consolidated actual totex inp'!I:I) -> 78.869 | N42: =SUMIF('Consolidated actual totex inp'!$L:$L, InpActive!$E$42, 'Consolidated actual totex inp'!J:J) -> 72.33476585 | O42: =SUMIF('Consolidated actual totex inp'!$L:$L, InpActive!$E$42, 'Consolidated actual totex inp'!K:K) -> 76.32299835
A43: Totex WR - Allowed totex net of Grants & contributions, abstraction charges & business rates | D43: 2017/18 CPIH | E43: Net totex available for cost sharing - WR - Real | F43: =SUMIFS('Non-fountain inputs'!I:I, 'Non-fountain inputs'!A:A, InpActive!$P$1, 'Non-fountain inputs'!B:B, InpActive!A43) -> 377.5010755 | G43: £m
D44: nominal | E44: Performance related pay recovery mechanism adjustment - WR - Nominal (Neg) | G44: £m
A46: C__PR24PD11_PD11_12WR_PRETVM_PR24 | D46: 2017/18 CPIH | E46: Total final WINEP reconciliation - WR - real | G46: £m | K46: =SUMIF(F_Inputs!$B:$B, InpActive!$A46, F_Inputs!F:F) -> 0 | L46: =SUMIF(F_Inputs!$B:$B, InpActive!$A46, F_Inputs!G:G) -> 0 | M46: =SUMIF(F_Inputs!$B:$B, InpActive!$A46, F_Inputs!H:H) -> -27.58633333 | N46: =SUMIF(F_Inputs!$B:$B, InpActive!$A46, F_Inputs!I:I) -> -27.58633333 | O46: =SUMIF(F_Inputs!$B:$B, InpActive!$A46, F_Inputs!J:J) -> -27.58633333
C48: Business Rates and Abstraction
A49: C_UBC_WR_PR19CA004_OFWAT | D49: 2017/18 CPIH | E49: Business rates - Forecast - WR - Real | F49: =SUMIFS('F_Inputs-APR & PR19'!$Q:$Q, 'F_Inputs-APR & PR19'!$A:$A, InpActive!$P$1, 'F_Inputs-APR & PR19'!$B:$B, InpActive!$A49) -> 17.00566122 | G49: £m
A50: WS1003_WW4_WR | D50: 2017/18 CPIH | E50: Abstraction charges - Forecast - WR - Real | F50: =SUMIFS('F_Inputs-APR & PR19'!$Q:$Q, 'F_Inputs-APR & PR19'!$A:$A, InpActive!$P$1, 'F_Inputs-APR & PR19'!$B:$B, InpActive!$A50) -> 64.6489986 | G50: £m
D52: nominal | E52: Business rates - Actual - WR - Nominal | G52: £m | K52: =SUMIF('Consolidated actual totex inp'!$L:$L, InpActive!$E52, 'Consolidated actual totex inp'!G:G) -> 3.807 | L52: =SUMIF('Consolidated actual totex inp'!$L:$L, InpActive!$E52, 'Consolidated actual totex inp'!H:H) -> 4.752 | M52: =SUMIF('Consolidated actual totex inp'!$L:$L, InpActive!$E52, 'Consolidated actual totex inp'!I:I) -> 3.324 | N52: =SUMIF('Consolidated actual totex inp'!$L:$L, InpActive!$E52, 'Consolidated actual totex inp'!J:J) -> 3.721179182 | O52: =SUMIF('Consolidated actual totex inp'!$L:$L, InpActive!$E52, 'Consolidated actual totex inp'!K:K) -> 3.605094392
D53: nominal | E53: Abstraction charges - Actual - WR - Nominal | G53: £m | K53: =SUMIF('Consolidated actual totex inp'!$L:$L, InpActive!$E53, 'Consolidated actual totex inp'!G:G) -> 17.129 | L53: =SUMIF('Consolidated actual totex inp'!$L:$L, InpActive!$E53, 'Consolidated actual totex inp'!H:H) -> 17.003 | M53: =SUMIF('Consolidated actual totex inp'!$L:$L, InpActive!$E53, 'Consolidated actual totex inp'!I:I) -> 23.579 | N53: =SUMIF('Consolidated actual totex inp'!$L:$L, InpActive!$E53, 'Consolidated actual totex inp'!J:J) -> 25.04185356 | O53: =SUMIF('Consolidated actual totex inp'!$L:$L, InpActive!$E53, 'Consolidated actual totex inp'!K:K) -> 23.57461725
E55: Weighted average PAYG rate - WR | F55: =SUMIF('Non-fountain inputs'!$A$40:$A$56, InpActive!$P$1, 'Non-fountain inputs'!$B$40:$B$56) -> 0.548 | G55: %
A57: C_WR_CS_EXANTE_001 | D57: 2017/18 CPIH | E57: Ex ante allowance above Ofwat forecast - Water Resources - Real | F57: =SUMIFS('F_Inputs-APR & PR19'!Q:Q, 'F_Inputs-APR & PR19'!A:A, InpActive!$P$1, 'F_Inputs-APR & PR19'!B:B, InpActive!A57) -> 0 | G57: £m
C59: Bad Debt
D60: 2017/18 CPIH | E60: Business retail bad debt liability due to covid liquidity measures - WR - real | G60: £m
D61: 2017/18 CPIH | E61: Total Wholesaler Liability - WR - real | G61: £m
C63: CMA exclusions
D64: nominal | E64: Actuals for CMA excluded items - WR - nominal | G64: £m | K64: =SUMIF('Consolidated actual totex inp'!$L:$L, InpActive!$E64, 'Consolidated actual totex inp'!G:G) -> 0 | L64: =SUMIF('Consolidated actual totex inp'!$L:$L, InpActive!$E64, 'Consolidated actual totex inp'!H:H) -> 0 | M64: =SUMIF('Consolidated actual totex inp'!$L:$L, InpActive!$E64, 'Consolidated actual totex inp'!I:I) -> 0 | N64: =SUMIF('Consolidated actual totex inp'!$L:$L, InpActive!$E64, 'Consolidated actual totex inp'!J:J) -> 0 | O64: =SUMIF('Consolidated actual totex inp'!$L:$L, InpActive!$E64, 'Consolidated actual totex inp'!K:K) -> 0
D65: 2017/18 CPIH | E65: Allowance for CMA excluded items - WR - real | G65: £m | K65: =SUMIFS('Non-fountain inputs'!C$8:C$23, 'Non-fountain inputs'!$A$8:$A$23, InpActive!$P$1, 'Non-fountain inputs'!$B$8:$B$23, InpActive!$E65) -> 0 | L65: =SUMIFS('Non-fountain inputs'!D$8:D$23, 'Non-fountain inputs'!$A$8:$A$23, InpActive!$P$1, 'Non-fountain inputs'!$B$8:$B$23, InpActive!$E65) -> 0 | M65: =SUMIFS('Non-fountain inputs'!E$8:E$23, 'Non-fountain inputs'!$A$8:$A$23, InpActive!$P$1, 'Non-fountain inputs'!$B$8:$B$23, InpActive!$E65) -> 0 | N65: =SUMIFS('Non-fountain inputs'!F$8:F$23, 'Non-fountain inputs'!$A$8:$A$23, InpActive!$P$1, 'Non-fountain inputs'!$B$8:$B$23, InpActive!$E65) -> 0 | O65: =SUMIFS('Non-fountain inputs'!G$8:G$23, 'Non-fountain inputs'!$A$8:$A$23, InpActive!$P$1, 'Non-fountain inputs'!$B$8:$B$23, InpActive!$E65) -> 0
A66: PD9_13WR_PR24 | E66: CMA excluded items sharing rate - WR - real | F66: =SUMIFS(F_Inputs!H:H, F_Inputs!A:A, InpActive!$P$1, F_Inputs!B:B, InpActive!A66) -> 0 | G66: %
B68: Water Network
C69: Wage adjustment
A70: C_TBC_WN_PR19CA004_OFWAT | D70: 2017/18 CPIH | E70: Base Costs - WN - Real | F70: =SUMIFS('F_Inputs-APR & PR19'!Q:Q, 'F_Inputs-APR & PR19'!A:A, InpActive!$P$1, 'F_Inputs-APR & PR19'!B:B, InpActive!A70) -> 3357.796205 | G70: £m
A71: C_PR19_E_W_METERING_WN | D71: 2017/18 CPIH | E71: Metering (excluding new connections) for meters requested by optants, customers and businesses - WN - Real | F71: =SUMIFS(F_Inputs!L:L, F_Inputs!A:A, InpActive!$P$1, F_Inputs!B:B, InpActive!A71) -> 203.2737589 | G71: £m
A73: C_OPEX_SPLIT_BASE_WN_PR19CA091 | E73: Opex Split Profile - Base costs - WN | G73: % | K73: =SUMIFS(F_Inputs!F:F, F_Inputs!$A:$A, InpActive!$P$1, F_Inputs!$B:$B, InpActive!$A73) -> 0.1061957358 | L73: =SUMIFS(F_Inputs!G:G, F_Inputs!$A:$A, InpActive!$P$1, F_Inputs!$B:$B, InpActive!$A73) -> 0.1042417628 | M73: =SUMIFS(F_Inputs!H:H, F_Inputs!$A:$A, InpActive!$P$1, F_Inputs!$B:$B, InpActive!$A73) -> 0.1000588804 | N73: =SUMIFS(F_Inputs!I:I, F_Inputs!$A:$A, InpActive!$P$1, F_Inputs!$B:$B, InpActive!$A73) -> 0.09711666001 | O73: =SUMIFS(F_Inputs!J:J, F_Inputs!$A:$A, InpActive!$P$1, F_Inputs!$B:$B, InpActive!$A73) -> 0.09634665673
A74: C_CAPEX_SPLIT_BASE_WN_PR19CA091 | E74: Capex Split Profile - Base costs - WN | G74: % | K74: =SUMIFS(F_Inputs!F:F, F_Inputs!$A:$A, InpActive!$P$1, F_Inputs!$B:$B, InpActive!$A74) -> 0.1197765476 | L74: =SUMIFS(F_Inputs!G:G, F_Inputs!$A:$A, InpActive!$P$1, F_Inputs!$B:$B, InpActive!$A74) -> 0.1123595348 | M74: =SUMIFS(F_Inputs!H:H, F_Inputs!$A:$A, InpActive!$P$1, F_Inputs!$B:$B, InpActive!$A74) -> 0.09314365851 | N74: =SUMIFS(F_Inputs!I:I, F_Inputs!$A:$A, InpActive!$P$1, F_Inputs!$B:$B, InpActive!$A74) -> 0.08758309611 | O74: =SUMIFS(F_Inputs!J:J, F_Inputs!$A:$A, InpActive!$P$1, F_Inputs!$B:$B, InpActive!$A74) -> 0.08317746726
A76: WN opex for cost sharing | E76: Opex split profile - Cost sharing - WN | G76: % | K76: =SUMIFS('Non-fountain inputs'!D:D, 'Non-fountain inputs'!$A:$A, InpActive!$P$1, 'Non-fountain inputs'!$B:$B, InpActive!$A76) -> 0.07976922353 | L76: =SUMIFS('Non-fountain inputs'!E:E, 'Non-fountain inputs'!$A:$A, InpActive!$P$1, 'Non-fountain inputs'!$B:$B, InpActive!$A76) -> 0.07815841269 | M76: =SUMIFS('Non-fountain inputs'!F:F, 'Non-fountain inputs'!$A:$A, InpActive!$P$1, 'Non-fountain inputs'!$B:$B, InpActive!$A76) -> 0.07478129869 | N76: =SUMIFS('Non-fountain inputs'!G:G, 'Non-fountain inputs'!$A:$A, InpActive!$P$1, 'Non-fountain inputs'!$B:$B, InpActive!$A76) -> 0.07191098934 | O76: =SUMIFS('Non-fountain inputs'!H:H, 'Non-fountain inputs'!$A:$A, InpActive!$P$1, 'Non-fountain inputs'!$B:$B, InpActive!$A76) -> 0.07148623462
A77: WN Capex for cost sharing | E77: Capex split profile - Cost sharing - WN | G77: % | K77: =SUMIFS('Non-fountain inputs'!D:D, 'Non-fountain inputs'!$A:$A, InpActive!$P$1, 'Non-fountain inputs'!$B:$B, InpActive!$A77) -> 0.1311461412 | L77: =SUMIFS('Non-fountain inputs'!E:E, 'Non-fountain inputs'!$A:$A, InpActive!$P$1, 'Non-fountain inputs'!$B:$B, InpActive!$A77) -> 0.1381462858 | M77: =SUMIFS('Non-fountain inputs'!F:F, 'Non-fountain inputs'!$A:$A, InpActive!$P$1, 'Non-fountain inputs'!$B:$B, InpActive!$A77) -> 0.1267160664 | N77: =SUMIFS('Non-fountain inputs'!G:G, 'Non-fountain inputs'!$A:$A, InpActive!$P$1, 'Non-fountain inputs'!$B:$B, InpActive!$A77) -> 0.1190588732 | O77: =SUMIFS('Non-fountain inputs'!H:H, 'Non-fountain inputs'!$A:$A, InpActive!$P$1, 'Non-fountain inputs'!$B:$B, InpActive!$A77) -> 0.1088264746
E79: Business Rates forecast profile - WN | G79: % | K79: 0.2 | L79: 0.2 | M79: 0.2 | N79: 0.2 | O79: 0.2
E80: Abstraction Charges forecast profile - WN | G80: % | K80: 0.2 | L80: 0.2 | M80: 0.2 | N80: 0.2 | O80: 0.2
C82: Net totex for cost sharing reconciliation
D83: nominal | E83: Net totex for cost sharing reconciliation - WN - Nominal | G83: £m | K83: =SUMIF('Consolidated actual totex inp'!$L:$L, InpActive!$E$83, 'Consolidated actual totex inp'!G:G) -> 807.3366549 | L83: =SUMIF('Consolidated actual totex inp'!$L:$L, InpActive!$E$83, 'Consolidated actual totex inp'!H:H) -> 864.6746406 | M83: =SUMIF('Consolidated actual totex inp'!$L:$L, InpActive!$E$83, 'Consolidated actual totex inp'!I:I) -> 1041.145 | N83: =SUMIF('Consolidated actual totex inp'!$L:$L, InpActive!$E$83, 'Consolidated actual totex inp'!J:J) -> 1198.413552 | O83: =SUMIF('Consolidated actual totex inp'!$L:$L, InpActive!$E$83, 'Consolidated actual totex inp'!K:K) -> 1120.072327
A84: Totex WN - Allowed totex net of Grants & contributions, abstraction charges & business rates | D84: 2017/18 CPIH | E84: Net totex available for cost sharing - WN - Real | F84: =SUMIFS('Non-fountain inputs'!I:I, 'Non-fountain inputs'!A:A, InpActive!$P$1, 'Non-fountain inputs'!B:B, InpActive!A84) -> 3610.816224 | G84: £m
D85: nominal | E85: Performance related pay recovery mechanism adjustment - WN - Nominal (Neg) | G85: £m | K85: ='Non-fountain inputs'!D269*0.5 -> 0 | L85: ='Non-fountain inputs'!E269*0.5 -> 0 | M85: ='Non-fountain inputs'!F269*0.5 -> 0 | N85: ='Non-fountain inputs'!G269*0.5 -> -0.385 | O85: ='Non-fountain inputs'!H269*0.5 -> 0
A87: C__PR24PD11_PD11_12WN_PRETVM_PR24 | D87: 2017/18 CPIH | E87: Total final WINEP reconciliation - WN - real | G87: £m | K87: =SUMIF(F_Inputs!$B:$B, InpActive!$A87, F_Inputs!F:F) -> 0 | L87: =SUMIF(F_Inputs!$B:$B, InpActive!$A87, F_Inputs!G:G) -> 0 | M87: =SUMIF(F_Inputs!$B:$B, InpActive!$A87, F_Inputs!H:H) -> 0 | N87: =SUMIF(F_Inputs!$B:$B, InpActive!$A87, F_Inputs!I:I) -> 0 | O87: =SUMIF(F_Inputs!$B:$B, InpActive!$A87, F_Inputs!J:J) -> 0
C89: Business Rates and Abstraction
A90: C_UBC_WN_PR19CA004_OFWAT | D90: 2017/18 CPIH | E90: Business rates - Forecast - WN - Real | F90: =SUMIFS('F_Inputs-APR & PR19'!$Q:$Q, 'F_Inputs-APR & PR19'!$A:$A, InpActive!$P$1, 'F_Inputs-APR & PR19'!$B:$B, InpActive!$A90) -> 352.647297 | G90: £m
A91: WS1003_WW4_WN | D91: 2017/18 CPIH | E91: Abstraction charges - Forecast - WN - Real | F91: =SUMIFS('F_Inputs-APR & PR19'!$Q:$Q, 'F_Inputs-APR & PR19'!$A:$A, InpActive!$P$1, 'F_Inputs-APR & PR19'!$B:$B, InpActive!$A91) -> 0.3833056598 | G91: £m
D93: nominal | E93: Business rates - Actual - WN - Nominal | G93: £m | K93: =SUMIF('Consolidated actual totex inp'!$L:$L, InpActive!$E93, 'Consolidated actual totex inp'!G:G) -> 79.034 | L93: =SUMIF('Consolidated actual totex inp'!$L:$L, InpActive!$E93, 'Consolidated actual totex inp'!H:H) -> 49.743 | M93: =SUMIF('Consolidated actual totex inp'!$L:$L, InpActive!$E93, 'Consolidated actual totex inp'!I:I) -> 68 | N93: =SUMIF('Consolidated actual totex inp'!$L:$L, InpActive!$E93, 'Consolidated actual totex inp'!J:J) -> 77.24250706 | O93: =SUMIF('Consolidated actual totex inp'!$L:$L, InpActive!$E93, 'Consolidated actual totex inp'!K:K) -> 73.48792412
D94: nominal | E94: Abstraction charges - Actual - WN - Nominal | G94: £m | K94: =SUMIF('Consolidated actual totex inp'!$L:$L, InpActive!$E94, 'Consolidated actual totex inp'!G:G) -> 0 | L94: =SUMIF('Consolidated actual totex inp'!$L:$L, InpActive!$E94, 'Consolidated actual totex inp'!H:H) -> 0 | M94: =SUMIF('Consolidated actual totex inp'!$L:$L, InpActive!$E94, 'Consolidated actual totex inp'!I:I) -> 0 | N94: =SUMIF('Consolidated actual totex inp'!$L:$L, InpActive!$E94, 'Consolidated actual totex inp'!J:J) -> 0 | O94: =SUMIF('Consolidated actual totex inp'!$L:$L, InpActive!$E94, 'Consolidated actual totex inp'!K:K) -> 0
E96: Weighted average PAYG rate - WN | F96: =SUMIF('Non-fountain inputs'!$A$40:$A$56, InpActive!$P$1, 'Non-fountain inputs'!$C$40:$C$56) -> 0.438 | G96: %
A98: C_WN_CS_EXANTE_001 | D98: 2017/18 CPIH | E98: Ex ante allowance above Ofwat forecast - Water Network - Real | F98: =SUMIFS('F_Inputs-APR & PR19'!Q:Q, 'F_Inputs-APR & PR19'!A:A, InpActive!$P$1, 'F_Inputs-APR & PR19'!B:B, InpActive!A98) -> 0 | G98: £m
C100: Bad Debt
D101: 2017/18 CPIH | E101: Business retail bad debt liability due to covid liquidity measures - WN - real | G101: £m
D102: 2017/18 CPIH | E102: Total Wholesaler Liability - WN - real | G102: £m
C104: CMA exclusions
D105: nominal | E105: Actuals for CMA excluded items - WN - nominal | G105: £m | K105: =SUMIF('Consolidated actual totex inp'!$L:$L, InpActive!$E105, 'Consolidated actual totex inp'!G:G) -> 1.477 | L105: =SUMIF('Consolidated actual totex inp'!$L:$L, InpActive!$E105, 'Consolidated actual totex inp'!H:H) -> 2.307 | M105: =SUMIF('Consolidated actual totex inp'!$L:$L, InpActive!$E105, 'Consolidated actual totex inp'!I:I) -> 2.955106 | N105: =SUMIF('Consolidated actual totex inp'!$L:$L, InpActive!$E105, 'Consolidated actual totex inp'!J:J) -> 8.320029 | O105: =SUMIF('Consolidated actual totex inp'!$L:$L, InpActive!$E105, 'Consolidated actual totex inp'!K:K) -> 20.929271
D106: 2017/18 CPIH | E106: Allowance for CMA excluded items - WN - real | G106: £m | K106: =SUMIFS('Non-fountain inputs'!C$8:C$27, 'Non-fountain inputs'!$A$8:$A$27, InpActive!$P$1, 'Non-fountain inputs'!$B$8:$B$27, InpActive!$E106) -> 28.20314628 | L106: =SUMIFS('Non-fountain inputs'!D$8:D$27, 'Non-fountain inputs'!$A$8:$A$27, InpActive!$P$1, 'Non-fountain inputs'!$B$8:$B$27, InpActive!$E106) -> 37.33113936 | M106: =SUMIFS('Non-fountain inputs'!E$8:E$27, 'Non-fountain inputs'!$A$8:$A$27, InpActive!$P$1, 'Non-fountain inputs'!$B$8:$B$27, InpActive!$E106) -> 40.95097815 | N106: =SUMIFS('Non-fountain inputs'!F$8:F$27, 'Non-fountain inputs'!$A$8:$A$27, InpActive!$P$1, 'Non-fountain inputs'!$B$8:$B$27, InpActive!$E106) -> 38.771684 | O106: =SUMIFS('Non-fountain inputs'!G$8:G$27, 'Non-fountain inputs'!$A$8:$A$27, InpActive!$P$1, 'Non-fountain inputs'!$B$8:$B$27, InpActive!$E106) -> 84.84461221
A107: PD9_13WN_PR24 | E107: CMA excluded items sharing rate - WN - real | F107: 1 | G107: %
B109: Wastewater Network
C110: Wage adjustment
A111: C_TBC_WWN_PR19CA008_OFWAT | D111: 2017/18 CPIH | E111: Base Costs - WWN - Real | F111: =SUMIFS('F_Inputs-APR & PR19'!Q:Q, 'F_Inputs-APR & PR19'!A:A, InpActive!$P$1, 'F_Inputs-APR & PR19'!B:B, InpActive!A111) -> 3413.825943 | G111: £m
D112: 2017/18 CPIH | E112: Metering (excluding new connections) for meters requested by optants, customers and businesses - WWN - Real | G112: £m
A113: C_PR19_E_WW_WINEP_WWN | D113: 2017/18 CPIH | E113: WINEP / NEP ~ In-the-Round - WWN - Real | F113: =SUMIFS(F_Inputs!L:L, F_Inputs!A:A, InpActive!P1, F_Inputs!B:B, InpActive!A113) -> 328.0668239 | G113: £m
A115: C_OPEX_SPLIT_BASE_WWN_PR19CA091 | E115: Opex Split Profile - Base costs - WWN | G115: % | K115: =SUMIFS(F_Inputs!F:F, F_Inputs!$A:$A, InpActive!$P$1, F_Inputs!$B:$B, InpActive!$A115) -> 0.1025942701 | L115: =SUMIFS(F_Inputs!G:G, F_Inputs!$A:$A, InpActive!$P$1, F_Inputs!$B:$B, InpActive!$A115) -> 0.09832045693 | M115: =SUMIFS(F_Inputs!H:H, F_Inputs!$A:$A, InpActive!$P$1, F_Inputs!$B:$B, InpActive!$A115) -> 0.09637933908 | N115: =SUMIFS(F_Inputs!I:I, F_Inputs!$A:$A, InpActive!$P$1, F_Inputs!$B:$B, InpActive!$A115) -> 0.09570810239 | O115: =SUMIFS(F_Inputs!J:J, F_Inputs!$A:$A, InpActive!$P$1, F_Inputs!$B:$B, InpActive!$A115) -> 0.09650555475
A116: C_CAPEX_SPLIT_BASE_WWN_PR19CA091 | E116: Capex Split Profile - Base costs - WWN | G116: % | K116: =SUMIFS(F_Inputs!F:F, F_Inputs!$A:$A, InpActive!$P$1, F_Inputs!$B:$B, InpActive!$A116) -> 0.1081780884 | L116: =SUMIFS(F_Inputs!G:G, F_Inputs!$A:$A, InpActive!$P$1, F_Inputs!$B:$B, InpActive!$A116) -> 0.1226413125 | M116: =SUMIFS(F_Inputs!H:H, F_Inputs!$A:$A, InpActive!$P$1, F_Inputs!$B:$B, InpActive!$A116) -> 0.1115497387 | N116: =SUMIFS(F_Inputs!I:I, F_Inputs!$A:$A, InpActive!$P$1, F_Inputs!$B:$B, InpActive!$A116) -> 0.09173383006 | O116: =SUMIFS(F_Inputs!J:J, F_Inputs!$A:$A, InpActive!$P$1, F_Inputs!$B:$B, InpActive!$A116) -> 0.07638930715
A118: WWN opex for cost sharing | E118: Opex split profile - Cost sharing - WWN | G118: % | K118: =SUMIFS('Non-fountain inputs'!D:D, 'Non-fountain inputs'!$A:$A, InpActive!$P$1, 'Non-fountain inputs'!$B:$B, InpActive!$A118) -> 0.09108738177 | L118: =SUMIFS('Non-fountain inputs'!E:E, 'Non-fountain inputs'!$A:$A, InpActive!$P$1, 'Non-fountain inputs'!$B:$B, InpActive!$A118) -> 0.08663311776 | M118: =SUMIFS('Non-fountain inputs'!F:F, 'Non-fountain inputs'!$A:$A, InpActive!$P$1, 'Non-fountain inputs'!$B:$B, InpActive!$A118) -> 0.08523273079 | N118: =SUMIFS('Non-fountain inputs'!G:G, 'Non-fountain inputs'!$A:$A, InpActive!$P$1, 'Non-fountain inputs'!$B:$B, InpActive!$A118) -> 0.08470330202 | O118: =SUMIFS('Non-fountain inputs'!H:H, 'Non-fountain inputs'!$A:$A, InpActive!$P$1, 'Non-fountain inputs'!$B:$B, InpActive!$A118) -> 0.08577750502
A119: WWN Capex for cost sharing | E119: Capex split profile - Cost sharing - WWN | G119: % | K119: =SUMIFS('Non-fountain inputs'!D:D, 'Non-fountain inputs'!$A:$A, InpActive!$P$1, 'Non-fountain inputs'!$B:$B, InpActive!$A119) -> 0.1086871319 | L119: =SUMIFS('Non-fountain inputs'!E:E, 'Non-fountain inputs'!$A:$A, InpActive!$P$1, 'Non-fountain inputs'!$B:$B, InpActive!$A119) -> 0.123843571 | M119: =SUMIFS('Non-fountain inputs'!F:F, 'Non-fountain inputs'!$A:$A, InpActive!$P$1, 'Non-fountain inputs'!$B:$B, InpActive!$A119) -> 0.1267002637 | N119: =SUMIFS('Non-fountain inputs'!G:G, 'Non-fountain inputs'!$A:$A, InpActive!$P$1, 'Non-fountain inputs'!$B:$B, InpActive!$A119) -> 0.1140707089 | O119: =SUMIFS('Non-fountain inputs'!H:H, 'Non-fountain inputs'!$A:$A, InpActive!$P$1, 'Non-fountain inputs'!$B:$B, InpActive!$A119) -> 0.0932642872
E121: Business Rates forecast profile - WWN | G121: % | K121: 0.2 | L121: 0.2 | M121: 0.2 | N121: 0.2 | O121: 0.2
C123: Net totex for cost sharing reconciliation
D124: nominal | E124: Net totex for cost sharing reconciliation - WWN - nominal | G124: £m | K124: =SUMIF('Consolidated actual totex inp'!$L:$L, InpActive!$E$124, 'Consolidated actual totex inp'!G:G) -> 633.156 | L124: =SUMIF('Consolidated actual totex inp'!$L:$L, InpActive!$E$124, 'Consolidated actual totex inp'!H:H) -> 748.559 | M124: =SUMIF('Consolidated actual totex inp'!$L:$L, InpActive!$E$124, 'Consolidated actual totex inp'!I:I) -> 944.791 | N124: =SUMIF('Consolidated actual totex inp'!$L:$L, InpActive!$E$124, 'Consolidated actual totex inp'!J:J) -> 1185.521561 | O124: =SUMIF('Consolidated actual totex inp'!$L:$L, InpActive!$E$124, 'Consolidated actual totex inp'!K:K) -> 1266.030148
A125: Totex WWN - Allowed totex net of Grants & contributions, abstraction charges & business rates | D125: 2017/18 CPIH | E125: Net totex available for cost sharing - WWN - Real | F125: =SUMIFS('Non-fountain inputs'!I:I, 'Non-fountain inputs'!A:A, InpActive!$P$1, 'Non-fountain inputs'!B:B, InpActive!A125) -> 3546.060361 | G125: £m
D126: nominal | E126: Performance related pay recovery mechanism adjustment - WWN - Nominal (Neg) | G126: £m | K126: ='Non-fountain inputs'!D269*0.5 -> 0 | L126: ='Non-fountain inputs'!E269*0.5 -> 0 | M126: ='Non-fountain inputs'!F269*0.5 -> 0 | N126: ='Non-fountain inputs'!G269*0.5 -> -0.385 | O126: ='Non-fountain inputs'!H269*0.5 -> 0
A128: C__PR24PD11_PD11_12WWN_PRETVM_PR24 | D128: 2017/18 CPIH | E128: Total final WINEP reconciliation - WWN - real | G128: £m | K128: =SUMIF(F_Inputs!$B:$B, InpActive!$A128, F_Inputs!F:F) -> 0 | L128: =SUMIF(F_Inputs!$B:$B, InpActive!$A128, F_Inputs!G:G) -> 0 | M128: =SUMIF(F_Inputs!$B:$B, InpActive!$A128, F_Inputs!H:H) -> -26.5151 | N128: =SUMIF(F_Inputs!$B:$B, InpActive!$A128, F_Inputs!I:I) -> -26.5151 | O128: =SUMIF(F_Inputs!$B:$B, InpActive!$A128, F_Inputs!J:J) -> -26.5151
C130: Business Rates and Abstraction
A131: C_UBC_WWN_PR19CA008_OFWAT | D131: 2017/18 CPIH | E131: Business rates - Forecast - WWN - Real | F131: =SUMIFS('F_Inputs-APR & PR19'!$Q:$Q, 'F_Inputs-APR & PR19'!$A:$A, InpActive!$P$1, 'F_Inputs-APR & PR19'!$B:$B, InpActive!$A131) -> 131.2828126 | G131: £m
D133: nominal | E133: Business rates - Actual - WWN - Nominal | G133: £m | K133: =SUMIF('Consolidated actual totex inp'!$L:$L, InpActive!$E133, 'Consolidated actual totex inp'!G:G) -> 37.65 | L133: =SUMIF('Consolidated actual totex inp'!$L:$L, InpActive!$E133, 'Consolidated actual totex inp'!H:H) -> 25.771 | M133: =SUMIF('Consolidated actual totex inp'!$L:$L, InpActive!$E133, 'Consolidated actual totex inp'!I:I) -> 43.67 | N133: =SUMIF('Consolidated actual totex inp'!$L:$L, InpActive!$E133, 'Consolidated actual totex inp'!J:J) -> 46.58483734 | O133: =SUMIF('Consolidated actual totex inp'!$L:$L, InpActive!$E133, 'Consolidated actual totex inp'!K:K) -> 49.87030575
E135: Weighted average PAYG rate - WWN | F135: =SUMIF('Non-fountain inputs'!$A$40:$A$56, InpActive!$P$1, 'Non-fountain inputs'!$D$40:$D$56) -> 0.473 | G135: %
A137: C_WWN_CS_EXANTE_001 | D137: 2017/18 CPIH | E137: Ex ante allowance above Ofwat forecast - Wastewater Network - Real | F137: =SUMIFS('F_Inputs-APR & PR19'!Q:Q, 'F_Inputs-APR & PR19'!A:A, InpActive!$P$1, 'F_Inputs-APR & PR19'!B:B, InpActive!A137) -> 0 | G137: £m
C139: Bad Debt
D140: 2017/18 CPIH | E140: Business retail bad debt liability due to covid liquidity measures - WWN - real | G140: £m
D141: 2017/18 CPIH | E141: Total Wholesaler Liability - WWN - real | G141: £m
C143: CMA exclusions
D144: nominal | E144: Actuals for CMA excluded items - WWN - nominal | G144: £m | K144: =SUMIF('Consolidated actual totex inp'!$L:$L, InpActive!$E144, 'Consolidated actual totex inp'!G:G) -> 0 | L144: =SUMIF('Consolidated actual totex inp'!$L:$L, InpActive!$E144, 'Consolidated actual totex inp'!H:H) -> 0 | M144: =SUMIF('Consolidated actual totex inp'!$L:$L, InpActive!$E144, 'Consolidated actual totex inp'!I:I) -> 0 | N144: =SUMIF('Consolidated actual totex inp'!$L:$L, InpActive!$E144, 'Consolidated actual totex inp'!J:J) -> 0 | O144: =SUMIF('Consolidated actual totex inp'!$L:$L, InpActive!$E144, 'Consolidated actual totex inp'!K:K) -> 0
D145: 2017/18 CPIH | E145: Allowance for CMA excluded items - WWN - real | G145: £m | K145: =SUMIFS('Non-fountain inputs'!C$8:C$23, 'Non-fountain inputs'!$A$8:$A$23, InpActive!$P$1, 'Non-fountain inputs'!$B$8:$B$23, InpActive!$E145) -> 0 | L145: =SUMIFS('Non-fountain inputs'!D$8:D$23, 'Non-fountain inputs'!$A$8:$A$23, InpActive!$P$1, 'Non-fountain inputs'!$B$8:$B$23, InpActive!$E145) -> 0 | M145: =SUMIFS('Non-fountain inputs'!E$8:E$23, 'Non-fountain inputs'!$A$8:$A$23, InpActive!$P$1, 'Non-fountain inputs'!$B$8:$B$23, InpActive!$E145) -> 0 | N145: =SUMIFS('Non-fountain inputs'!F$8:F$23, 'Non-fountain inputs'!$A$8:$A$23, InpActive!$P$1, 'Non-fountain inputs'!$B$8:$B$23, InpActive!$E145) -> 0 | O145: =SUMIFS('Non-fountain inputs'!G$8:G$23, 'Non-fountain inputs'!$A$8:$A$23, InpActive!$P$1, 'Non-fountain inputs'!$B$8:$B$23, InpActive!$E145) -> 0
A146: PD9_13WWN_PR24 | E146: CMA excluded items sharing rate - WWN - real | F146: =SUMIFS(F_Inputs!H:H, F_Inputs!A:A, InpActive!$P$1, F_Inputs!B:B, InpActive!A146) -> 0 | G146: %
B148: Bioresources
D149: Business Rates and Abstraction
A150: C_TBC_WBR_PR19CA008_OFWAT | D150: 2017/18 CPIH | E150: Base Costs - BIO - Real | F150: =SUMIFS('F_Inputs-APR & PR19'!Q:Q, 'F_Inputs-APR & PR19'!A:A, InpActive!$P$1, 'F_Inputs-APR & PR19'!B:B, InpActive!A150) -> 583.3300438 | G150: £m
A151: C_PR19_E_WW_WINEP_BIO | D151: 2017/18 CPIH | E151: WINEP / NEP ~ In-the-Round - BIO - Real | F151: =SUMIFS(F_Inputs!L:L, F_Inputs!A:A, InpActive!P39, F_Inputs!B:B, InpActive!A151) -> 0 | G151: £m
A153: C_OPEX_SPLIT_BASE_BR_PR19CA091 | E153: Opex Split Profile - Base costs - BIO | G153: % | K153: =SUMIFS(F_Inputs!F:F, F_Inputs!$A:$A, InpActive!$P$1, F_Inputs!$B:$B, InpActive!$A153) -> 0.07089917301 | L153: =SUMIFS(F_Inputs!G:G, F_Inputs!$A:$A, InpActive!$P$1, F_Inputs!$B:$B, InpActive!$A153) -> 0.0746919429 | M153: =SUMIFS(F_Inputs!H:H, F_Inputs!$A:$A, InpActive!$P$1, F_Inputs!$B:$B, InpActive!$A153) -> 0.0765297189 | N153: =SUMIFS(F_Inputs!I:I, F_Inputs!$A:$A, InpActive!$P$1, F_Inputs!$B:$B, InpActive!$A153) -> 0.07288439705 | O153: =SUMIFS(F_Inputs!J:J, F_Inputs!$A:$A, InpActive!$P$1, F_Inputs!$B:$B, InpActive!$A153) -> 0.07297641713
A154: C_CAPEX_SPLIT_BASE_BR_PR19CA091 | E154: Capex Split Profile - Base costs - BIO | G154: % | K154: =SUMIFS(F_Inputs!F:F, F_Inputs!$A:$A, InpActive!$P$1, F_Inputs!$B:$B, InpActive!$A154) -> 0.08513374019 | L154: =SUMIFS(F_Inputs!G:G, F_Inputs!$A:$A, InpActive!$P$1, F_Inputs!$B:$B, InpActive!$A154) -> 0.1532476868 | M154: =SUMIFS(F_Inputs!H:H, F_Inputs!$A:$A, InpActive!$P$1, F_Inputs!$B:$B, InpActive!$A154) -> 0.1567105021 | N154: =SUMIFS(F_Inputs!I:I, F_Inputs!$A:$A, InpActive!$P$1, F_Inputs!$B:$B, InpActive!$A154) -> 0.1327111842 | O154: =SUMIFS(F_Inputs!J:J, F_Inputs!$A:$A, InpActive!$P$1, F_Inputs!$B:$B, InpActive!$A154) -> 0.1042152377
A156: C_UBC_WBR_PR19CA008_OFWAT | D156: 2017/18 CPIH | E156: Business rates - Forecast - BIO - Real | F156: =SUMIFS('F_Inputs-APR & PR19'!$Q:$Q, 'F_Inputs-APR & PR19'!$A:$A, InpActive!$P$1, 'F_Inputs-APR & PR19'!$B:$B, InpActive!$A156) -> 45.34036725 | G156: £m
D158: nominal | E158: Business rates - Actual - BIO - Nominal | G158: £m | K158: =SUMIF('Consolidated actual totex inp'!$L:$L, InpActive!$E$158, 'Consolidated actual totex inp'!G:G) -> 0.477 | L158: =SUMIF('Consolidated actual totex inp'!$L:$L, InpActive!$E$158, 'Consolidated actual totex inp'!H:H) -> 6.335 | M158: =SUMIF('Consolidated actual totex inp'!$L:$L, InpActive!$E$158, 'Consolidated actual totex inp'!I:I) -> 0.499 | N158: =SUMIF('Consolidated actual totex inp'!$L:$L, InpActive!$E$158, 'Consolidated actual totex inp'!J:J) -> 0.5147163885 | O158: =SUMIF('Consolidated actual totex inp'!$L:$L, InpActive!$E$158, 'Consolidated actual totex inp'!K:K) -> 0.5880153959
E160: Business Rates forecast profile - BIO | G160: % | K160: 0.2 | L160: 0.2 | M160: 0.2 | N160: 0.2 | O160: 0.2
E162: Weighted average PAYG rate - BIO | F162: =SUMIF('Non-fountain inputs'!$A$40:$A$56, InpActive!$P$1, 'Non-fountain inputs'!$E$40:$E$56) -> 0.385 | G162: %
C164: CMA exclusions
D165: nominal | E165: Actuals for CMA excluded items - BIO - nominal | G165: £m | K165: =SUMIF('Consolidated actual totex inp'!$L:$L, InpActive!$E165, 'Consolidated actual totex inp'!G:G) -> 0 | L165: =SUMIF('Consolidated actual totex inp'!$L:$L, InpActive!$E165, 'Consolidated actual totex inp'!H:H) -> 0 | M165: =SUMIF('Consolidated actual totex inp'!$L:$L, InpActive!$E165, 'Consolidated actual totex inp'!I:I) -> 0 | N165: =SUMIF('Consolidated actual totex inp'!$L:$L, InpActive!$E165, 'Consolidated actual totex inp'!J:J) -> 0 | O165: =SUMIF('Consolidated actual totex inp'!$L:$L, InpActive!$E165, 'Consolidated actual totex inp'!K:K) -> 0
D166: 2017/18 CPIH | E166: Allowance for CMA excluded items - BIO - real | G166: £m | K166: =SUMIFS('Non-fountain inputs'!C$8:C$23, 'Non-fountain inputs'!$A$8:$A$23, InpActive!$P$1, 'Non-fountain inputs'!$B$8:$B$23, InpActive!$E166) -> 0 | L166: =SUMIFS('Non-fountain inputs'!D$8:D$23, 'Non-fountain inputs'!$A$8:$A$23, InpActive!$P$1, 'Non-fountain inputs'!$B$8:$B$23, InpActive!$E166) -> 0 | M166: =SUMIFS('Non-fountain inputs'!E$8:E$23, 'Non-fountain inputs'!$A$8:$A$23, InpActive!$P$1, 'Non-fountain inputs'!$B$8:$B$23, InpActive!$E166) -> 0 | N166: =SUMIFS('Non-fountain inputs'!F$8:F$23, 'Non-fountain inputs'!$A$8:$A$23, InpActive!$P$1, 'Non-fountain inputs'!$B$8:$B$23, InpActive!$E166) -> 0 | O166: =SUMIFS('Non-fountain inputs'!G$8:G$23, 'Non-fountain inputs'!$A$8:$A$23, InpActive!$P$1, 'Non-fountain inputs'!$B$8:$B$23, InpActive!$E166) -> 0
A167: PD9_13BIO_PR24 | E167: CMA excluded items sharing rate - BIO - real | F167: =SUMIFS(F_Inputs!H:H, F_Inputs!A:A, InpActive!$P$1, F_Inputs!B:B, InpActive!A167) -> 0 | G167: %
C169: Bonuses
D170: nominal | E170: Performance related pay recovery mechanism adjustment - BIO - Nominal (Neg) | G170: £m
B173: Thames Tideway
C174: Wage adjustment
D175: 2017/18 CPIH | E175: Base Costs - TTT - Real | G175: £m
E177: Opex Split Profile - Base costs - TTT | G177: %
E178: Capex Split Profile - Base costs - TTT | G178: %
E180: Opex split profile - Cost sharing - TTT | G180: % | K180: 0.02278212282 | L180: 0.03094524227 | M180: 0.03375425794 | N180: 0.03650543658 | O180: 0.04250507301
E181: Capex split profile - Cost sharing - TTT | G181: % | K181: 0.2102163623 | L181: 0.3002478022 | M181: 0.1875049563 | N181: 0.1581087661 | O181: -0.02257001953
C183: Net totex for cost sharing reconciliation
D184: nominal | E184: Net totex for cost sharing reconciliation - TTT - nominal | G184: £m | K184: =SUMIF('Consolidated actual totex inp'!$L$59:$L$83, InpActive!$E$184, 'Consolidated actual totex inp'!G$59:G$83) -> 19.249 | L184: =SUMIF('Consolidated actual totex inp'!$L$59:$L$83, InpActive!$E$184, 'Consolidated actual totex inp'!H$59:H$83) -> 29.329 | M184: =SUMIF('Consolidated actual totex inp'!$L$59:$L$83, InpActive!$E$184, 'Consolidated actual totex inp'!I$59:I$83) -> 33.324 | N184: =SUMIF('Consolidated actual totex inp'!$L$59:$L$83, InpActive!$E$184, 'Consolidated actual totex inp'!J$59:J$83) -> 31.92829304 | O184: =SUMIF('Consolidated actual totex inp'!$L$59:$L$83, InpActive!$E$184, 'Consolidated actual totex inp'!K$59:K$83) -> 28.42274419
D185: 2017/18 CPIH | E185: Net totex available for cost sharing - TTT - Real | F185: ='Non-fountain inputs'!I204 -> 119.8 | G185: £m
D186: nominal | E186: Performance related pay recovery mechanism adjustment - TTT - Nominal (Neg) | G186: £m
D188: 2017/18 CPIH | E188: Total final WINEP reconciliation - TTT - real | G188: £m
E190: Weighted average PAYG rate - TTT | F190: 0.075 | G190: %
A193: GREEN RECOVERY
C195: Water Resources
E197: Actual Green Recovery Expenditure - WR - nominal | G197: £m | H197: =SUM(K197:O197) -> 0 | K197: =SUMIF('Consolidated actual totex inp'!$L$59:$L$79, InpActive!$E197, 'Consolidated actual totex inp'!G$59:G$79) -> 0 | L197: =SUMIF('Consolidated actual totex inp'!$L$59:$L$79, InpActive!$E197, 'Consolidated actual totex inp'!H$59:H$79) -> 0 | M197: =SUMIF('Consolidated actual totex inp'!$L$59:$L$79, InpActive!$E197, 'Consolidated actual totex inp'!I$59:I$79) -> 0 | N197: =SUMIF('Consolidated actual totex inp'!$L$59:$L$79, InpActive!$E197, 'Consolidated actual totex inp'!J$59:J$79) -> 0 | O197: =SUMIF('Consolidated actual totex inp'!$L$59:$L$79, InpActive!$E197, 'Consolidated actual totex inp'!K$59:K$79) -> 0
A198: C_PR24PD21_01WR_PR24 | E198: Total adjusted cost allowance - WR - real | G198: £m | H198: =SUM(K198:O198) -> 0 | K198: =SUMIF(F_Inputs!$B:$B, InpActive!$A198, F_Inputs!F:F) -> 0 | L198: =SUMIF(F_Inputs!$B:$B, InpActive!$A198, F_Inputs!G:G) -> 0 | M198: =SUMIF(F_Inputs!$B:$B, InpActive!$A198, F_Inputs!H:H) -> 0 | N198: =SUMIF(F_Inputs!$B:$B, InpActive!$A198, F_Inputs!I:I) -> 0 | O198: =SUMIF(F_Inputs!$B:$B, InpActive!$A198, F_Inputs!J:J) -> 0
C200: Water Network
E202: Actual Green Recovery Expenditure - WN - nominal | G202: £m | H202: =SUM(K202:O202) -> 0 | K202: =SUMIF('Consolidated actual totex inp'!$L$59:$L$79, InpActive!$E202, 'Consolidated actual totex inp'!G$59:G$79) -> 0 | L202: =SUMIF('Consolidated actual totex inp'!$L$59:$L$79, InpActive!$E202, 'Consolidated actual totex inp'!H$59:H$79) -> 0 | M202: =SUMIF('Consolidated actual totex inp'!$L$59:$L$79, InpActive!$E202, 'Consolidated actual totex inp'!I$59:I$79) -> 0 | N202: =SUMIF('Consolidated actual totex inp'!$L$59:$L$79, InpActive!$E202, 'Consolidated actual totex inp'!J$59:J$79) -> 0 | O202: =SUMIF('Consolidated actual totex inp'!$L$59:$L$79, InpActive!$E202, 'Consolidated actual totex inp'!K$59:K$79) -> 0
A203: C_PR24PD21_01WN_PR24 | E203: Total adjusted cost allowance - WN - real | G203: £m | H203: =SUM(K203:O203) -> 0 | K203: =SUMIF(F_Inputs!$B:$B, InpActive!$A203, F_Inputs!F:F) -> 0 | L203: =SUMIF(F_Inputs!$B:$B, InpActive!$A203, F_Inputs!G:G) -> 0 | M203: =SUMIF(F_Inputs!$B:$B, InpActive!$A203, F_Inputs!H:H) -> 0 | N203: =SUMIF(F_Inputs!$B:$B, InpActive!$A203, F_Inputs!I:I) -> 0 | O203: =SUMIF(F_Inputs!$B:$B, InpActive!$A203, F_Inputs!J:J) -> 0
C205: Wastewater Network
E207: Actual Green Recovery Expenditure - WWN - nominal | G207: £m | H207: =SUM(K207:O207) -> 0 | K207: =SUMIF('Consolidated actual totex inp'!$L$59:$L$79, InpActive!$E207, 'Consolidated actual totex inp'!G$59:G$79) -> 0 | L207: =SUMIF('Consolidated actual totex inp'!$L$59:$L$79, InpActive!$E207, 'Consolidated actual totex inp'!H$59:H$79) -> 0 | M207: =SUMIF('Consolidated actual totex inp'!$L$59:$L$79, InpActive!$E207, 'Consolidated actual totex inp'!I$59:I$79) -> 0 | N207: =SUMIF('Consolidated actual totex inp'!$L$59:$L$79, InpActive!$E207, 'Consolidated actual totex inp'!J$59:J$79) -> 0 | O207: =SUMIF('Consolidated actual totex inp'!$L$59:$L$79, InpActive!$E207, 'Consolidated actual totex inp'!K$59:K$79) -> 0
A208: C_PR24PD21_01WWN_PR24 | E208: Total adjusted cost allowance - WWN - real | G208: £m | H208: =SUM(K208:O208) -> 0 | K208: =SUMIF(F_Inputs!$B:$B, InpActive!$A208, F_Inputs!F:F) -> 0 | L208: =SUMIF(F_Inputs!$B:$B, InpActive!$A208, F_Inputs!G:G) -> 0 | M208: =SUMIF(F_Inputs!$B:$B, InpActive!$A208, F_Inputs!H:H) -> 0 | N208: =SUMIF(F_Inputs!$B:$B, InpActive!$A208, F_Inputs!I:I) -> 0 | O208: =SUMIF(F_Inputs!$B:$B, InpActive!$A208, F_Inputs!J:J) -> 0
D211: Green Recovery Sharing Rates
E212: Green Recovery Outperformance Rate | F212: 0.1 | G212: %
E213: Green Recovery Underperformance Rate | F213: 0.75 | G213: %
A215: INFLATION
D217: Base Year
E218: Consumer Price Index (with housing) for April | F218: 103.2 | G218: Index
E219: Consumer Price Index (with housing) for May | F219: 103.5 | G219: Index
E220: Consumer Price Index (with housing) for June | F220: 103.5 | G220: Index
E221: Consumer Price Index (with housing) for July | F221: 103.5 | G221: Index
E222: Consumer Price Index (with housing) for August | F222: 104 | G222: Index
E223: Consumer Price Index (with housing) for September | F223: 104.3 | G223: Index
E224: Consumer Price Index (with housing) for October | F224: 104.4 | G224: Index
E225: Consumer Price Index (with housing) for November | F225: 104.7 | G225: Index
E226: Consumer Price Index (with housing) for December | F226: 105 | G226: Index
E227: Consumer Price Index (with housing) for January | F227: 104.5 | G227: Index
E228: Consumer Price Index (with housing) for February | F228: 104.9 | G228: Index
E229: Consumer Price Index (with housing) for March | F229: 105.1 | G229: Index
D231: Period
E232: Consumer Price Index (with housing) for April | G232: Index | J232: 107.6 | K232: =F_Inputs!F40 -> 108.6 | L232: =F_Inputs!G40 -> 110.4 | M232: =F_Inputs!H40 -> 119 | N232: =F_Inputs!I40 -> 128.3 | O232: =F_Inputs!J40 -> 132.2 | P232: =F_Inputs!K40 -> 137.7
E233: Consumer Price Index (with housing) for May | G233: Index | J233: 107.9 | K233: =F_Inputs!F41 -> 108.6 | L233: =F_Inputs!G41 -> 111 | M233: =F_Inputs!H41 -> 119.7 | N233: =F_Inputs!I41 -> 129.1 | O233: =F_Inputs!J41 -> 132.7 | P233: =F_Inputs!K41 -> 138
E234: Consumer Price Index (with housing) for June | G234: Index | J234: 107.9 | K234: =F_Inputs!F42 -> 108.8 | L234: =F_Inputs!G42 -> 111.4 | M234: =F_Inputs!H42 -> 120.5 | N234: =F_Inputs!I42 -> 129.4 | O234: =F_Inputs!J42 -> 133 | P234: =F_Inputs!K42 -> 138.4
E235: Consumer Price Index (with housing) for July | G235: Index | J235: 108 | K235: =F_Inputs!F43 -> 109.2 | L235: =F_Inputs!G43 -> 111.4 | M235: =F_Inputs!H43 -> 121.2 | N235: =F_Inputs!I43 -> 129 | O235: =F_Inputs!J43 -> 132.9 | P235: =F_Inputs!K43 -> 138.5
E236: Consumer Price Index (with housing) for August | G236: Index | J236: 108.3 | K236: =F_Inputs!F44 -> 108.8 | L236: =F_Inputs!G44 -> 112.1 | M236: =F_Inputs!H44 -> 121.8 | N236: =F_Inputs!I44 -> 129.4 | O236: =F_Inputs!J44 -> 133.4 | P236: =F_Inputs!K44 -> 
E237: Consumer Price Index (with housing) for September | G237: Index | J237: 108.4 | K237: =F_Inputs!F45 -> 109.2 | L237: =F_Inputs!G45 -> 112.4 | M237: =F_Inputs!H45 -> 122.3 | N237: =F_Inputs!I45 -> 130.1 | O237: =F_Inputs!J45 -> 133.5 | P237: =F_Inputs!K45 -> 
E238: Consumer Price Index (with housing) for October | G238: Index | J238: 108.3 | K238: =F_Inputs!F46 -> 109.2 | L238: =F_Inputs!G46 -> 113.4 | M238: =F_Inputs!H46 -> 124.3 | N238: =F_Inputs!I46 -> 130.2 | O238: =F_Inputs!J46 -> 134.3 | P238: =F_Inputs!K46 -> 
E239: Consumer Price Index (with housing) for November | G239: Index | J239: 108.5 | K239: =F_Inputs!F47 -> 109.1 | L239: =F_Inputs!G47 -> 114.1 | M239: =F_Inputs!H47 -> 124.8 | N239: =F_Inputs!I47 -> 130 | O239: =F_Inputs!J47 -> 134.6 | P239: =F_Inputs!K47 -> 139.4456
E240: Consumer Price Index (with housing) for December | G240: Index | J240: 108.5 | K240: =F_Inputs!F48 -> 109.4 | L240: =F_Inputs!G48 -> 114.7 | M240: =F_Inputs!H48 -> 125.3 | N240: =F_Inputs!I48 -> 130.5 | O240: =F_Inputs!J48 -> 135.1 | P240: =F_Inputs!K48 -> 
E241: Consumer Price Index (with housing) for January | G241: Index | J241: 108.3 | K241: =F_Inputs!F49 -> 109.3 | L241: =F_Inputs!G49 -> 114.6 | M241: =F_Inputs!H49 -> 124.8 | N241: =F_Inputs!I49 -> 130 | O241: =F_Inputs!J49 -> 135.1 | P241: =F_Inputs!K49 -> 
E242: Consumer Price Index (with housing) for February | G242: Index | J242: 108.6 | K242: =F_Inputs!F50 -> 109.4 | L242: =F_Inputs!G50 -> 115.4 | M242: =F_Inputs!H50 -> 126 | N242: =F_Inputs!I50 -> 130.8 | O242: =F_Inputs!J50 -> 135.6 | P242: =F_Inputs!K50 -> 
E243: Consumer Price Index (with housing) for March | G243: Index | J243: 108.6 | K243: =F_Inputs!F51 -> 109.7 | L243: =F_Inputs!G51 -> 116.5 | M243: =F_Inputs!H51 -> 126.8 | N243: =F_Inputs!I51 -> 131.6 | O243: =F_Inputs!J51 -> 136.1 | P243: =F_Inputs!K51 -> 
J244: =AVERAGE(J232:J243) -> 108.2416667 | K244: =AVERAGE(K232:K243) -> 109.1083333 | L244: 113.1166667 | M244: 123.0416667 | N244: 129.8666667 | O244: 134.0416667
K245: =K244/J244 -> 1.008006775 | L245: =L244/K244 -> 1.036737188 | M245: 1.08774127 | N245: 1.055469015 | O245: 1.032148357
A246: WAGE GROWTH
D248: Wage Growth
E249: OBR Forecast wage growth for PR19 FD | G249: % | J249: 0.01 | K249: 0.011 | L249: 0.011 | M249: 0.012 | N249: 0.013 | O249: 0.014
E250: ASHE Gross Hourly Wage All - Nominal | G250: £ / hour | J250: ='Non-fountain inputs'!B4 -> 17.06 | K250: ='Non-fountain inputs'!C4 -> 17.54 | L250: ='Non-fountain inputs'!D4 -> 18.14 | M250: ='Non-fountain inputs'!E4 -> 19.68 | N250: ='Non-fountain inputs'!F4 -> 20.81 | O250: =N250*(1+O249)*O245 -> 21.77971342
D252: Percentage totex linked to wage growth
E253: Percentage totex linked to wage growth - WR | F253: 0.386 | G253: %
E255: Percentage totex linked to wage growth - WN | F255: 0.386 | G255: %
E257: Percentage totex linked to wage growth - WWN | F257: 0.386 | G257: %
E259: Percentage totex linked to wage growth - BIO | F259: 0.386 | G259: %
E261: Percentage totex linked to wage growth - TTT | F261: 0.386 | G261: %
A264: COST SHARING INPUTS
D266: Totex cost sharing rates
A267: C_WR_WN_OUTPERFORM_001 | E267: Outperformance Rate - WR | G267: % | K267: =SUMIFS('F_Inputs-APR & PR19'!Q:Q, 'F_Inputs-APR & PR19'!A:A, InpActive!$P$1, 'F_Inputs-APR & PR19'!B:B, InpActive!A267) -> 0.3227046095 | L267: =SUMIFS('F_Inputs-APR & PR19'!Q:Q, 'F_Inputs-APR & PR19'!A:A, InpActive!$P$1, 'F_Inputs-APR & PR19'!B:B, InpActive!A267) -> 0.3227046095 | M267: =SUMIFS('F_Inputs-APR & PR19'!Q:Q, 'F_Inputs-APR & PR19'!A:A, InpActive!$P$1, 'F_Inputs-APR & PR19'!B:B, InpActive!A267) -> 0.3227046095 | N267: =SUMIFS('F_Inputs-APR & PR19'!Q:Q, 'F_Inputs-APR & PR19'!A:A, InpActive!$P$1, 'F_Inputs-APR & PR19'!B:B, InpActive!A267) -> 0.3227046095 | O267: =SUMIFS('F_Inputs-APR & PR19'!Q:Q, 'F_Inputs-APR & PR19'!A:A, InpActive!$P$1, 'F_Inputs-APR & PR19'!B:B, InpActive!A267) -> 0.3227046095
A268: C_WR_WN_UNDERPERFORM_001 | E268: Underperformance Rate - WR | G268: % | K268: =SUMIFS('F_Inputs-APR & PR19'!Q:Q, 'F_Inputs-APR & PR19'!A:A, InpActive!$P$1, 'F_Inputs-APR & PR19'!B:B, InpActive!A268) -> 0.75 | L268: =SUMIFS('F_Inputs-APR & PR19'!Q:Q, 'F_Inputs-APR & PR19'!A:A, InpActive!$P$1, 'F_Inputs-APR & PR19'!B:B, InpActive!A268) -> 0.75 | M268: =SUMIFS('F_Inputs-APR & PR19'!Q:Q, 'F_Inputs-APR & PR19'!A:A, InpActive!$P$1, 'F_Inputs-APR & PR19'!B:B, InpActive!A268) -> 0.75 | N268: =SUMIFS('F_Inputs-APR & PR19'!Q:Q, 'F_Inputs-APR & PR19'!A:A, InpActive!$P$1, 'F_Inputs-APR & PR19'!B:B, InpActive!A268) -> 0.75 | O268: 0.6
A270: C_WR_WN_OUTPERFORM_001 | E270: Outperformance Rate - WN | G270: % | K270: =SUMIFS('F_Inputs-APR & PR19'!Q:Q, 'F_Inputs-APR & PR19'!A:A, InpActive!$P$1, 'F_Inputs-APR & PR19'!B:B, InpActive!A270) -> 0.3227046095 | L270: =SUMIFS('F_Inputs-APR & PR19'!Q:Q, 'F_Inputs-APR & PR19'!A:A, InpActive!$P$1, 'F_Inputs-APR & PR19'!B:B, InpActive!A270) -> 0.3227046095 | M270: =SUMIFS('F_Inputs-APR & PR19'!Q:Q, 'F_Inputs-APR & PR19'!A:A, InpActive!$P$1, 'F_Inputs-APR & PR19'!B:B, InpActive!A270) -> 0.3227046095 | N270: =SUMIFS('F_Inputs-APR & PR19'!Q:Q, 'F_Inputs-APR & PR19'!A:A, InpActive!$P$1, 'F_Inputs-APR & PR19'!B:B, InpActive!A270) -> 0.3227046095 | O270: =SUMIFS('F_Inputs-APR & PR19'!Q:Q, 'F_Inputs-APR & PR19'!A:A, InpActive!$P$1, 'F_Inputs-APR & PR19'!B:B, InpActive!A270) -> 0.3227046095
A271: C_WR_WN_UNDERPERFORM_001 | E271: Underperformance Rate - WN | G271: % | K271: =SUMIFS('F_Inputs-APR & PR19'!Q:Q, 'F_Inputs-APR & PR19'!A:A, InpActive!$P$1, 'F_Inputs-APR & PR19'!B:B, InpActive!A271) -> 0.75 | L271: =SUMIFS('F_Inputs-APR & PR19'!Q:Q, 'F_Inputs-APR & PR19'!A:A, InpActive!$P$1, 'F_Inputs-APR & PR19'!B:B, InpActive!A271) -> 0.75 | M271: =SUMIFS('F_Inputs-APR & PR19'!Q:Q, 'F_Inputs-APR & PR19'!A:A, InpActive!$P$1, 'F_Inputs-APR & PR19'!B:B, InpActive!A271) -> 0.75 | N271: =SUMIFS('F_Inputs-APR & PR19'!Q:Q, 'F_Inputs-APR & PR19'!A:A, InpActive!$P$1, 'F_Inputs-APR & PR19'!B:B, InpActive!A271) -> 0.75 | O271: 0.6
A273: C_WWN_OUTPERFORM_001 | E273: Outperformance Rate - WWN | G273: % | K273: =SUMIFS('F_Inputs-APR & PR19'!Q:Q, 'F_Inputs-APR & PR19'!A:A, InpActive!$P$1, 'F_Inputs-APR & PR19'!B:B, InpActive!A273) -> 0.4422123213 | L273: =SUMIFS('F_Inputs-APR & PR19'!Q:Q, 'F_Inputs-APR & PR19'!A:A, InpActive!$P$1, 'F_Inputs-APR & PR19'!B:B, InpActive!A273) -> 0.4422123213 | M273: =SUMIFS('F_Inputs-APR & PR19'!Q:Q, 'F_Inputs-APR & PR19'!A:A, InpActive!$P$1, 'F_Inputs-APR & PR19'!B:B, InpActive!A273) -> 0.4422123213 | N273: =SUMIFS('F_Inputs-APR & PR19'!Q:Q, 'F_Inputs-APR & PR19'!A:A, InpActive!$P$1, 'F_Inputs-APR & PR19'!B:B, InpActive!A273) -> 0.4422123213 | O273: =SUMIFS('F_Inputs-APR & PR19'!Q:Q, 'F_Inputs-APR & PR19'!A:A, InpActive!$P$1, 'F_Inputs-APR & PR19'!B:B, InpActive!A273) -> 0.4422123213
A274: C_WWN_UNDERPERFORM_001 | E274: Underperformance Rate - WWN | G274: % | K274: =SUMIFS('F_Inputs-APR & PR19'!Q:Q, 'F_Inputs-APR & PR19'!A:A, InpActive!$P$1, 'F_Inputs-APR & PR19'!B:B, InpActive!A274) -> 0.75 | L274: =SUMIFS('F_Inputs-APR & PR19'!Q:Q, 'F_Inputs-APR & PR19'!A:A, InpActive!$P$1, 'F_Inputs-APR & PR19'!B:B, InpActive!A274) -> 0.75 | M274: =SUMIFS('F_Inputs-APR & PR19'!Q:Q, 'F_Inputs-APR & PR19'!A:A, InpActive!$P$1, 'F_Inputs-APR & PR19'!B:B, InpActive!A274) -> 0.75 | N274: =SUMIFS('F_Inputs-APR & PR19'!Q:Q, 'F_Inputs-APR & PR19'!A:A, InpActive!$P$1, 'F_Inputs-APR & PR19'!B:B, InpActive!A274) -> 0.75 | O274: 0.6
E276: Outperformance Rate - TTT | G276: % | K276: 0.422 | L276: 0.422 | M276: 0.422 | N276: 0.422 | O276: 0.422
E277: Underperformance Rate - TTT | G277: % | K277: 0.75 | L277: 0.75 | M277: 0.75 | N277: 0.75 | O277: 0.6
D279: Abstraction and Business rate cost sharing rates
E280: Cost sharing rates Business rates - Overperformance | F280: 0.25 | G280: %
E281: Cost sharing rates Business rates - Underperformance | F281: 0.25 | G281: %
E282: Cost sharing rates Abstraction - Overperformance | F282: 0.25 | G282: %
E283: Cost sharing rates Abstraction - Underperformance | F283: 0.25 | G283: %
A285: FINANCING INPUTS
B287: Model Tolerance
... 11 more rows

Sheet Calc-->

Sheet Index
A1: =RIGHT(CELL("filename", $A$1), LEN(CELL("filename", $A$1)) - SEARCH("]", CELL("filename", $A$1))) -> 
E2: =Time!E$22 -> Model Period BEG | J2: =Time!J$22 -> 2019-04-01 | K2: =Time!K$22 -> 2020-04-01 | L2: =Time!L$22 -> 2021-04-01 | M2: =Time!M$22 -> 2022-04-01 | N2: =Time!N$22 -> 2023-04-01 | O2: =Time!O$22 -> 2024-04-01 | P2: =Time!P$22 -> 2025-04-01
E3: =Time!E$23 -> Model Period END | F3: =Check!F$8 -> 0 | G3: Error chks | J3: =Time!J$23 -> 2020-03-31 | K3: =Time!K$23 -> 2021-03-31 | L3: =Time!L$23 -> 2022-03-31 | M3: =Time!M$23 -> 2023-03-31 | N3: =Time!N$23 -> 2024-03-31 | O3: =Time!O$23 -> 2025-03-31 | P3: =Time!P$23 -> 2026-03-31
E4: =Time!E$59 -> Pre Forecast vs Forecast | J4: =Time!J$59 -> Pre Fcst | K4: =Time!K$59 -> Forecast | L4: =Time!L$59 -> Forecast | M4: =Time!M$59 -> Forecast | N4: =Time!N$59 -> Forecast | O4: =Time!O$59 -> Forecast | P4: =Time!P$59 -> Post-Fcst
E5: =Time!E$101 -> Financial Year Ending | J5: =Time!J$101 -> 2020 | K5: =Time!K$101 -> 2021 | L5: =Time!L$101 -> 2022 | M5: =Time!M$101 -> 2023 | N5: =Time!N$101 -> 2024 | O5: =Time!O$101 -> 2025 | P5: =Time!P$101 -> 2026
E6: =Time!E$11 -> Model column counter | F6: Constant | G6: Unit | H6: Total | J6: =Time!J$11 -> 1 | K6: =Time!K$11 -> 2 | L6: =Time!L$11 -> 3 | M6: =Time!M$11 -> 4 | N6: =Time!N$11 -> 5 | O6: =Time!O$11 -> 6 | P6: =Time!P$11 -> 7
A8: CPI(H) INDEXATION
C10: Average CPI(H) - base index
E11: =InpActive!E218 -> Consumer Price Index (with housing) for April | F11: =InpActive!F218 -> 103.2 | G11: =InpActive!G218 -> Index
E12: =InpActive!E219 -> Consumer Price Index (with housing) for May | F12: =InpActive!F219 -> 103.5 | G12: =InpActive!G219 -> Index
E13: =InpActive!E220 -> Consumer Price Index (with housing) for June | F13: =InpActive!F220 -> 103.5 | G13: =InpActive!G220 -> Index
E14: =InpActive!E221 -> Consumer Price Index (with housing) for July | F14: =InpActive!F221 -> 103.5 | G14: =InpActive!G221 -> Index
E15: =InpActive!E222 -> Consumer Price Index (with housing) for August | F15: =InpActive!F222 -> 104 | G15: =InpActive!G222 -> Index
E16: =InpActive!E223 -> Consumer Price Index (with housing) for September | F16: =InpActive!F223 -> 104.3 | G16: =InpActive!G223 -> Index
E17: =InpActive!E224 -> Consumer Price Index (with housing) for October | F17: =InpActive!F224 -> 104.4 | G17: =InpActive!G224 -> Index
E18: =InpActive!E225 -> Consumer Price Index (with housing) for November | F18: =InpActive!F225 -> 104.7 | G18: =InpActive!G225 -> Index
E19: =InpActive!E226 -> Consumer Price Index (with housing) for December | F19: =InpActive!F226 -> 105 | G19: =InpActive!G226 -> Index
E20: =InpActive!E227 -> Consumer Price Index (with housing) for January | F20: =InpActive!F227 -> 104.5 | G20: =InpActive!G227 -> Index
E21: =InpActive!E228 -> Consumer Price Index (with housing) for February | F21: =InpActive!F228 -> 104.9 | G21: =InpActive!G228 -> Index
E22: =InpActive!E229 -> Consumer Price Index (with housing) for March | F22: =InpActive!F229 -> 105.1 | G22: =InpActive!G229 -> Index
E23: CPIH 2017/18 FYA - Base Year | F23: =AVERAGE(F11:F22) -> 104.2166667 | G23: Index
C25: CPI(H): Financial year average - index
E26: =InpActive!E232 -> Consumer Price Index (with housing) for April | F26: =InpActive!F232 -> 0 | G26: =InpActive!G232 -> Index | H26: =InpActive!H232 -> 0 | I26: =InpActive!I232 -> 0 | J26: =InpActive!J232 -> 107.6 | K26: =InpActive!K232 -> 108.6 | L26: =InpActive!L232 -> 110.4 | M26: =InpActive!M232 -> 119 | N26: =InpActive!N232 -> 128.3 | O26: =InpActive!O232 -> 132.2 | P26: =InpActive!P232 -> 137.7
E27: =InpActive!E233 -> Consumer Price Index (with housing) for May | F27: =InpActive!F233 -> 0 | G27: =InpActive!G233 -> Index | H27: =InpActive!H233 -> 0 | I27: =InpActive!I233 -> 0 | J27: =InpActive!J233 -> 107.9 | K27: =InpActive!K233 -> 108.6 | L27: =InpActive!L233 -> 111 | M27: =InpActive!M233 -> 119.7 | N27: =InpActive!N233 -> 129.1 | O27: =InpActive!O233 -> 132.7 | P27: =InpActive!P233 -> 138
E28: =InpActive!E234 -> Consumer Price Index (with housing) for June | F28: =InpActive!F234 -> 0 | G28: =InpActive!G234 -> Index | H28: =InpActive!H234 -> 0 | I28: =InpActive!I234 -> 0 | J28: =InpActive!J234 -> 107.9 | K28: =InpActive!K234 -> 108.8 | L28: =InpActive!L234 -> 111.4 | M28: =InpActive!M234 -> 120.5 | N28: =InpActive!N234 -> 129.4 | O28: =InpActive!O234 -> 133 | P28: =InpActive!P234 -> 138.4
E29: =InpActive!E235 -> Consumer Price Index (with housing) for July | F29: =InpActive!F235 -> 0 | G29: =InpActive!G235 -> Index | H29: =InpActive!H235 -> 0 | I29: =InpActive!I235 -> 0 | J29: =InpActive!J235 -> 108 | K29: =InpActive!K235 -> 109.2 | L29: =InpActive!L235 -> 111.4 | M29: =InpActive!M235 -> 121.2 | N29: =InpActive!N235 -> 129 | O29: =InpActive!O235 -> 132.9 | P29: =InpActive!P235 -> 138.5
E30: =InpActive!E236 -> Consumer Price Index (with housing) for August | F30: =InpActive!F236 -> 0 | G30: =InpActive!G236 -> Index | H30: =InpActive!H236 -> 0 | I30: =InpActive!I236 -> 0 | J30: =InpActive!J236 -> 108.3 | K30: =InpActive!K236 -> 108.8 | L30: =InpActive!L236 -> 112.1 | M30: =InpActive!M236 -> 121.8 | N30: =InpActive!N236 -> 129.4 | O30: =InpActive!O236 -> 133.4 | P30: =InpActive!P236 -> 
E31: =InpActive!E237 -> Consumer Price Index (with housing) for September | F31: =InpActive!F237 -> 0 | G31: =InpActive!G237 -> Index | H31: =InpActive!H237 -> 0 | I31: =InpActive!I237 -> 0 | J31: =InpActive!J237 -> 108.4 | K31: =InpActive!K237 -> 109.2 | L31: =InpActive!L237 -> 112.4 | M31: =InpActive!M237 -> 122.3 | N31: =InpActive!N237 -> 130.1 | O31: =InpActive!O237 -> 133.5 | P31: =InpActive!P237 -> 
E32: =InpActive!E238 -> Consumer Price Index (with housing) for October | F32: =InpActive!F238 -> 0 | G32: =InpActive!G238 -> Index | H32: =InpActive!H238 -> 0 | I32: =InpActive!I238 -> 0 | J32: =InpActive!J238 -> 108.3 | K32: =InpActive!K238 -> 109.2 | L32: =InpActive!L238 -> 113.4 | M32: =InpActive!M238 -> 124.3 | N32: =InpActive!N238 -> 130.2 | O32: =InpActive!O238 -> 134.3 | P32: =InpActive!P238 -> 
E33: =InpActive!E239 -> Consumer Price Index (with housing) for November | F33: =InpActive!F239 -> 0 | G33: =InpActive!G239 -> Index | H33: =InpActive!H239 -> 0 | I33: =InpActive!I239 -> 0 | J33: =InpActive!J239 -> 108.5 | K33: =InpActive!K239 -> 109.1 | L33: =InpActive!L239 -> 114.1 | M33: =InpActive!M239 -> 124.8 | N33: =InpActive!N239 -> 130 | O33: =InpActive!O239 -> 134.6 | P33: =InpActive!P239 -> 139.4456
E34: =InpActive!E240 -> Consumer Price Index (with housing) for December | F34: =InpActive!F240 -> 0 | G34: =InpActive!G240 -> Index | H34: =InpActive!H240 -> 0 | I34: =InpActive!I240 -> 0 | J34: =InpActive!J240 -> 108.5 | K34: =InpActive!K240 -> 109.4 | L34: =InpActive!L240 -> 114.7 | M34: =InpActive!M240 -> 125.3 | N34: =InpActive!N240 -> 130.5 | O34: =InpActive!O240 -> 135.1 | P34: =InpActive!P240 -> 
E35: =InpActive!E241 -> Consumer Price Index (with housing) for January | F35: =InpActive!F241 -> 0 | G35: =InpActive!G241 -> Index | H35: =InpActive!H241 -> 0 | I35: =InpActive!I241 -> 0 | J35: =InpActive!J241 -> 108.3 | K35: =InpActive!K241 -> 109.3 | L35: =InpActive!L241 -> 114.6 | M35: =InpActive!M241 -> 124.8 | N35: =InpActive!N241 -> 130 | O35: =InpActive!O241 -> 135.1 | P35: =InpActive!P241 -> 
E36: =InpActive!E242 -> Consumer Price Index (with housing) for February | F36: =InpActive!F242 -> 0 | G36: =InpActive!G242 -> Index | H36: =InpActive!H242 -> 0 | I36: =InpActive!I242 -> 0 | J36: =InpActive!J242 -> 108.6 | K36: =InpActive!K242 -> 109.4 | L36: =InpActive!L242 -> 115.4 | M36: =InpActive!M242 -> 126 | N36: =InpActive!N242 -> 130.8 | O36: =InpActive!O242 -> 135.6 | P36: =InpActive!P242 -> 
E37: =InpActive!E243 -> Consumer Price Index (with housing) for March | F37: =InpActive!F243 -> 0 | G37: =InpActive!G243 -> Index | H37: =InpActive!H243 -> 0 | I37: =InpActive!I243 -> 0 | J37: =InpActive!J243 -> 108.6 | K37: =InpActive!K243 -> 109.7 | L37: =InpActive!L243 -> 116.5 | M37: =InpActive!M243 -> 126.8 | N37: =InpActive!N243 -> 131.6 | O37: =InpActive!O243 -> 136.1 | P37: =InpActive!P243 -> 
E38: CPIH 2017/18 FYA - Period | G38: Index | J38: =AVERAGE(J26:J37) -> 108.2416667 | K38: =AVERAGE(K26:K37) -> 109.1083333 | L38: 113.1166667 | M38: 123.0416667 | N38: 129.8666667 | O38: 134.0416667 | P38: 138.40912
D40: CPI(H): Fin year average - inflate from base year average
E41: =E$23 -> CPIH 2017/18 FYA - Base Year | F41: =F$23 -> 104.2166667 | G41: Index
E42: =E$38 -> CPIH 2017/18 FYA - Period | F42: =F$38 -> 0 | G42: Index | H42: 0 | I42: 0 | J42: 108.2416667 | K42: 109.1083333 | L42: 113.1166667 | M42: 123.0416667 | N42: 129.8666667 | O42: 134.0416667 | P42: 138.40912
E43: CPI(H): Fin year average - inflate from base year 2017-18 average - CALC | G43: % | J43: =IF($F41 = 0, 0, J42 / $F41) -> 1.038621462 | K43: =IF($F41 = 0, 0, K42 / $F41) -> 1.04693747 | L43: =IF($F41 = 0, 0, L42 / $F41) -> 1.085399008 | M43: 1.180633296 | N43: 1.246121862 | O43: 1.286182632 | P43: 1.328090069
A45: END OF SHEET

Sheet Time
A1: =RIGHT(CELL("filename", $A$1), LEN(CELL("filename", $A$1)) - SEARCH("]", CELL("filename", $A$1))) -> 
E2: =Time!E$22 -> Model Period BEG | J2: =Time!J$22 -> 2019-04-01 | K2: =Time!K$22 -> 2020-04-01 | L2: =Time!L$22 -> 2021-04-01 | M2: =Time!M$22 -> 2022-04-01 | N2: =Time!N$22 -> 2023-04-01 | O2: =Time!O$22 -> 2024-04-01 | P2: =Time!P$22 -> 2025-04-01
E3: =Time!E$23 -> Model Period END | F3: =Check!F$8 -> 0 | G3: Error chks | J3: =Time!J$23 -> 2020-03-31 | K3: =Time!K$23 -> 2021-03-31 | L3: =Time!L$23 -> 2022-03-31 | M3: =Time!M$23 -> 2023-03-31 | N3: =Time!N$23 -> 2024-03-31 | O3: =Time!O$23 -> 2025-03-31 | P3: =Time!P$23 -> 2026-03-31
E4: =Time!E$59 -> Pre Forecast vs Forecast | J4: =Time!J$59 -> Pre Fcst | K4: =Time!K$59 -> Forecast | L4: =Time!L$59 -> Forecast | M4: =Time!M$59 -> Forecast | N4: =Time!N$59 -> Forecast | O4: =Time!O$59 -> Forecast | P4: =Time!P$59 -> Post-Fcst
E5: =Time!E$101 -> Financial Year Ending | J5: =Time!J$101 -> 2020 | K5: =Time!K$101 -> 2021 | L5: =Time!L$101 -> 2022 | M5: =Time!M$101 -> 2023 | N5: =Time!N$101 -> 2024 | O5: =Time!O$101 -> 2025 | P5: =Time!P$101 -> 2026
E6: =Time!E$11 -> Model column counter | F6: Constant | G6: Unit | H6: Total | J6: =Time!J$11 -> 1 | K6: =Time!K$11 -> 2 | L6: =Time!L$11 -> 3 | M6: =Time!M$11 -> 4 | N6: =Time!N$11 -> 5 | O6: =Time!O$11 -> 6 | P6: =Time!P$11 -> 7
A8: MODEL PERIOD
B10: Model Column Counter
E11: Model column counter | G11: counter | J11: =I11 + 1 -> 1 | K11: =J11 + 1 -> 2 | L11: =K11 + 1 -> 3 | M11: 4 | N11: 5 | O11: 6 | P11: =O11 + 1 -> 7
E12: Model Column Total | F12: =MAX(J11:P11) -> 7 | G12: column
E14: =E$11 -> Model column counter | F14: 0 | G14: counter | H14: 0 | I14: 0 | J14: 1 | K14: 2 | L14: 3 | M14: 4 | N14: 5 | O14: 6 | P14: 7
E15: First model column flag | G15: flag | H15: =SUM(J15:P15) -> 1 | J15: =IF( J14 = 1, 1, 0) -> 1 | K15: =IF( K14 = 1, 1, 0) -> 0 | L15: 0 | M15: 0 | N15: 0 | O15: 0 | P15: 0
E17: =InpActive!E$10 -> First date of time ruler | F17: =InpActive!F$10 -> 2019-04-01 | G17: =InpActive!G$10 -> date
E18: First model period BEG | F18: =DATE(YEAR(F17), MONTH(F17), 1) -> 2019-04-01 | G18: month
E20: =E$18 -> First model period BEG | F20: =F$18 -> 2019-04-01 | G20: =G$18 -> month
E21: =E$15 -> First model column flag | F21: 0 | G21: flag | H21: 1 | I21: 0 | J21: 1 | K21: 0 | L21: 0 | M21: 0 | N21: 0 | O21: 0 | P21: 0
E22: Model Period BEG | G22: date | J22: =IF( J21 = 1, $F20, I23 + 1) -> 2019-04-01 | K22: =IF( K21 = 1, $F20, J23 + 1) -> 2020-04-01 | L22: 2021-04-01 | M22: 2022-04-01 | N22: 2023-04-01 | O22: 2024-04-01 | P22: =IF( P21 = 1, $F20, O23 + 1) -> 2025-04-01
E23: Model Period END | G23: date | J23: =DATE(YEAR(J22), MONTH(J22) + 12, DAY(1) - 1) -> 2020-03-31 | K23: 2021-03-31 | L23: 2022-03-31 | M23: 2023-03-31 | N23: 2024-03-31 | O23: 2025-03-31 | P23: 2026-03-31
E25: =E$23 -> Model Period END | F25: 00:00:00 | G25: date | H25: 00:00:00 | I25: 00:00:00 | J25: 2020-03-31 | K25: 2021-03-31 | L25: 2022-03-31 | M25: 2023-03-31 | N25: 2024-03-31 | O25: 2025-03-31 | P25: 2026-03-31
D26: less | E26: =E$22 -> Model Period BEG | F26: 00:00:00 | G26: date | H26: 00:00:00 | I26: 00:00:00 | J26: 2019-04-01 | K26: 2020-04-01 | L26: 2021-04-01 | M26: 2022-04-01 | N26: 2023-04-01 | O26: 2024-04-01 | P26: 2025-04-01
E27: Days in Model Period | G27: days | H27: =SUM(J27:P27) -> 2557 | J27: =J25 - J26 + 1 -> 366 | K27: 365 | L27: 365 | M27: 365 | N27: 366 | O27: 365 | P27: 365
A30: PRE FORECAST PERIOD
E32: =InpActive!E$12 -> Last Pre Forecast Date | F32: =InpActive!F$12 -> 2020-03-31 | G32: =InpActive!G$12 -> date
E33: =E$23 -> Model Period END | F33: 00:00:00 | G33: date | H33: 00:00:00 | I33: 00:00:00 | J33: 2020-03-31 | K33: 2021-03-31 | L33: 2022-03-31 | M33: 2023-03-31 | N33: 2024-03-31 | O33: 2025-03-31 | P33: 2026-03-31
E34: Last Pre Forecast Flag | G34: flag | H34: =SUM(J34:P34) -> 1 | J34: =IF(J33 = $F32, 1, 0) -> 1 | K34: 0 | L34: 0 | M34: 0 | N34: 0 | O34: 0 | P34: 0
E35: Pre Forecast Period Flag | G35: flag | H35: =SUM(J35:P35) -> 1 | J35: =IF($F32 >= J33, 1, 0) -> 1 | K35: =IF($F32 >= K33, 1, 0) -> 0 | L35: 0 | M35: 0 | N35: 0 | O35: 0 | P35: 0
E36: Pre Forecast Period Total | F36: =SUM(J35:P35) -> 1 | G36: columns
E38: =InpActive!E$14 -> Acquisition date (midnight) | F38: =InpActive!F$14 -> 2020-03-31 | G38: =InpActive!G$14 -> date
E39: =E$23 -> Model Period END | F39: 00:00:00 | G39: date | H39: 00:00:00 | I39: 00:00:00 | J39: 2020-03-31 | K39: 2021-03-31 | L39: 2022-03-31 | M39: 2023-03-31 | N39: 2024-03-31 | O39: 2025-03-31 | P39: 2026-03-31
E40: Acquisition / initial balance date flag | G40: flag | H40: =SUM(J40:P40) -> 1 | J40: =IF(J39 = $F38, 1, 0) -> 1 | K40: 0 | L40: 0 | M40: 0 | N40: 0 | O40: 0 | P40: 0
A43: FORECAST PERIOD
E45: =E$34 -> Last Pre Forecast Flag | F45: 0 | G45: flag | H45: 1 | I45: 0 | J45: 1 | K45: 0 | L45: 0 | M45: 0 | N45: 0 | O45: 0 | P45: 0
E46: 1st Forecast Period Flag | G46: flag | H46: =SUM(J46:P46) -> 1 | J46: =I45 -> 0 | K46: =J45 -> 1 | L46: 0 | M46: 0 | N46: 0 | O46: 0 | P46: =O45 -> 0
E48: =InpActive!E$16 -> Last forecast date | F48: =InpActive!F$16 -> 2025-03-31 | G48: =InpActive!G$16 -> date
E49: =E$23 -> Model Period END | F49: 00:00:00 | G49: date | H49: 00:00:00 | I49: 00:00:00 | J49: 2020-03-31 | K49: 2021-03-31 | L49: 2022-03-31 | M49: 2023-03-31 | N49: 2024-03-31 | O49: 2025-03-31 | P49: 2026-03-31
E50: Last Forecast Period Flag | G50: flag | H50: =SUM(J50:P50) -> 1 | J50: =IF(AND($F48 > I49, $F48 <= J49), 1, 0) -> 0 | K50: =IF(AND($F48 > J49, $F48 <= K49), 1, 0) -> 0 | L50: 0 | M50: 0 | N50: 0 | O50: 1 | P50: =IF(AND($F48 > O49, $F48 <= P49), 1, 0) -> 0
E52: =E$46 -> 1st Forecast Period Flag | F52: 0 | G52: flag | H52: 1 | I52: 0 | J52: 0 | K52: 1 | L52: 0 | M52: 0 | N52: 0 | O52: 0 | P52: 0
E53: =E$50 -> Last Forecast Period Flag | F53: 0 | G53: flag | H53: 1 | I53: 0 | J53: 0 | K53: 0 | L53: 0 | M53: 0 | N53: 0 | O53: 1 | P53: 0
E54: Forecast Period Flag | G54: flag | H54: =SUM(J54:P54) -> 5 | J54: =J52 - I53 + I54 -> 0 | K54: =K52 - J53 + J54 -> 1 | L54: 1 | M54: 1 | N54: 1 | O54: 1 | P54: =P52 - O53 + O54 -> 0
E55: Forecast Period Total | F55: =SUM(J54:P54) -> 5 | G55: columns
E57: =E$35 -> Pre Forecast Period Flag | F57: 0 | G57: flag | H57: 1 | I57: 0 | J57: 1 | K57: 0 | L57: 0 | M57: 0 | N57: 0 | O57: 0 | P57: 0
E58: =E$54 -> Forecast Period Flag | F58: 0 | G58: flag | H58: 5 | I58: 0 | J58: 0 | K58: 1 | L58: 1 | M58: 1 | N58: 1 | O58: 1 | P58: 0
E59: Pre Forecast vs Forecast | G59: flag | J59: =IF(J57 = 1, "Pre Fcst", IF(J58 = 1, "Forecast", "Post-Fcst")) -> Pre Fcst | K59: Forecast | L59: Forecast | M59: Forecast | N59: Forecast | O59: Forecast | P59: Post-Fcst
A62: POST FORECAST PERIOD
E64: =E$50 -> Last Forecast Period Flag | F64: 0 | G64: flag | H64: 1 | I64: 0 | J64: 0 | K64: 0 | L64: 0 | M64: 0 | N64: 0 | O64: 1 | P64: 0
E65: 1st Post Last Forecast Period Flag | G65: flag | H65: =SUM(J65:P65) -> 1 | J65: =I64 -> 0 | K65: =J64 -> 0 | L65: 0 | M65: 0 | N65: 0 | O65: 0 | P65: =O64 -> 1
E67: =E$65 -> 1st Post Last Forecast Period Flag | F67: 0 | G67: flag | H67: 1 | I67: 0 | J67: 0 | K67: 0 | L67: 0 | M67: 0 | N67: 0 | O67: 0 | P67: 1
E68: Post Forecast Period Flag | G68: flag | H68: =SUM(J68:P68) -> 1 | J68: =I68 + J67 -> 0 | K68: =J68 + K67 -> 0 | L68: 0 | M68: 0 | N68: 0 | O68: 0 | P68: =O68 + P67 -> 1
E69: Post Forecast Period Total | F69: =SUM(J68:P68) -> 1 | G69: columns
A72: MODELLING PERIOD CHECK
E74: =E$12 -> Model Column Total | F74: =F$12 -> 7 | G74: =G$12 -> column
D75: less | E75: =E$36 -> Pre Forecast Period Total | F75: =F$36 -> 1 | G75: =G$36 -> columns
D76: less | E76: =E$55 -> Forecast Period Total | F76: =F$55 -> 5 | G76: =G$55 -> columns
D77: less | E77: =E$69 -> Post Forecast Period Total | F77: =F$69 -> 1 | G77: =G$69 -> columns
E78: Modelling Period Check | F78: =IF(F74 - SUM(F75:F77) <> 0, 1, 0) -> 0 | G78: check
A81: PARTIAL PERIOD FLAG (PPF)
C82: This is an example of a part period flag. It is not currently used.
B83: Operation Partial Period Flag (PPF)
E84: =E$18 -> First model period BEG | F84: =F$18 -> 2019-04-01 | G84: =G$18 -> month
E85: =InpActive!E$20 -> Operation Finish Date (midnight) | F85: =InpActive!F$20 -> 2025-03-31 | G85: =InpActive!G$20 -> date
E86: =E$22 -> Model Period BEG | F86: 00:00:00 | G86: date | H86: 00:00:00 | I86: 00:00:00 | J86: 2019-04-01 | K86: 2020-04-01 | L86: 2021-04-01 | M86: 2022-04-01 | N86: 2023-04-01 | O86: 2024-04-01 | P86: 2025-04-01
E87: =E$23 -> Model Period END | F87: 00:00:00 | G87: date | H87: 00:00:00 | I87: 00:00:00 | J87: 2020-03-31 | K87: 2021-03-31 | L87: 2022-03-31 | M87: 2023-03-31 | N87: 2024-03-31 | O87: 2025-03-31 | P87: 2026-03-31
E88: Days in Operation Period | G88: days | H88: =SUM(J88:P88) -> 2192 | J88: =MAX(0, (MIN($F85, J87) - MAX($F84, J86) + 1)) -> 366 | K88: 365 | L88: 365 | M88: 365 | N88: 366 | O88: 365 | P88: 0
E90: =E$88 -> Days in Operation Period | F90: 0 | G90: days | H90: 2192 | I90: 0 | J90: 366 | K90: 365 | L90: 365 | M90: 365 | N90: 366 | O90: 365 | P90: 0
E91: =E$27 -> Days in Model Period | F91: 0 | G91: days | H91: 2557 | I91: 0 | J91: 366 | K91: 365 | L91: 365 | M91: 365 | N91: 366 | O91: 365 | P91: 365
E92: Operation Period PPF | G92: factor | H92: =SUM(J92:P92) -> 6 | J92: =J90 / J91 -> 1 | K92: 1 | L92: 1 | M92: 1 | N92: 1 | O92: 1 | P92: 0
A95: FINANCIAL YEAR
E97: =InpActive!E21 -> First Modelling Column Financial Year Number | F97: =InpActive!F21 -> 2020 | G97: =InpActive!G21 -> year
E98: =InpActive!E22 -> Financial Year End Month Number | F98: =InpActive!F22 -> 3 | G98: =InpActive!G22 -> month #
E99: =E$23 -> Model Period END | F99: 00:00:00 | G99: date | H99: 00:00:00 | I99: 00:00:00 | J99: 2020-03-31 | K99: 2021-03-31 | L99: 2022-03-31 | M99: 2023-03-31 | N99: 2024-03-31 | O99: 2025-03-31 | P99: 2026-03-31
E100: =E$15 -> First model column flag | F100: 0 | G100: flag | H100: 1 | I100: 0 | J100: 1 | K100: 0 | L100: 0 | M100: 0 | N100: 0 | O100: 0 | P100: 0
E101: Financial Year Ending | G101: year # | J101: =IF(J100 = 1, $F97, IF(J99 > (DATE(I101, $F98 + 1, 1) - 1), I101 + 1, I101)) -> 2020 | K101: =IF(K100 = 1, $F97, IF(K99 > (DATE(J101, $F98 + 1, 1) - 1), J101 + 1, J101)) -> 2021 | L101: 2022 | M101: 2023 | N101: 2024 | O101: 2025 | P101: =IF(P100 = 1, $F97, IF(P99 > (DATE(O101, $F98 + 1, 1) - 1), O101 + 1, O101)) -> 2026
A104: END OF SHEET

Sheet Cost sharing calculations
A1: =RIGHT(CELL("filename", $A$1), LEN(CELL("filename", $A$1)) - SEARCH("]", CELL("filename", $A$1))) -> 
E2: =Time!E$22 -> Model Period BEG | J2: =Time!J$22 -> 2019-04-01 | K2: =Time!K$22 -> 2020-04-01 | L2: =Time!L$22 -> 2021-04-01 | M2: =Time!M$22 -> 2022-04-01 | N2: =Time!N$22 -> 2023-04-01 | O2: =Time!O$22 -> 2024-04-01 | P2: =Time!P$22 -> 2025-04-01
E3: =Time!E$23 -> Model Period END | F3: =Check!F$8 -> 0 | G3: Error chks | J3: =Time!J$23 -> 2020-03-31 | K3: =Time!K$23 -> 2021-03-31 | L3: =Time!L$23 -> 2022-03-31 | M3: =Time!M$23 -> 2023-03-31 | N3: =Time!N$23 -> 2024-03-31 | O3: =Time!O$23 -> 2025-03-31 | P3: =Time!P$23 -> 2026-03-31
E4: =Time!E$59 -> Pre Forecast vs Forecast | J4: =Time!J$59 -> Pre Fcst | K4: =Time!K$59 -> Forecast | L4: =Time!L$59 -> Forecast | M4: =Time!M$59 -> Forecast | N4: =Time!N$59 -> Forecast | O4: =Time!O$59 -> Forecast | P4: =Time!P$59 -> Post-Fcst
E5: =Time!E$101 -> Financial Year Ending | J5: =Time!J$101 -> 2020 | K5: =Time!K$101 -> 2021 | L5: =Time!L$101 -> 2022 | M5: =Time!M$101 -> 2023 | N5: =Time!N$101 -> 2024 | O5: =Time!O$101 -> 2025 | P5: =Time!P$101 -> 2026
E6: =Time!E$11 -> Model column counter | F6: Constant | G6: Unit | H6: Total | J6: =Time!J$11 -> 1 | K6: =Time!K$11 -> 2 | L6: =Time!L$11 -> 3 | M6: =Time!M$11 -> 4 | N6: =Time!N$11 -> 5 | O6: =Time!O$11 -> 6 | P6: =Time!P$11 -> 7
A8: WAGE GROWTH ADJUSTER
C10: Cumulative actual real wage growth
E11: =InpActive!E250 -> ASHE Gross Hourly Wage All - Nominal | F11: =InpActive!F250 -> 0 | G11: =InpActive!G250 -> £ / hour | H11: =InpActive!H250 -> 0 | I11: =InpActive!I250 -> 0 | J11: =InpActive!J250 -> 17.06 | K11: =InpActive!K250 -> 17.54 | L11: =InpActive!L250 -> 18.14 | M11: =InpActive!M250 -> 19.68 | N11: =InpActive!N250 -> 20.81 | O11: =InpActive!O250 -> 21.77971342 | P11: =InpActive!P250 -> 0
E12: =Index!E$43 -> CPI(H): Fin year average - inflate from base year 2017-18 average - CALC | F12: =Index!F$43 -> 0 | G12: =Index!G$43 -> % | H12: =Index!H$43 -> 0 | I12: =Index!I$43 -> 0 | J12: =Index!J$43 -> 1.038621462 | K12: =Index!K$43 -> 1.04693747 | L12: =Index!L$43 -> 1.085399008 | M12: =Index!M$43 -> 1.180633296 | N12: =Index!N$43 -> 1.246121862 | O12: =Index!O$43 -> 1.286182632 | P12: =Index!P$43 -> 1.328090069
E13: ASHE GROSS HOURLY WAGE ALL - Real | G13: £ / hour | J13: =IF( J11 = 0, 0, J11 / J12) -> 16.4256186 | K13: 16.75362713 | L13: 16.7127479 | M13: 16.66901998 | N13: 16.69981134 | O13: 16.9336087 | P13: 0
E15: =E$13 -> ASHE GROSS HOURLY WAGE ALL - Real | F15: 0 | G15: £ / hour | H15: 0 | I15: 0 | J15: 16.4256186 | K15: 16.75362713 | L15: 16.7127479 | M15: 16.66901998 | N15: 16.69981134 | O15: 16.9336087 | P15: 0
E16: ASHE GROSS HOURLY WAGE ALL - Cumulative growth - Real | G16: % | J16: =IF( J15 = 0, 0, J15 / $J$15) -> 1 | K16: =IF( K15 = 0, 0, K15 / $J$15) -> 1.019969326 | L16: 1.017480578 | M16: 1.0148184 | N16: 1.016692994 | O16: 1.030926695 | P16: 0
C18: Real adjustment factor for wage growth
E19: =InpActive!E249 -> OBR Forecast wage growth for PR19 FD | F19: =InpActive!F249 -> 0 | G19: =InpActive!G249 -> % | H19: =InpActive!H249 -> 0 | I19: =InpActive!I249 -> 0 | J19: =InpActive!J249 -> 0.01 | K19: =InpActive!K249 -> 0.011 | L19: =InpActive!L249 -> 0.011 | M19: =InpActive!M249 -> 0.012 | N19: =InpActive!N249 -> 0.013 | O19: =InpActive!O249 -> 0.014 | P19: =InpActive!P249 -> 0
E20: =Time!E45 -> Last Pre Forecast Flag | F20: =Time!F45 -> 0 | G20: =Time!G45 -> flag | H20: =Time!H45 -> 1 | I20: =Time!I45 -> 0 | J20: =Time!J45 -> 1 | K20: =Time!K45 -> 0 | L20: =Time!L45 -> 0 | M20: =Time!M45 -> 0 | N20: =Time!N45 -> 0 | O20: =Time!O45 -> 0 | P20: =Time!P45 -> 0
E21: Forecast wage growth for adjuster | G21: % | J21: =IF(J20 = 1, 1, I21 * (J19 + 1)) -> 1 | K21: =IF(K20 = 1, 1, J21 * (K19 + 1)) -> 1.011 | L21: 1.022121 | M21: 1.034386452 | N21: 1.047833476 | O21: 1.062503145 | P21: 1.062503145
E23: =E$16 -> ASHE GROSS HOURLY WAGE ALL - Cumulative growth - Real | F23: 0 | G23: % | H23: 0 | I23: 0 | J23: 1 | K23: 1.019969326 | L23: 1.017480578 | M23: 1.0148184 | N23: 1.016692994 | O23: 1.030926695 | P23: 0
E24: =E$21 -> Forecast wage growth for adjuster | F24: 0 | G24: % | H24: 0 | I24: 0 | J24: 1 | K24: 1.011 | L24: 1.022121 | M24: 1.034386452 | N24: 1.047833476 | O24: 1.062503145 | P24: 1.062503145
E25: =Time!E$54 -> Forecast Period Flag | F25: =Time!F$54 -> 0 | G25: =Time!G$54 -> flag | H25: =Time!H$54 -> 5 | I25: =Time!I$54 -> 0 | J25: =Time!J$54 -> 0 | K25: =Time!K$54 -> 1 | L25: =Time!L$54 -> 1 | M25: =Time!M$54 -> 1 | N25: =Time!N$54 -> 1 | O25: =Time!O$54 -> 1 | P25: =Time!P$54 -> 0
E26: Real adjustment factor for wages | G26: % | J26: =IF( J25 = 1, J23/J24, 0) -> 0 | K26: 1.008871737 | L26: 0.9954600068 | M26: 0.9810824548 | N26: 0.970281077 | O26: 0.970281077 | P26: 0
A28: WATER SERVICES COMBINED
C30: Active Sharing Rates -WR/WN
E32: =E$142 -> Total variance to forecast net totex for cost sharing - WR | F32: =F$142 -> 27.8342055 | G32: =G$142 -> £m
E33: =E$309 -> Total variance to forecast net totex for cost sharing - WN | F33: =F$309 -> 709.8504525 | G33: =G$309 -> £m
E34: Total variance to forecast net totex for cost sharing - WATER | F34: =SUM(F32:F33) -> 737.684658 | G34: £m
E36: =E$34 -> Total variance to forecast net totex for cost sharing - WATER | F36: =F$34 -> 737.684658 | G36: =G$34 -> £m
E37: =InpActive!E$267 -> Outperformance Rate - WR | F37: =InpActive!F$267 -> 0 | G37: =InpActive!G$267 -> % | H37: =InpActive!H$267 -> 0 | I37: =InpActive!I$267 -> 0 | J37: =InpActive!J$267 -> 0 | K37: =InpActive!K$267 -> 0.3227046095 | L37: =InpActive!L$267 -> 0.3227046095 | M37: =InpActive!M$267 -> 0.3227046095 | N37: =InpActive!N$267 -> 0.3227046095 | O37: =InpActive!O$267 -> 0.3227046095 | P37: =InpActive!P$267 -> 0
E38: =InpActive!E$268 -> Underperformance Rate - WR | F38: =InpActive!F$268 -> 0 | G38: =InpActive!G$268 -> % | H38: =InpActive!H$268 -> 0 | I38: =InpActive!I$268 -> 0 | J38: =InpActive!J$268 -> 0 | K38: =InpActive!K$268 -> 0.75 | L38: =InpActive!L$268 -> 0.75 | M38: =InpActive!M$268 -> 0.75 | N38: =InpActive!N$268 -> 0.75 | O38: =InpActive!O$268 -> 0.6 | P38: =InpActive!P$268 -> 0
E39: ="Active Sharing Rate - "& INDEX(E37:E38,MATCH(K39,K37:K38,0)) -> Active Sharing Rate - Underperformance Rate - WR | F39: =IF(F36<0,F37,F38) -> 0 | G39: % | J39: =IF($F$36<0,J37,J38) -> 0 | K39: =IF($F$36<0,K37,K38) -> 0.75 | L39: =IF($F$36<0,L37,L38) -> 0.75 | M39: 0.75 | N39: 0.75 | O39: 0.6 | P39: =IF($F$36<0,P37,P38) -> 0
E42: =E$34 -> Total variance to forecast net totex for cost sharing - WATER | F42: =F$34 -> 737.684658 | G42: =G$34 -> £m
E43: =InpActive!E$270 -> Outperformance Rate - WN | F43: =InpActive!F$270 -> 0 | G43: =InpActive!G$270 -> % | H43: =InpActive!H$270 -> 0 | I43: =InpActive!I$270 -> 0 | J43: =InpActive!J$270 -> 0 | K43: =InpActive!K$270 -> 0.3227046095 | L43: =InpActive!L$270 -> 0.3227046095 | M43: =InpActive!M$270 -> 0.3227046095 | N43: =InpActive!N$270 -> 0.3227046095 | O43: =InpActive!O$270 -> 0.3227046095 | P43: =InpActive!P$270 -> 0
E44: =InpActive!E$271 -> Underperformance Rate - WN | F44: =InpActive!F$271 -> 0 | G44: =InpActive!G$271 -> % | H44: =InpActive!H$271 -> 0 | I44: =InpActive!I$271 -> 0 | J44: =InpActive!J$271 -> 0 | K44: =InpActive!K$271 -> 0.75 | L44: =InpActive!L$271 -> 0.75 | M44: =InpActive!M$271 -> 0.75 | N44: =InpActive!N$271 -> 0.75 | O44: =InpActive!O$271 -> 0.6 | P44: =InpActive!P$271 -> 0
E45: ="Active Sharing Rate - "& INDEX(E43:E44,MATCH(K45,K43:K44,0)) -> Active Sharing Rate - Underperformance Rate - WN | F45: =IF(F42<0,F43,F44) -> 0 | G45: % | J45: =IF($F$42<0,J43,J44) -> 0 | K45: =IF($F$42<0,K43,K44) -> 0.75 | L45: =IF($F$42<0,L43,L44) -> 0.75 | M45: 0.75 | N45: 0.75 | O45: 0.6 | P45: 0
A47: WATER RESOURCES
C49: Adjustment For Wage Growth
D51: Totex for wage adjustment
E52: =InpActive!E$29 -> Base Costs - WR - Real | F52: =InpActive!F$29 -> 342.3583447 | G52: =InpActive!G$29 -> £m
E53: =InpActive!E$30 -> Metering (excluding new connections) for meters requested by optants, customers and businesses - WR - Real | F53: =InpActive!F$30 -> 0 | G53: =InpActive!G$30 -> £m
E54: Totex available for wage indexation adjustment - WR - Real | F54: =SUM(F52:F53) -> 342.3583447 | G54: £m
D56: Profile for totex for wage adjustment
E57: =InpActive!E$32 -> Opex split profile - Base costs - WR | F57: =InpActive!F$32 -> 0 | G57: =InpActive!G$32 -> % | H57: =InpActive!H$32 -> 0 | I57: =InpActive!I$32 -> 0 | J57: =InpActive!J$32 -> 0 | K57: =InpActive!K$32 -> 0.1620889768 | L57: =InpActive!L$32 -> 0.1659454849 | M57: =InpActive!M$32 -> 0.1602635369 | N57: =InpActive!N$32 -> 0.1559599993 | O57: =InpActive!O$32 -> 0.161909839 | P57: =InpActive!P$32 -> 0
E58: =InpActive!E$33 -> Capex Split Profile - Base costs - WR | F58: =InpActive!F$33 -> 0 | G58: =InpActive!G$33 -> % | H58: =InpActive!H$33 -> 0 | I58: =InpActive!I$33 -> 0 | J58: =InpActive!J$33 -> 0 | K58: =InpActive!K$33 -> 0.07317102333 | L58: =InpActive!L$33 -> 0.06302198224 | M58: =InpActive!M$33 -> 0.04495102676 | N58: =InpActive!N$33 -> 0.007606150575 | O58: =InpActive!O$33 -> 0.005081980244 | P58: =InpActive!P$33 -> 0
E59: Totex profile - Base costs - WR | G59: % | H59: =SUM(J59:P59) -> 1 | J59: =SUM(J57:J58) -> 0 | K59: 0.2352600002 | L59: 0.2289674671 | M59: 0.2052145636 | N59: 0.1635661499 | O59: 0.1669918193 | P59: 0
E60: Totex profile - Base costs - 5 year percentage - WR | F60: =H$59 -> 1 | G60: %
E62: =E$60 -> Totex profile - Base costs - 5 year percentage - WR | F62: =F$60 -> 1 | G62: =G$60 -> %
E63: WR Totex profile 100% check | F63: =IF(OR($F$62 = 1, F62 = 0), 0, 1) -> 0 | G63: Check
E65: =E$54 -> Totex available for wage indexation adjustment - WR - Real | F65: =F$54 -> 342.3583447 | G65: =G$54 -> £m
E66: =Time!E$54 -> Forecast Period Flag | F66: =Time!F$54 -> 0 | G66: =Time!G$54 -> flag | H66: =Time!H$54 -> 5 | I66: =Time!I$54 -> 0 | J66: =Time!J$54 -> 0 | K66: =Time!K$54 -> 1 | L66: =Time!L$54 -> 1 | M66: =Time!M$54 -> 1 | N66: =Time!N$54 -> 1 | O66: =Time!O$54 -> 1 | P66: =Time!P$54 -> 0
E67: =E$59 -> Totex profile - Base costs - WR | F67: 0 | G67: % | H67: 1 | I67: 0 | J67: 0 | K67: 0.2352600002 | L67: 0.2289674671 | M67: 0.2052145636 | N67: 0.1635661499 | O67: 0.1669918193 | P67: 0
E68: Profiled Totex available for wage indexation adjustment - WR - Real | G68: £m | H68: =SUM(J68:P68) -> 342.3583447 | J68: =IF(J66 = 1, J67 * $F65, 0) -> 0 | K68: 80.54322422 | L68: 78.38892302 | M68: 70.2569183 | N68: 55.99823631 | O68: 57.17104282 | P68: 0
D70: Totex applicable for wage adjustment by year
E71: =InpActive!E$253 -> Percentage totex linked to wage growth - WR | F71: =InpActive!F$253 -> 0.386 | G71: =InpActive!G$253 -> %
E72: =E68 -> Profiled Totex available for wage indexation adjustment - WR - Real | F72: 0 | G72: £m | H72: 342.3583447 | I72: 0 | J72: 0 | K72: 80.54322422 | L72: 78.38892302 | M72: 70.2569183 | N72: 55.99823631 | O72: 57.17104282 | P72: 0
E73: Profiled Net totex available for wage adj - WR - Real | G73: £m | H73: =SUM(J73:P73) -> 132.150321 | J73: =J72 * $F71 -> 0 | K73: 31.08968455 | L73: 30.25812429 | M73: 27.11917047 | N73: 21.61531922 | O73: 22.06802253 | P73: 0
D75: Adjustment factor for wage linked totex
E76: =Time!E$54 -> Forecast Period Flag | F76: =Time!F$54 -> 0 | G76: =Time!G$54 -> flag | H76: =Time!H$54 -> 5 | I76: =Time!I$54 -> 0 | J76: =Time!J$54 -> 0 | K76: =Time!K$54 -> 1 | L76: =Time!L$54 -> 1 | M76: =Time!M$54 -> 1 | N76: =Time!N$54 -> 1 | O76: =Time!O$54 -> 1 | P76: =Time!P$54 -> 0
E77: =E$73 -> Profiled Net totex available for wage adj - WR - Real | F77: 0 | G77: £m | H77: 132.150321 | I77: 0 | J77: 0 | K77: 31.08968455 | L77: 30.25812429 | M77: 27.11917047 | N77: 21.61531922 | O77: 22.06802253 | P77: 0
E78: =E$26 -> Real adjustment factor for wages | F78: 0 | G78: % | H78: 0 | I78: 0 | J78: 0 | K78: 1.008871737 | L78: 0.9954600068 | M78: 0.9810824548 | N78: 0.970281077 | O78: 0.970281077 | P78: 0
E79: Profiled adjustment wage related totex - WR - Real | G79: £m | H79: =SUM(J79:P79) -> 130.4775189 | J79: =IF(J76 = 1, J77 * J78, 0) -> 0 | K79: 31.36550404 | L79: 30.12075261 | M79: 26.60614233 | N79: 20.97293521 | O79: 21.41218466 | P79: 0
D81: Variance to forecast wage linked totex
E82: =E$79 -> Profiled adjustment wage related totex - WR - Real | F82: 0 | G82: £m | H82: 130.4775189 | I82: 0 | J82: 0 | K82: 31.36550404 | L82: 30.12075261 | M82: 26.60614233 | N82: 20.97293521 | O82: 21.41218466 | P82: 0
E83: =E$73 -> Profiled Net totex available for wage adj - WR - Real | F83: 0 | G83: £m | H83: 132.150321 | I83: 0 | J83: 0 | K83: 31.08968455 | L83: 30.25812429 | M83: 27.11917047 | N83: 21.61531922 | O83: 22.06802253 | P83: 0
E84: Variance to forecast totex for wage adjustment - WR | G84: £m | H84: =SUM(J84:P84) -> -1.672802187 | J84: =J82 - J83 -> 0 | K84: =K82 - K83 -> 0.2758194941 | L84: -0.1373716798 | M84: -0.5130281327 | N84: -0.6423840071 | O84: -0.6558378619 | P84: 0
D86: Wage totex overfunded/unfunded at PR19
E87: =E$84 -> Variance to forecast totex for wage adjustment - WR | F87: =F$84 -> 0 | G87: £m | H87: -1.672802187 | I87: 0 | J87: 0 | K87: =K$84 -> 0.2758194941 | L87: -0.1373716798 | M87: -0.5130281327 | N87: -0.6423840071 | O87: -0.6558378619 | P87: 0
E88: =E137 -> Time value of money factor - WR | F88: 0 | G88: Factor | H88: 0 | I88: 0 | J88: 1 | K88: 1.122016155 | L88: 1.090182817 | M88: 1.05925264 | N88: 1.0292 | O88: 1 | P88: 1
E89: Variance to forecast totex for wage adjustment - NPV adjusted - WR | G89: £m | H89: =SUM(J89:P89) -> -1.700692203 | J89: =J87*J88 -> 0 | K89: =K87*K88 -> 0.3094739283 | L89: =L87*L88 -> -0.1497602448 | M89: -0.543426404 | N89: -0.6611416201 | O89: -0.6558378619 | P89: 0
E90: (Under)/Overfunded wage related totex at PR19 - WR | F90: =H89 * -1 -> 1.700692203 | G90: £m
C92: Cost sharing on net totex available for reconciliation
E94: =InpActive!E$42 -> Net totex for cost sharing reconciliation - WR - Nominal | F94: =InpActive!F$42 -> 0 | G94: =InpActive!G$42 -> £m | H94: =InpActive!H$42 -> 0 | I94: =InpActive!I$42 -> 0 | J94: =InpActive!J$42 -> 0 | K94: =InpActive!K$42 -> 66.795 | L94: =InpActive!L$42 -> 80.704 | M94: =InpActive!M$42 -> 78.869 | N94: =InpActive!N$42 -> 72.33476585 | O94: =InpActive!O$42 -> 76.32299835 | P94: =InpActive!P$42 -> 0
E95: =Index!E$43 -> CPI(H): Fin year average - inflate from base year 2017-18 average - CALC | F95: =Index!F$43 -> 0 | G95: =Index!G$43 -> % | H95: =Index!H$43 -> 0 | I95: =Index!I$43 -> 0 | J95: =Index!J$43 -> 1.038621462 | K95: =Index!K$43 -> 1.04693747 | L95: =Index!L$43 -> 1.085399008 | M95: =Index!M$43 -> 1.180633296 | N95: =Index!N$43 -> 1.246121862 | O95: =Index!O$43 -> 1.286182632 | P95: =Index!P$43 -> 1.328090069
E96: Actual net totex for cost sharing reconciliation - WR - Real | G96: £m | J96: =J94 / J95 -> 0 | K96: =K94 / K95 -> 63.80037195 | L96: =L94 / L95 -> 74.35422307 | M96: 66.80228337 | N96: 58.04790694 | O96: 59.34071603 | P96: 0
E98: =InpActive!E$44 -> Performance related pay recovery mechanism adjustment - WR - Nominal (Neg) | F98: =InpActive!F$44 -> 0 | G98: =InpActive!G$44 -> £m | H98: =InpActive!H$44 -> 0 | I98: =InpActive!I$44 -> 0 | J98: =InpActive!J$44 -> 0 | K98: =InpActive!K$44 -> 0 | L98: =InpActive!L$44 -> 0 | M98: =InpActive!M$44 -> 0 | N98: =InpActive!N$44 -> 0 | O98: =InpActive!O$44 -> 0 | P98: =InpActive!P$44 -> 0
E99: =Index!E$43 -> CPI(H): Fin year average - inflate from base year 2017-18 average - CALC | F99: =Index!F$43 -> 0 | G99: =Index!G$43 -> % | H99: =Index!H$43 -> 0 | I99: =Index!I$43 -> 0 | J99: =Index!J$43 -> 1.038621462 | K99: =Index!K$43 -> 1.04693747 | L99: =Index!L$43 -> 1.085399008 | M99: =Index!M$43 -> 1.180633296 | N99: =Index!N$43 -> 1.246121862 | O99: =Index!O$43 -> 1.286182632 | P99: =Index!P$43 -> 1.328090069
E100: Performance related pay recovery mechanism adjustment - WR - real | G100: £m | H100: =SUM(K100:O100) -> 0 | J100: =J98 / J99 -> 0 | K100: =K98 / K99 -> 0 | L100: =L98 / L99 -> 0 | M100: 0 | N100: 0 | O100: 0 | P100: 0
E101: Total Performance related pay recovery mechanism adjustment - WR - real | F101: =H100 -> 0 | G101: £m
E103: =E$96 -> Actual net totex for cost sharing reconciliation - WR - Real | F103: =F$96 -> 0 | G103: £m | H103: 0 | I103: 0 | J103: 0 | K103: 63.80037195 | L103: 74.35422307 | M103: 66.80228337 | N103: 58.04790694 | O103: 59.34071603 | P103: 0
E104: =E100 -> Performance related pay recovery mechanism adjustment - WR - real | F104: =F100 -> 0 | G104: £m | H104: 0 | I104: 0 | J104: 0 | K104: 0 | L104: 0 | M104: 0 | N104: 0 | O104: 0 | P104: 0
E105: =Time!E$54 -> Forecast Period Flag | F105: =Time!F$54 -> 0 | G105: =Time!G$54 -> flag | H105: =Time!H$54 -> 5 | I105: =Time!I$54 -> 0 | J105: =Time!J$54 -> 0 | K105: =Time!K$54 -> 1 | L105: =Time!L$54 -> 1 | M105: =Time!M$54 -> 1 | N105: =Time!N$54 -> 1 | O105: =Time!O$54 -> 1 | P105: =Time!P$54 -> 0
E106: Actual net totex for cost sharing reconciliation - WR - Real | G106: £m | H106: =SUM(J106:P106) -> 322.3455014 | J106: =(J103 + J104)* J105 -> 0 | K106: =(K103 + K104)* K105 -> 63.80037195 | L106: =(L103 + L104)* L105 -> 74.35422307 | M106: 66.80228337 | N106: 58.04790694 | O106: 59.34071603 | P106: 0
D108: Profile for net totex for cost sharing
E110: =InpActive!E$35 -> Opex split profile - Cost sharing - WR | F110: =InpActive!F$35 -> 0 | G110: =InpActive!G$35 -> % | H110: =InpActive!H$35 -> 0 | I110: =InpActive!I$35 -> 0 | J110: =InpActive!J$35 -> 0 | K110: =InpActive!K$35 -> 0.117391079 | L110: =InpActive!L$35 -> 0.1216188337 | M110: =InpActive!M$35 -> 0.1128036662 | N110: =InpActive!N$35 -> 0.1081180389 | O110: =InpActive!O$35 -> 0.1144487197 | P110: =InpActive!P$35 -> 0
E111: =InpActive!E$36 -> Capex split profile - Cost sharing - WR | F111: =InpActive!F$36 -> 0 | G111: =InpActive!G$36 -> % | H111: =InpActive!H$36 -> 0 | I111: =InpActive!I$36 -> 0 | J111: =InpActive!J$36 -> 0 | K111: =InpActive!K$36 -> 0.08580924232 | L111: =InpActive!L$36 -> 0.09250665516 | M111: =InpActive!M$36 -> 0.1227896865 | N111: =InpActive!N$36 -> 0.08549939896 | O111: =InpActive!O$36 -> 0.03901467958 | P111: =InpActive!P$36 -> 0
E112: Totex profile - Cost Sharing - WR | G112: % | H112: =SUM(J112:P112) -> 1 | J112: =SUM(J110:J111) -> 0 | K112: =SUM(K110:K111) -> 0.2032003213 | L112: 0.2141254889 | M112: 0.2355933527 | N112: 0.1936174378 | O112: 0.1534633993 | P112: 0
E113: Totex profile - Cost Sharing - 5 year percentage - WR | F113: =H$59 -> 1 | G113: %
E115: =E$60 -> Totex profile - Base costs - 5 year percentage - WR | F115: =F$60 -> 1 | G115: =G$60 -> %
E116: WR Totex profile - Cost sharing 100% check | F116: =IF(OR($F$115 = 1, F115 = 0), 0, 1) -> 0 | G116: Check
E118: =InpActive!E$43 -> Net totex available for cost sharing - WR - Real | F118: =InpActive!F$43 -> 377.5010755 | G118: =InpActive!G$43 -> £m
E119: =E$112 -> Totex profile - Cost Sharing - WR | F119: =F$112 -> 0 | G119: % | H119: 1 | I119: 0 | J119: 0 | K119: 0.2032003213 | L119: 0.2141254889 | M119: 0.2355933527 | N119: 0.1936174378 | O119: 0.1534633993 | P119: 0
E120: Net totex available for cost sharing profiled - WR - Real | G120: £m | H120: =SUM(J120:P120) -> 377.5010755 | J120: =J119 * $F118 -> 0 | K120: =K119 * $F118 -> 76.70833985 | L120: 80.83260236 | M120: 88.93674401 | N120: 73.09079102 | O120: 57.9325983 | P120: 0
E123: =E$120 -> Net totex available for cost sharing profiled - WR - Real | F123: 0 | G123: £m | H123: 377.5010755 | I123: 0 | J123: 0 | K123: 76.70833985 | L123: 80.83260236 | M123: 88.93674401 | N123: 73.09079102 | O123: 57.9325983 | P123: 0
E124: =E$84 -> Variance to forecast totex for wage adjustment - WR | F124: 0 | G124: £m | H124: -1.672802187 | I124: 0 | J124: 0 | K124: 0.2758194941 | L124: -0.1373716798 | M124: -0.5130281327 | N124: -0.6423840071 | O124: -0.6558378619 | P124: 0
E125: =InpActive!E$46 -> Total final WINEP reconciliation - WR - real | F125: =InpActive!F$46 -> 0 | G125: =InpActive!G$46 -> £m | H125: =InpActive!H$46 -> 0 | I125: =InpActive!I$46 -> 0 | J125: =InpActive!J$46 -> 0 | K125: =InpActive!K$46 -> 0 | L125: =InpActive!L$46 -> 0 | M125: =InpActive!M$46 -> -27.58633333 | N125: =InpActive!N$46 -> -27.58633333 | O125: =InpActive!O$46 -> -27.58633333 | P125: =InpActive!P$46 -> 0
E126: =E100 -> Performance related pay recovery mechanism adjustment - WR - real | F126: =F100 -> 0 | G126: £m | H126: 0 | I126: 0 | J126: 0 | K126: 0 | L126: 0 | M126: 0 | N126: 0 | O126: 0 | P126: 0
E127: Net totex available for cost sharing after adjustments profiled - WR - Real | G127: £m | H127: =SUM(J127:P127) -> 293.0692733 | J127: =SUM(J123:J126) -> 0 | K127: =SUM(K123:K126) -> 76.98415934 | L127: =SUM(L123:L126) -> 80.69523068 | M127: 60.83738255 | N127: 44.86207368 | O127: 29.6904271 | P127: 0
D129: Variance to forecast net totex for cost sharing
E130: =E$106 -> Actual net totex for cost sharing reconciliation - WR - Real | F130: 0 | G130: £m | H130: 322.3455014 | I130: 0 | J130: 0 | K130: 63.80037195 | L130: 74.35422307 | M130: 66.80228337 | N130: 58.04790694 | O130: 59.34071603 | P130: 0
E131: =E$127 -> Net totex available for cost sharing after adjustments profiled - WR - Real | F131: 0 | G131: £m | H131: 293.0692733 | I131: 0 | J131: 0 | K131: 76.98415934 | L131: 80.69523068 | M131: 60.83738255 | N131: 44.86207368 | O131: 29.6904271 | P131: 0
E132: Variance to forecast net totex for cost sharing - WR | G132: £m | H132: =SUM(J132:P132) -> 29.27622802 | J132: =J130 - J131 -> 0 | K132: -13.18378739 | L132: -6.341007607 | M132: 5.964900824 | N132: 13.18583326 | O132: 29.65028893 | P132: 0
D134: Variance to forecast net totex for cost sharing - Time adjusted
E135: =InpActive!E$288 -> Financing cost index | F135: =InpActive!F$288 -> 0 | G135: =InpActive!G$288 -> Index | H135: =InpActive!H$288 -> 0 | I135: =InpActive!I$288 -> 0 | J135: =InpActive!J$288 -> 0 | K135: =InpActive!K$288 -> 4 | L135: =InpActive!L$288 -> 3 | M135: =InpActive!M$288 -> 2 | N135: =InpActive!N$288 -> 1 | O135: =InpActive!O$288 -> 0 | P135: =InpActive!P$288 -> 0
E136: =InpActive!E$290 -> Real WACC CPIH Deflated - WR | F136: =InpActive!F$290 -> 0.0292 | G136: =InpActive!G$290 -> %
E137: Time value of money factor - WR | G137: Factor | J137: =(1+$F136) ^ J135 -> 1 | K137: 1.122016155 | L137: 1.090182817 | M137: 1.05925264 | N137: 1.0292 | O137: 1 | P137: 1
E139: =E$132 -> Variance to forecast net totex for cost sharing - WR | F139: 0 | G139: £m | H139: 29.27622802 | I139: 0 | J139: 0 | K139: -13.18378739 | L139: -6.341007607 | M139: 5.964900824 | N139: 13.18583326 | O139: 29.65028893 | P139: 0
E140: =E$137 -> Time value of money factor - WR | F140: 0 | G140: Factor | H140: 0 | I140: 0 | J140: 1 | K140: 1.122016155 | L140: 1.090182817 | M140: 1.05925264 | N140: 1.0292 | O140: 1 | P140: 1
E141: Time adjusted variance to forecast net totex for cost sharing - WR | G141: £m | H141: =SUM(J141:P141) -> 27.8342055 | J141: =J139 * J140 -> 0 | K141: -14.79242244 | L141: -6.912857536 | M141: 6.318336945 | N141: 13.57085959 | O141: 29.65028893 | P141: 0
E142: Total variance to forecast net totex for cost sharing - WR | F142: =$H141 -> 27.8342055 | G142: £m
D144: Under / Overperformance on net totex for cost sharing
E145: =E$141 -> Time adjusted variance to forecast net totex for cost sharing - WR | F145: 0 | G145: £m | H145: 27.8342055 | I145: 0 | J145: =J$141 -> 0 | K145: =K$141 -> -14.79242244 | L145: -6.912857536 | M145: 6.318336945 | N145: 13.57085959 | O145: 29.65028893 | P145: 0
E146: =E$39 -> Active Sharing Rate - Underperformance Rate - WR | G146: =G$39 -> % | J146: =J$39 -> 0 | K146: =K$39 -> 0.75 | L146: 0.75 | M146: 0.75 | N146: 0.75 | O146: 0.6 | P146: 0
E147: Adjustment for cost sharing - Net totex for cost sharing - WR - Real | G147: £m | J147: =J145 * (1-J146) -> 0 | K147: =K145 * (1-K146) -> -3.698105609 | L147: =L145 * (1-L146) -> -1.728214384 | M147: 1.579584236 | N147: 3.392714898 | O147: 11.86011557 | P147: 0
E148: Active adjustment for cost sharing - Net totex for cost sharing - WR - Real | F148: =SUM(K147:O147) -> 11.40609471 | G148: £m
E150: =InpActive!E$57 -> Ex ante allowance above Ofwat forecast - Water Resources - Real | F150: =InpActive!F$57 -> 0 | G150: =InpActive!G$57 -> £m
E151: =E$112 -> Totex profile - Cost Sharing - WR | F151: =F$112 -> 0 | G151: % | H151: 1 | I151: 0 | J151: 0 | K151: 0.2032003213 | L151: 0.2141254889 | M151: 0.2355933527 | N151: 0.1936174378 | O151: 0.1534633993 | P151: 0
E152: Ex ante allowance profiled - WR - Real | G152: £m | H152: =SUM(J152:P152) -> 0 | J152: =J151 * $F150 -> 0 | K152: 0 | L152: 0 | M152: 0 | N152: 0 | O152: 0 | P152: 0
E154: =E$152 -> Ex ante allowance profiled - WR - Real | F154: 0 | G154: £m | H154: 0 | I154: 0 | J154: 0 | K154: 0 | L154: 0 | M154: 0 | N154: 0 | O154: 0 | P154: 0
E155: =E$137 -> Time value of money factor - WR | F155: 0 | G155: Factor | H155: 0 | I155: 0 | J155: 1 | K155: 1.122016155 | L155: 1.090182817 | M155: 1.05925264 | N155: 1.0292 | O155: 1 | P155: 1
E156: Ex ante allowance profiled - WR - Real - NPV adjusted | G156: £m | H156: =SUM(J156:P156) -> 0 | J156: =J154 * J155 -> 0 | K156: 0 | L156: 0 | M156: 0 | N156: 0 | O156: 0 | P156: 0
E157: NPV adjusted ex ante allowance - WR - Real | F157: =H156 -> 0 | G157: £m
E159: =InpActive!E$64 -> Actuals for CMA excluded items - WR - nominal | F159: =InpActive!F$64 -> 0 | G159: =InpActive!G$64 -> £m | H159: =InpActive!H$64 -> 0 | I159: =InpActive!I$64 -> 0 | J159: =InpActive!J$64 -> 0 | K159: =InpActive!K$64 -> 0 | L159: =InpActive!L$64 -> 0 | M159: =InpActive!M$64 -> 0 | N159: =InpActive!N$64 -> 0 | O159: =InpActive!O$64 -> 0 | P159: =InpActive!P$64 -> 0
E160: =Index!E$43 -> CPI(H): Fin year average - inflate from base year 2017-18 average - CALC | F160: =Index!F$43 -> 0 | G160: =Index!G$43 -> % | H160: =Index!H$43 -> 0 | I160: =Index!I$43 -> 0 | J160: =Index!J$43 -> 1.038621462 | K160: =Index!K$43 -> 1.04693747 | L160: =Index!L$43 -> 1.085399008 | M160: =Index!M$43 -> 1.180633296 | N160: =Index!N$43 -> 1.246121862 | O160: =Index!O$43 -> 1.286182632 | P160: =Index!P$43 -> 1.328090069
E161: Actuals for CMA excluded items - WR - real | G161: £m | J161: =J159 / J160 -> 0 | K161: =K159 / K160 -> 0 | L161: =L159 / L160 -> 0 | M161: 0 | N161: 0 | O161: 0 | P161: 0
E163: =InpActive!E$65 -> Allowance for CMA excluded items - WR - real | F163: =InpActive!F$65 -> 0 | G163: =InpActive!G$65 -> £m | H163: =InpActive!H$65 -> 0 | I163: =InpActive!I$65 -> 0 | J163: =InpActive!J$65 -> 0 | K163: =InpActive!K$65 -> 0 | L163: =InpActive!L$65 -> 0 | M163: =InpActive!M$65 -> 0 | N163: =InpActive!N$65 -> 0 | O163: =InpActive!O$65 -> 0 | P163: =InpActive!P$65 -> 0
E164: =E161 -> Actuals for CMA excluded items - WR - real | F164: =F161 -> 0 | G164: £m | H164: 0 | I164: 0 | J164: 0 | K164: =K161 -> 0 | L164: 0 | M164: 0 | N164: 0 | O164: 0 | P164: 0
E165: Variance to allowances for CMA excluded items - WR | G165: £m | H165: =SUM(J165:P165) -> 0 | J165: =J164-J163 -> 0 | K165: 0 | L165: =L164-L163 -> 0 | M165: 0 | N165: 0 | O165: 0 | P165: 0
E167: =E$165 -> Variance to allowances for CMA excluded items - WR | F167: =F$165 -> 0 | G167: £m | H167: 0 | I167: 0 | J167: 0 | K167: 0 | L167: 0 | M167: 0 | N167: 0 | O167: 0 | P167: 0
E168: =E$137 -> Time value of money factor - WR | F168: 0 | G168: Factor | H168: 0 | I168: 0 | J168: 1 | K168: 1.122016155 | L168: 1.090182817 | M168: 1.05925264 | N168: 1.0292 | O168: 1 | P168: 1
E169: Time value adjusted variance to allowances for CMA excluded items - WR - real | G169: £m | H169: =SUM(J169:P169) -> 0 | J169: =J167 * J168 -> 0 | K169: =K167 * K168 -> 0 | L169: 0 | M169: 0 | N169: 0 | O169: 0 | P169: 0
E170: Total variance to allowances for CMA excluded items - WR | F170: =$H169 -> 0 | G170: £m
E172: =E170 -> Total variance to allowances for CMA excluded items - WR | F172: =F170 -> 0 | G172: £m
E173: =InpActive!E66 -> CMA excluded items sharing rate - WR - real | F173: =InpActive!F66 -> 0 | G173: =InpActive!G66 -> %
E174: Allowable adjustment for CMA excluded items - WR - Real | F174: =(F172* F173) * -1 -> 0 | G174: £m
E176: =E148 -> Active adjustment for cost sharing - Net totex for cost sharing - WR - Real | F176: =F148 -> 11.40609471 | G176: =G148 -> £m
E177: =E$157 -> NPV adjusted ex ante allowance - WR - Real | F177: =F$157 -> 0 | G177: =G$157 -> £m
E178: =E90 -> (Under)/Overfunded wage related totex at PR19 - WR | F178: =F90 -> 1.700692203 | G178: =G90 -> £m
E179: =E$174 -> Allowable adjustment for CMA excluded items - WR - Real | F179: =F$174 -> 0 | G179: £m
E180: =E101 -> Total Performance related pay recovery mechanism adjustment - WR - real | F180: =F101 -> 0 | G180: £m
E181: Total adjustment for cost sharing after ex ante allowance & wage adjustment - WR - Real | F181: =F176 - SUM(F177:F179) +F180 -> 9.705402512 | G181: £m
C183: Wholesaler bad debt sharing adjustment
E185: =InpActive!E$60 -> Business retail bad debt liability due to covid liquidity measures - WR - real | F185: =InpActive!F$60 -> 0 | G185: =InpActive!G$60 -> £m
E186: =E$39 -> Active Sharing Rate - Underperformance Rate - WR | F186: =F$39 -> 0 | G186: =G$39 -> %
E187: Embedded customer share - WR | F187: =F185 * (1-F186) -> 0 | G187: £m
E189: =InpActive!E$61 -> Total Wholesaler Liability - WR - real | F189: =InpActive!F$61 -> 0 | G189: =InpActive!G$61 -> £m
E190: =E$39 -> Active Sharing Rate - Underperformance Rate - WR | F190: =F$39 -> 0 | G190: =G$39 -> %
E191: Wholesaler liability - WR | F191: =F189 * (F190) -> 0 | G191: £m
E193: =InpActive!E$60 -> Business retail bad debt liability due to covid liquidity measures - WR - real | F193: =InpActive!F$60 -> 0 | G193: =InpActive!G$60 -> £m
E194: =E$191 -> Wholesaler liability - WR | F194: =F$191 -> 0 | G194: £m
E195: Customer Liability | F195: =F193 - F194 -> 0 | G195: £m
E197: =E195 -> Customer Liability | F197: =F195 -> 0 | G197: £m
E198: =E187 -> Embedded customer share - WR | F198: =F187 -> 0 | G198: £m
E199: Wholesaler bad debt adjustment - WR | F199: =IF(F197 > F198, F197 - F198, 0) -> 0 | G199: £m
C201: Cost sharing adjustment RCV/Revenue Split
E203: =E$181 -> Total adjustment for cost sharing after ex ante allowance & wage adjustment - WR - Real | F203: =F$181 -> 9.705402512 | G203: =G$181 -> £m
E204: =InpActive!E$55 -> Weighted average PAYG rate - WR | F204: =InpActive!F$55 -> 0.548 | G204: =InpActive!G$55 -> %
E205: Cost sharing revenue exc bad debt adjustment- WR - Real | F205: =F203 * ( $F$204) -> 5.318560577 | G205: £m
E207: =E$205 -> Cost sharing revenue exc bad debt adjustment- WR - Real | F207: =F$205 -> 5.318560577 | G207: £m
E208: =E199 -> Wholesaler bad debt adjustment - WR | F208: =F199 -> 0 | G208: =G199 -> £m
E209: Cost sharing revenue adjustment - WR - Real | F209: =SUM(F207:F208) -> 5.318560577 | G209: £m
E211: =E$181 -> Total adjustment for cost sharing after ex ante allowance & wage adjustment - WR - Real | F211: =F$181 -> 9.705402512 | G211: £m
E212: =InpActive!E$55 -> Weighted average PAYG rate - WR | F212: =InpActive!F$55 -> 0.548 | G212: =InpActive!G$55 -> %
E213: Cost sharing RCV adjustment - WR - Real | F213: =F211 * (1 - $F$212) -> 4.386841936 | G213: £m
A215: WATER NETWORK
C217: Adjustment For Wage Growth
D219: Totex for wage adjustment
E220: =InpActive!E$70 -> Base Costs - WN - Real | F220: =InpActive!F$70 -> 3357.796205 | G220: =InpActive!G$70 -> £m
E221: =InpActive!E$71 -> Metering (excluding new connections) for meters requested by optants, customers and businesses - WN - Real | F221: =InpActive!F$71 -> 203.2737589 | G221: =InpActive!G$71 -> £m
E222: Totex available for wage indexation adjustment - WN - Real | F222: =SUM(F220:F221) -> 3561.069964 | G222: £m
D224: Profile for totex for wage adjustment
E225: =InpActive!E$73 -> Opex Split Profile - Base costs - WN | F225: =InpActive!F$73 -> 0 | G225: =InpActive!G$73 -> % | H225: =InpActive!H$73 -> 0 | I225: =InpActive!I$73 -> 0 | J225: =InpActive!J$73 -> 0 | K225: =InpActive!K$73 -> 0.1061957358 | L225: =InpActive!L$73 -> 0.1042417628 | M225: =InpActive!M$73 -> 0.1000588804 | N225: =InpActive!N$73 -> 0.09711666001 | O225: =InpActive!O$73 -> 0.09634665673 | P225: =InpActive!P$73 -> 0
E226: =InpActive!E$74 -> Capex Split Profile - Base costs - WN | F226: =InpActive!F$74 -> 0 | G226: =InpActive!G$74 -> % | H226: =InpActive!H$74 -> 0 | I226: =InpActive!I$74 -> 0 | J226: =InpActive!J$74 -> 0 | K226: =InpActive!K$74 -> 0.1197765476 | L226: =InpActive!L$74 -> 0.1123595348 | M226: =InpActive!M$74 -> 0.09314365851 | N226: =InpActive!N$74 -> 0.08758309611 | O226: =InpActive!O$74 -> 0.08317746726 | P226: =InpActive!P$74 -> 0
E227: Totex profile - Base costs - WN | G227: % | H227: =SUM(J227:P227) -> 1 | J227: =SUM(J225:J226) -> 0 | K227: 0.2259722834 | L227: 0.2166012976 | M227: 0.1932025389 | N227: 0.1846997561 | O227: 0.179524124 | P227: 0
E228: Totex profile - Base costs - 5 year percentage - WN | F228: =H$227 -> 1 | G228: %
E230: =E$228 -> Totex profile - Base costs - 5 year percentage - WN | F230: =F$228 -> 1 | G230: =G$228 -> %
E231: WN Totex profile - Base costs 100% check | F231: =IF(OR($F$230 = 1, F230 = 0), 0, 1) -> 0 | G231: Check
E233: =E$222 -> Totex available for wage indexation adjustment - WN - Real | F233: =F$222 -> 3561.069964 | G233: =G$222 -> £m
E234: =Time!E$54 -> Forecast Period Flag | F234: =Time!F$54 -> 0 | G234: =Time!G$54 -> flag | H234: =Time!H$54 -> 5 | I234: =Time!I$54 -> 0 | J234: =Time!J$54 -> 0 | K234: =Time!K$54 -> 1 | L234: =Time!L$54 -> 1 | M234: =Time!M$54 -> 1 | N234: =Time!N$54 -> 1 | O234: =Time!O$54 -> 1 | P234: =Time!P$54 -> 0
E235: =E$227 -> Totex profile - Base costs - WN | F235: 0 | G235: % | H235: 1 | I235: 0 | J235: 0 | K235: 0.2259722834 | L235: 0.2166012976 | M235: 0.1932025389 | N235: 0.1846997561 | O235: 0.179524124 | P235: 0
E236: Profiled Totex available for wage indexation adjustment - WN - Real | G236: £m | H236: =SUM(J236:P236) -> 3561.069964 | J236: =IF(J234 = 1, J235 * $F233, 0) -> 0 | K236: 804.703111 | L236: 771.3323751 | M236: 688.0077582 | N236: 657.7287539 | O236: 639.2979657 | P236: 0
D238: Totex applicable for wage adjustment by year
E239: =InpActive!E$255 -> Percentage totex linked to wage growth - WN | F239: =InpActive!F$255 -> 0.386 | G239: =InpActive!G$255 -> %
E240: =E236 -> Profiled Totex available for wage indexation adjustment - WN - Real | F240: 0 | G240: £m | H240: 3561.069964 | I240: 0 | J240: 0 | K240: 804.703111 | L240: 771.3323751 | M240: 688.0077582 | N240: 657.7287539 | O240: 639.2979657 | P240: 0
E241: Profiled Net totex available for wage adj - WN - Real | G241: £m | H241: =SUM(J241:P241) -> 1374.573006 | J241: =J240 * $F239 -> 0 | K241: 310.6154008 | L241: 297.7342968 | M241: 265.5709947 | N241: 253.883299 | O241: 246.7690148 | P241: 0
D243: Adjustment factor for wage linked totex
E244: =Time!E$54 -> Forecast Period Flag | F244: =Time!F$54 -> 0 | G244: =Time!G$54 -> flag | H244: =Time!H$54 -> 5 | I244: =Time!I$54 -> 0 | J244: =Time!J$54 -> 0 | K244: =Time!K$54 -> 1 | L244: =Time!L$54 -> 1 | M244: =Time!M$54 -> 1 | N244: =Time!N$54 -> 1 | O244: =Time!O$54 -> 1 | P244: =Time!P$54 -> 0
E245: =E$241 -> Profiled Net totex available for wage adj - WN - Real | F245: 0 | G245: £m | H245: 1374.573006 | I245: 0 | J245: 0 | K245: 310.6154008 | L245: 297.7342968 | M245: 265.5709947 | N245: 253.883299 | O245: 246.7690148 | P245: 0
E246: =E$26 -> Real adjustment factor for wages | F246: 0 | G246: % | H246: 0 | I246: 0 | J246: 0 | K246: 1.008871737 | L246: 0.9954600068 | M246: 0.9810824548 | N246: 0.970281077 | O246: 0.970281077 | P246: 0
E247: Profiled adjustment wage related totex - WN - Real | G247: £m | H247: =SUM(J247:P247) -> 1356.074194 | J247: =IF(J244 = 1, J245 * J246, 0) -> 0 | K247: 313.3710989 | L247: 296.3825851 | M247: 260.5470434 | N247: 246.3381608 | O247: 239.4353054 | P247: 0
D249: Variance to forecast wage linked totex
E250: =E$247 -> Profiled adjustment wage related totex - WN - Real | F250: 0 | G250: £m | H250: 1356.074194 | I250: 0 | J250: 0 | K250: 313.3710989 | L250: 296.3825851 | M250: 260.5470434 | N250: 246.3381608 | O250: 239.4353054 | P250: 0
E251: =E$241 -> Profiled Net totex available for wage adj - WN - Real | F251: 0 | G251: £m | H251: 1374.573006 | I251: 0 | J251: 0 | K251: 310.6154008 | L251: 297.7342968 | M251: 265.5709947 | N251: 253.883299 | O251: 246.7690148 | P251: 0
E252: Variance to forecast totex for wage adjustment - WN | G252: £m | H252: =SUM(J252:P252) -> -18.4988125 | J252: =J250 - J251 -> 0 | K252: 2.755698038 | L252: -1.351711695 | M252: -5.023951292 | N252: -7.54513821 | O252: -7.333709345 | P252: 0
D254: Wage totex overfunded/unfunded at PR19
E255: =E$252 -> Variance to forecast totex for wage adjustment - WN | F255: =F$252 -> 0 | G255: £m | H255: -18.4988125 | I255: 0 | J255: 0 | K255: 2.755698038 | L255: -1.351711695 | M255: -5.023951292 | N255: -7.54513821 | O255: -7.333709345 | P255: 0
E256: =E304 -> Time value of money factor - WN | F256: 0 | G256: Factor | H256: 0 | I256: 0 | J256: 1 | K256: =K304 -> 1.122016155 | L256: 1.090182817 | M256: 1.05925264 | N256: 1.0292 | O256: 1 | P256: 1
E257: Variance to forecast totex for wage adjustment - NPV adjusted - WN | G257: £m | H257: =SUM(J257:P257) -> -18.80247441 | J257: =J255*J256 -> 0 | K257: =K255*K256 -> 3.091937718 | L257: =L255*L256 -> -1.473612864 | M257: -5.321633669 | N257: -7.765456246 | O257: -7.333709345 | P257: 0
E258: (Under)/Overfunded wage related totex at PR19 - WN | F258: =H257 * -1 -> 18.80247441 | G258: £m
C261: Cost sharing on net totex available for reconciliation
E263: =InpActive!E$83 -> Net totex for cost sharing reconciliation - WN - Nominal | F263: =InpActive!F$83 -> 0 | G263: =InpActive!G$83 -> £m | H263: =InpActive!H$83 -> 0 | I263: =InpActive!I$83 -> 0 | J263: =InpActive!J$83 -> 0 | K263: =InpActive!K$83 -> 807.3366549 | L263: =InpActive!L$83 -> 864.6746406 | M263: =InpActive!M$83 -> 1041.145 | N263: =InpActive!N$83 -> 1198.413552 | O263: =InpActive!O$83 -> 1120.072327 | P263: =InpActive!P$83 -> 0
E264: =Index!E$43 -> CPI(H): Fin year average - inflate from base year 2017-18 average - CALC | F264: =Index!F$43 -> 0 | G264: =Index!G$43 -> % | H264: =Index!H$43 -> 0 | I264: =Index!I$43 -> 0 | J264: =Index!J$43 -> 1.038621462 | K264: =Index!K$43 -> 1.04693747 | L264: =Index!L$43 -> 1.085399008 | M264: =Index!M$43 -> 1.180633296 | N264: =Index!N$43 -> 1.246121862 | O264: =Index!O$43 -> 1.286182632 | P264: =Index!P$43 -> 1.328090069
... 224 more rows

Sheet Abstraction & Rates
A1: =RIGHT(CELL("filename", $A$1), LEN(CELL("filename", $A$1)) - SEARCH("]", CELL("filename", $A$1)))&" Uncertainty Mechanism" -> 
E2: =Time!E$22 -> Model Period BEG | J2: =Time!J$22 -> 2019-04-01 | K2: =Time!K$22 -> 2020-04-01 | L2: =Time!L$22 -> 2021-04-01 | M2: =Time!M$22 -> 2022-04-01 | N2: =Time!N$22 -> 2023-04-01 | O2: =Time!O$22 -> 2024-04-01 | P2: =Time!P$22 -> 2025-04-01
E3: =Time!E$23 -> Model Period END | F3: =Check!F$8 -> 0 | G3: Error chks | J3: =Time!J$23 -> 2020-03-31 | K3: =Time!K$23 -> 2021-03-31 | L3: =Time!L$23 -> 2022-03-31 | M3: =Time!M$23 -> 2023-03-31 | N3: =Time!N$23 -> 2024-03-31 | O3: =Time!O$23 -> 2025-03-31 | P3: =Time!P$23 -> 2026-03-31
E4: =Time!E$59 -> Pre Forecast vs Forecast | J4: =Time!J$59 -> Pre Fcst | K4: =Time!K$59 -> Forecast | L4: =Time!L$59 -> Forecast | M4: =Time!M$59 -> Forecast | N4: =Time!N$59 -> Forecast | O4: =Time!O$59 -> Forecast | P4: =Time!P$59 -> Post-Fcst
E5: =Time!E$101 -> Financial Year Ending | J5: =Time!J$101 -> 2020 | K5: =Time!K$101 -> 2021 | L5: =Time!L$101 -> 2022 | M5: =Time!M$101 -> 2023 | N5: =Time!N$101 -> 2024 | O5: =Time!O$101 -> 2025 | P5: =Time!P$101 -> 2026
E6: =Time!E$11 -> Model column counter | F6: Constant | G6: Unit | H6: Total | J6: =Time!J$11 -> 1 | K6: =Time!K$11 -> 2 | L6: =Time!L$11 -> 3 | M6: =Time!M$11 -> 4 | N6: =Time!N$11 -> 5 | O6: =Time!O$11 -> 6 | P6: =Time!P$11 -> 7
A8: WATER RESOURCES
C10: Uncertainty mechanism for business rates
D12: Profile total forecast business rates
E13: =InpActive!E$49 -> Business rates - Forecast - WR - Real | F13: =InpActive!F$49 -> 17.00566122 | G13: =InpActive!G$49 -> £m
E14: =InpActive!E$38 -> Business Rates forecast profile - WR | F14: =InpActive!F$38 -> 0 | G14: =InpActive!G$38 -> % | H14: =InpActive!H$38 -> 0 | I14: =InpActive!I$38 -> 0 | J14: =InpActive!J$38 -> 0 | K14: =InpActive!K$38 -> 0.2 | L14: =InpActive!L$38 -> 0.2 | M14: =InpActive!M$38 -> 0.2 | N14: =InpActive!N$38 -> 0.2 | O14: =InpActive!O$38 -> 0.2 | P14: =InpActive!P$38 -> 0
E15: Business rates - Forecast Profiled - WR - Real | G15: £m | H15: =SUM(J15:P15) -> 17.00566122 | J15: =J14 * $F13 -> 0 | K15: 3.401132245 | L15: 3.401132245 | M15: 3.401132245 | N15: 3.401132245 | O15: 3.401132245 | P15: 0
E17: =InpActive!E$52 -> Business rates - Actual - WR - Nominal | F17: =InpActive!F$52 -> 0 | G17: =InpActive!G$52 -> £m | H17: =InpActive!H$52 -> 0 | I17: =InpActive!I$52 -> 0 | J17: =InpActive!J$52 -> 0 | K17: =InpActive!K$52 -> 3.807 | L17: =InpActive!L$52 -> 4.752 | M17: =InpActive!M$52 -> 3.324 | N17: =InpActive!N$52 -> 3.721179182 | O17: =InpActive!O$52 -> 3.605094392 | P17: =InpActive!P$52 -> 0
E18: =Index!E$43 -> CPI(H): Fin year average - inflate from base year 2017-18 average - CALC | F18: =Index!F$43 -> 0 | G18: =Index!G$43 -> % | H18: =Index!H$43 -> 0 | I18: =Index!I$43 -> 0 | J18: =Index!J$43 -> 1.038621462 | K18: =Index!K$43 -> 1.04693747 | L18: =Index!L$43 -> 1.085399008 | M18: =Index!M$43 -> 1.180633296 | N18: =Index!N$43 -> 1.246121862 | O18: =Index!O$43 -> 1.286182632 | P18: =Index!P$43 -> 1.328090069
E19: Business rates - Outturn - WR - Real | G19: £m | J19: =J17 / J18 -> 0 | K19: =K17 / K18 -> 3.636320324 | L19: =L17 / L18 -> 4.378113452 | M19: 2.815438131 | N19: 2.986208089 | O19: 2.802941278 | P19: 0
D21: Variance to forecast business rates
E22: =E$19 -> Business rates - Outturn - WR - Real | F22: =F$19 -> 0 | G22: £m | H22: 0 | I22: 0 | J22: 0 | K22: 3.636320324 | L22: 4.378113452 | M22: 2.815438131 | N22: 2.986208089 | O22: 2.802941278 | P22: 0
E23: =E$15 -> Business rates - Forecast Profiled - WR - Real | F23: 0 | G23: £m | H23: 17.00566122 | I23: 0 | J23: 0 | K23: 3.401132245 | L23: 3.401132245 | M23: 3.401132245 | N23: 3.401132245 | O23: 3.401132245 | P23: 0
E24: Variance between forecast and outturn business rates - WR - Real | G24: £m | H24: =SUM(J24:P24) -> -0.3866399507 | J24: =J22 - J23 -> 0 | K24: 0.235188079 | L24: 0.9769812073 | M24: -0.5856941142 | N24: -0.4149241562 | O24: -0.5981909665 | P24: 0
D26: Variance to forecast business rates – Time adjusted
E27: =E$24 -> Variance between forecast and outturn business rates - WR - Real | F27: 0 | G27: £m | H27: -0.3866399507 | I27: 0 | J27: 0 | K27: 0.235188079 | L27: 0.9769812073 | M27: -0.5856941142 | N27: -0.4149241562 | O27: -0.5981909665 | P27: 0
E28: ='Cost sharing calculations'!E$137 -> Time value of money factor - WR | F28: ='Cost sharing calculations'!F$137 -> 0 | G28: ='Cost sharing calculations'!G$137 -> Factor | H28: ='Cost sharing calculations'!H$137 -> 0 | I28: ='Cost sharing calculations'!I$137 -> 0 | J28: ='Cost sharing calculations'!J$137 -> 1 | K28: ='Cost sharing calculations'!K$137 -> 1.122016155 | L28: ='Cost sharing calculations'!L$137 -> 1.090182817 | M28: ='Cost sharing calculations'!M$137 -> 1.05925264 | N28: ='Cost sharing calculations'!N$137 -> 1.0292 | O28: ='Cost sharing calculations'!O$137 -> 1 | P28: ='Cost sharing calculations'!P$137 -> 1
E29: Variance on business rates time value adjusted- WR - Real | G29: £m | H29: =SUM(J29:P29) -> -0.3166559958 | J29: =J27 * J28 -> 0 | K29: 0.2638848241 | L29: 1.065088125 | M29: -0.6203980367 | N29: -0.4270399416 | O29: -0.5981909665 | P29: 0
E30: Adjustment for business rates - WR - Real | F30: =H$29 -> -0.3166559958 | G30: £m
D32: Under / Overperformance business rates
E33: =InpActive!E$280 -> Cost sharing rates Business rates - Overperformance | F33: =InpActive!F$280 -> 0.25 | G33: =InpActive!G$280 -> %
E34: =E$30 -> Adjustment for business rates - WR - Real | F34: =F$30 -> -0.3166559958 | G34: =G$30 -> £m
E35: Business Rates Outperformance Adjustment - WR - Real | F35: =IF( F34 < 0, $F$34 * (1 - F33), 0) -> -0.2374919969 | G35: £m
E37: =InpActive!E$281 -> Cost sharing rates Business rates - Underperformance | F37: =InpActive!F$281 -> 0.25 | G37: =InpActive!G$281 -> %
E38: =E$30 -> Adjustment for business rates - WR - Real | F38: =F$30 -> -0.3166559958 | G38: =G$30 -> £m
E39: Business Rates Underperformance Adjustment - WR - Real | F39: =IF( F38 > 0, $F$38 * (1 - F37), 0) -> 0 | G39: £m
E41: =E$35 -> Business Rates Outperformance Adjustment - WR - Real | F41: =F$35 -> -0.2374919969 | G41: =G$35 -> £m
E42: =E$39 -> Business Rates Underperformance Adjustment - WR - Real | F42: =F$39 -> 0 | G42: =G$39 -> £m
E43: Active adjustment for business rates uncertainty mechanism - WR - Real | F43: =IF(F41 <> 0, F41, F42) -> -0.2374919969 | G43: £m
C45: Uncertainty mechanism for abstraction charges
D47: Profile total forecast abstraction charges
E48: =InpActive!E$50 -> Abstraction charges - Forecast - WR - Real | F48: =InpActive!F$50 -> 64.6489986 | G48: =InpActive!G$50 -> £m
E49: =InpActive!E$39 -> Abstraction Charges forecast profile - WR | F49: =InpActive!F$39 -> 0 | G49: =InpActive!G$39 -> % | H49: =InpActive!H$39 -> 0 | I49: =InpActive!I$39 -> 0 | J49: =InpActive!J$39 -> 0 | K49: =InpActive!K$39 -> 0.2 | L49: =InpActive!L$39 -> 0.2 | M49: =InpActive!M$39 -> 0.2 | N49: =InpActive!N$39 -> 0.2 | O49: =InpActive!O$39 -> 0.2 | P49: =InpActive!P$39 -> 0
E50: Abstraction charges - Forecast Profiled - WR - Real | G50: £m | H50: =SUM(J50:P50) -> 64.6489986 | J50: =J49 * $F48 -> 0 | K50: 12.92979972 | L50: 12.92979972 | M50: 12.92979972 | N50: 12.92979972 | O50: 12.92979972 | P50: 0
E52: =InpActive!E$53 -> Abstraction charges - Actual - WR - Nominal | F52: =InpActive!F$53 -> 0 | G52: =InpActive!G$53 -> £m | H52: =InpActive!H$53 -> 0 | I52: =InpActive!I$53 -> 0 | J52: =InpActive!J$53 -> 0 | K52: =InpActive!K$53 -> 17.129 | L52: =InpActive!L$53 -> 17.003 | M52: =InpActive!M$53 -> 23.579 | N52: =InpActive!N$53 -> 25.04185356 | O52: =InpActive!O$53 -> 23.57461725 | P52: =InpActive!P$53 -> 0
E53: =Index!E$43 -> CPI(H): Fin year average - inflate from base year 2017-18 average - CALC | F53: =Index!F$43 -> 0 | G53: =Index!G$43 -> % | H53: =Index!H$43 -> 0 | I53: =Index!I$43 -> 0 | J53: =Index!J$43 -> 1.038621462 | K53: =Index!K$43 -> 1.04693747 | L53: =Index!L$43 -> 1.085399008 | M53: =Index!M$43 -> 1.180633296 | N53: =Index!N$43 -> 1.246121862 | O53: =Index!O$43 -> 1.286182632 | P53: =Index!P$43 -> 1.328090069
E54: Abstraction charges - Outturn - WR - Real | G54: £m | J54: =J52 / J53 -> 0 | K54: =K52 / K53 -> 16.36105354 | L54: =L52 / L53 -> 15.66520687 | M54: 19.97148486 | N54: 20.09583037 | O54: 18.32913667 | P54: 0
D56: Variance to forecast abstraction charges
E57: =E$54 -> Abstraction charges - Outturn - WR - Real | F57: =F$54 -> 0 | G57: £m | H57: 0 | I57: 0 | J57: 0 | K57: 16.36105354 | L57: 15.66520687 | M57: 19.97148486 | N57: 20.09583037 | O57: 18.32913667 | P57: 0
E58: =E$50 -> Abstraction charges - Forecast Profiled - WR - Real | F58: =F$50 -> 0 | G58: £m | H58: 64.6489986 | I58: 0 | J58: 0 | K58: 12.92979972 | L58: 12.92979972 | M58: 12.92979972 | N58: 12.92979972 | O58: 12.92979972 | P58: 0
E59: Variance between forecast and outturn abstraction charges - WR - Real | G59: £m | H59: =SUM(J59:P59) -> 25.77371371 | J59: =J57 - J58 -> 0 | K59: 3.431253819 | L59: 2.735407145 | M59: 7.041685142 | N59: 7.166030654 | O59: 5.399336949 | P59: 0
D61: Variance to forecast abstraction charges – Time adjusted
E62: =E$59 -> Variance between forecast and outturn abstraction charges - WR - Real | F62: =F$59 -> 0 | G62: £m | H62: 25.77371371 | I62: 0 | J62: 0 | K62: 3.431253819 | L62: 2.735407145 | M62: 7.041685142 | N62: 7.166030654 | O62: 5.399336949 | P62: 0
E63: ='Cost sharing calculations'!E$137 -> Time value of money factor - WR | F63: ='Cost sharing calculations'!F$137 -> 0 | G63: ='Cost sharing calculations'!G$137 -> Factor | H63: ='Cost sharing calculations'!H$137 -> 0 | I63: ='Cost sharing calculations'!I$137 -> 0 | J63: ='Cost sharing calculations'!J$137 -> 1 | K63: ='Cost sharing calculations'!K$137 -> 1.122016155 | L63: ='Cost sharing calculations'!L$137 -> 1.090182817 | M63: ='Cost sharing calculations'!M$137 -> 1.05925264 | N63: ='Cost sharing calculations'!N$137 -> 1.0292 | O63: ='Cost sharing calculations'!O$137 -> 1 | P63: ='Cost sharing calculations'!P$137 -> 1
E64: Variance on abstraction charges time value adjusted- WR - Real | G64: £m | H64: =SUM(J64:P64) -> 27.06555536 | J64: =J62 * J63 -> 0 | K64: 3.849922218 | L64: 2.982093868 | M64: 7.458923577 | N64: 7.375278749 | O64: 5.399336949 | P64: 0
E65: Adjustment for abstraction charges - WR - Real | F65: =H$64 -> 27.06555536 | G65: £m
D67: Under / Overperformance abstraction charges
E68: =InpActive!E$282 -> Cost sharing rates Abstraction - Overperformance | F68: =InpActive!F$282 -> 0.25 | G68: =InpActive!G$282 -> %
E69: =E$65 -> Adjustment for abstraction charges - WR - Real | F69: =F$65 -> 27.06555536 | G69: £m
E70: Abstraction charges Outperformance Adjustment - WR - Real | F70: =IF( F69 < 0, F69 * (1 - F68), 0) -> 0 | G70: £m
E72: =InpActive!E$283 -> Cost sharing rates Abstraction - Underperformance | F72: =InpActive!F$283 -> 0.25 | G72: =InpActive!G$283 -> %
E73: =E$65 -> Adjustment for abstraction charges - WR - Real | F73: =F$65 -> 27.06555536 | G73: £m
E74: Abstraction charges Underperformance Adjustment - WR - Real | F74: =IF( F73 > 0, F73 * (1 - F72), 0) -> 20.29916652 | G74: £m
E76: =E$70 -> Abstraction charges Outperformance Adjustment - WR - Real | F76: =F$70 -> 0 | G76: £m
E77: =E$74 -> Abstraction charges Underperformance Adjustment - WR - Real | F77: =F$74 -> 20.29916652 | G77: £m
E78: Active adjustment for abstraction charges uncertainty mechanism - WR - Real | F78: =IF(F76 <> 0, F76, F77) -> 20.29916652 | G78: £m
E80: =E43 -> Active adjustment for business rates uncertainty mechanism - WR - Real | F80: =F43 -> -0.2374919969 | G80: £m
E81: =E78 -> Active adjustment for abstraction charges uncertainty mechanism - WR - Real | F81: =F78 -> 20.29916652 | G81: £m
E82: Active adjustment for abstraction charges & business rates uncertainty mechanism - WR - Real | F82: =SUM(F80:F81) -> 20.06167452 | G82: £m
E84: =E82 -> Active adjustment for abstraction charges & business rates uncertainty mechanism - WR - Real | F84: =F82 -> 20.06167452 | G84: £m
E85: =InpActive!E$55 -> Weighted average PAYG rate - WR | F85: =InpActive!F$55 -> 0.548 | G85: =InpActive!G$55 -> %
E86: Revenue adjustment business rates and abstraction - WR - Real | F86: =F84 * $F$85 -> 10.99379764 | G86: £m
E88: =E$82 -> Active adjustment for abstraction charges & business rates uncertainty mechanism - WR - Real | F88: =F$82 -> 20.06167452 | G88: £m
E89: =InpActive!E$55 -> Weighted average PAYG rate - WR | F89: =InpActive!F$55 -> 0.548 | G89: =InpActive!G$55 -> %
E90: RCV adjustment business rates and abstraction - WR - Real | F90: =F88 * (1 - $F$89) -> 9.067876885 | G90: £m
A92: WATER NETWORK
C94: Uncertainty mechanism for business rates
D96: Profile total forecast business rates
E97: =InpActive!E$90 -> Business rates - Forecast - WN - Real | F97: =InpActive!F$90 -> 352.647297 | G97: =InpActive!G$90 -> £m
E98: =InpActive!E$79 -> Business Rates forecast profile - WN | F98: =InpActive!F$79 -> 0 | G98: =InpActive!G$79 -> % | H98: =InpActive!H$79 -> 0 | I98: =InpActive!I$79 -> 0 | J98: =InpActive!J$79 -> 0 | K98: =InpActive!K$79 -> 0.2 | L98: =InpActive!L$79 -> 0.2 | M98: =InpActive!M$79 -> 0.2 | N98: =InpActive!N$79 -> 0.2 | O98: =InpActive!O$79 -> 0.2 | P98: =InpActive!P$79 -> 0
E99: Business rates - Forecast Profiled - WN - Real | G99: £m | H99: =SUM(J99:P99) -> 352.647297 | J99: =J98 * $F97 -> 0 | K99: 70.5294594 | L99: 70.5294594 | M99: 70.5294594 | N99: 70.5294594 | O99: 70.5294594 | P99: 0
E101: =InpActive!E$93 -> Business rates - Actual - WN - Nominal | F101: =InpActive!F$93 -> 0 | G101: =InpActive!G$93 -> £m | H101: =InpActive!H$93 -> 0 | I101: =InpActive!I$93 -> 0 | J101: =InpActive!J$93 -> 0 | K101: =InpActive!K$93 -> 79.034 | L101: =InpActive!L$93 -> 49.743 | M101: =InpActive!M$93 -> 68 | N101: =InpActive!N$93 -> 77.24250706 | O101: =InpActive!O$93 -> 73.48792412 | P101: =InpActive!P$93 -> 0
E102: =Index!E$43 -> CPI(H): Fin year average - inflate from base year 2017-18 average - CALC | F102: =Index!F$43 -> 0 | G102: =Index!G$43 -> % | H102: =Index!H$43 -> 0 | I102: =Index!I$43 -> 0 | J102: =Index!J$43 -> 1.038621462 | K102: =Index!K$43 -> 1.04693747 | L102: =Index!L$43 -> 1.085399008 | M102: =Index!M$43 -> 1.180633296 | N102: =Index!N$43 -> 1.246121862 | O102: =Index!O$43 -> 1.286182632 | P102: =Index!P$43 -> 1.328090069
E103: Business rates - Outturn - WN - Real | G103: £m | J103: =J101 / J102 -> 0 | K103: =K101 / K102 -> 75.49065944 | L103: =L101 / L102 -> 45.82922926 | M103: =M101 / M102 -> 57.59620725 | N103: =N101 / N102 -> 61.98631887 | O103: =O101 / O102 -> 57.13646124 | P103: =P101 / P102 -> 0
D105: Variance to forecast business rates
E106: =E$103 -> Business rates - Outturn - WN - Real | F106: =F$103 -> 0 | G106: £m | H106: 0 | I106: 0 | J106: 0 | K106: 75.49065944 | L106: 45.82922926 | M106: 57.59620725 | N106: 61.98631887 | O106: 57.13646124 | P106: 0
E107: =E$99 -> Business rates - Forecast Profiled - WN - Real | F107: 0 | G107: £m | H107: 352.647297 | I107: 0 | J107: 0 | K107: 70.5294594 | L107: 70.5294594 | M107: 70.5294594 | N107: 70.5294594 | O107: 70.5294594 | P107: 0
E108: Variance between forecast and outturn business rates - WN - Real | G108: £m | H108: =SUM(J108:P108) -> -54.60842094 | J108: =J106 - J107 -> 0 | K108: 4.961200036 | L108: -24.70023014 | M108: -12.93325215 | N108: -8.543140531 | O108: -13.39299816 | P108: 0
D110: Variance to forecast business rates – Time adjusted
E111: =E$108 -> Variance between forecast and outturn business rates - WN - Real | F111: 0 | G111: £m | H111: -54.60842094 | I111: 0 | J111: 0 | K111: 4.961200036 | L111: -24.70023014 | M111: -12.93325215 | N111: -8.543140531 | O111: -13.39299816 | P111: 0
E112: ='Cost sharing calculations'!E$304 -> Time value of money factor - WN | F112: ='Cost sharing calculations'!F$304 -> 0 | G112: ='Cost sharing calculations'!G$304 -> Factor | H112: ='Cost sharing calculations'!H$304 -> 0 | I112: ='Cost sharing calculations'!I$304 -> 0 | J112: ='Cost sharing calculations'!J$304 -> 1 | K112: ='Cost sharing calculations'!K$304 -> 1.122016155 | L112: ='Cost sharing calculations'!L$304 -> 1.090182817 | M112: ='Cost sharing calculations'!M$304 -> 1.05925264 | N112: ='Cost sharing calculations'!N$304 -> 1.0292 | O112: ='Cost sharing calculations'!O$304 -> 1 | P112: ='Cost sharing calculations'!P$304 -> 1
E113: Variance on business rates time value adjusted- WN - Real | G113: £m | H113: =SUM(J113:P113) -> -57.24639976 | J113: =J111 * J112 -> 0 | K113: 5.56654659 | L113: -26.92776648 | M113: -13.69958149 | N113: -8.792600235 | O113: -13.39299816 | P113: 0
E114: Adjustment for business rates for cost sharing - WN - Real | F114: =H$113 -> -57.24639976 | G114: £m
D116: Under / Overperformance business rates
E117: =InpActive!E$280 -> Cost sharing rates Business rates - Overperformance | F117: =InpActive!F$280 -> 0.25 | G117: =InpActive!G$280 -> %
E118: =E$114 -> Adjustment for business rates for cost sharing - WN - Real | F118: =F$114 -> -57.24639976 | G118: =G$114 -> £m
E119: Business Rates Outperformance Adjustment - WN - Real | F119: =IF( F118 < 0, $F$118 * (1 - F117), 0) -> -42.93479982 | G119: £m
E121: =InpActive!E$281 -> Cost sharing rates Business rates - Underperformance | F121: =InpActive!F$281 -> 0.25 | G121: =InpActive!G$281 -> %
E122: =E$114 -> Adjustment for business rates for cost sharing - WN - Real | F122: =F$114 -> -57.24639976 | G122: =G$114 -> £m
E123: Business Rates Underperformance Adjustment - WN - Real | F123: =IF( F122 > 0, $F$122 * (1 -F121), 0) -> 0 | G123: £m
E125: =E$119 -> Business Rates Outperformance Adjustment - WN - Real | F125: =F$119 -> -42.93479982 | G125: =G$119 -> £m
E126: =E$123 -> Business Rates Underperformance Adjustment - WN - Real | F126: =F$123 -> 0 | G126: =G$123 -> £m
E127: Active adjustment for business rates uncertainty mechanism - WN - Real | F127: =IF(F125 <> 0, F125, F126) -> -42.93479982 | G127: £m
C129: Uncertainty mechanism for Abstraction charges
D131: Profile total forecast and abstraction charges
E132: =InpActive!E$91 -> Abstraction charges - Forecast - WN - Real | F132: =InpActive!F$91 -> 0.3833056598 | G132: =InpActive!G$91 -> £m
E133: =InpActive!E$80 -> Abstraction Charges forecast profile - WN | F133: =InpActive!F$80 -> 0 | G133: =InpActive!G$80 -> % | H133: =InpActive!H$80 -> 0 | I133: =InpActive!I$80 -> 0 | J133: =InpActive!J$80 -> 0 | K133: =InpActive!K$80 -> 0.2 | L133: =InpActive!L$80 -> 0.2 | M133: =InpActive!M$80 -> 0.2 | N133: =InpActive!N$80 -> 0.2 | O133: =InpActive!O$80 -> 0.2 | P133: =InpActive!P$80 -> 0
E134: Abstraction charges - Forecast Profiled - WN - Real | G134: £m | H134: =SUM(J134:P134) -> 0.3833056598 | J134: =J133 * $F132 -> 0 | K134: 0.07666113197 | L134: 0.07666113197 | M134: 0.07666113197 | N134: 0.07666113197 | O134: 0.07666113197 | P134: 0
E136: =InpActive!E94 -> Abstraction charges - Actual - WN - Nominal | F136: =InpActive!F94 -> 0 | G136: =InpActive!G94 -> £m | H136: =InpActive!H94 -> 0 | I136: =InpActive!I94 -> 0 | J136: =InpActive!J94 -> 0 | K136: =InpActive!K94 -> 0 | L136: =InpActive!L94 -> 0 | M136: =InpActive!M94 -> 0 | N136: =InpActive!N94 -> 0 | O136: =InpActive!O94 -> 0 | P136: =InpActive!P94 -> 0
E137: =Index!E$43 -> CPI(H): Fin year average - inflate from base year 2017-18 average - CALC | F137: =Index!F$43 -> 0 | G137: =Index!G$43 -> % | H137: =Index!H$43 -> 0 | I137: =Index!I$43 -> 0 | J137: =Index!J$43 -> 1.038621462 | K137: =Index!K$43 -> 1.04693747 | L137: =Index!L$43 -> 1.085399008 | M137: =Index!M$43 -> 1.180633296 | N137: =Index!N$43 -> 1.246121862 | O137: =Index!O$43 -> 1.286182632 | P137: =Index!P$43 -> 1.328090069
E138: Abstraction charges - Outturn - WN - Real | G138: £m | J138: =J136 / J137 -> 0 | K138: =K136 / K137 -> 0 | L138: =L136 / L137 -> 0 | M138: 0 | N138: 0 | O138: 0 | P138: 0
D140: Variance to forecast abstraction charges
E141: =E$138 -> Abstraction charges - Outturn - WN - Real | F141: =F$138 -> 0 | G141: £m | H141: 0 | I141: 0 | J141: 0 | K141: 0 | L141: 0 | M141: 0 | N141: 0 | O141: 0 | P141: 0
E142: =E$134 -> Abstraction charges - Forecast Profiled - WN - Real | F142: =F$134 -> 0 | G142: £m | H142: 0.3833056598 | I142: 0 | J142: 0 | K142: 0.07666113197 | L142: 0.07666113197 | M142: 0.07666113197 | N142: 0.07666113197 | O142: 0.07666113197 | P142: 0
E143: Variance between forecast and outturn abstraction charges - WR - Real | G143: £m | H143: =SUM(J143:P143) -> -0.3833056598 | J143: =J141 - J142 -> 0 | K143: -0.07666113197 | L143: -0.07666113197 | M143: -0.07666113197 | N143: -0.07666113197 | O143: -0.07666113197 | P143: 0
D145: Variance to forecast abstraction charges – Time adjusted
E146: =E$143 -> Variance between forecast and outturn abstraction charges - WR - Real | F146: =F$143 -> 0 | G146: £m | H146: -0.3833056598 | I146: 0 | J146: 0 | K146: -0.07666113197 | L146: -0.07666113197 | M146: -0.07666113197 | N146: -0.07666113197 | O146: -0.07666113197 | P146: 0
E147: ='Cost sharing calculations'!E$304 -> Time value of money factor - WN | F147: ='Cost sharing calculations'!F$304 -> 0 | G147: ='Cost sharing calculations'!G$304 -> Factor | H147: ='Cost sharing calculations'!H$304 -> 0 | I147: ='Cost sharing calculations'!I$304 -> 0 | J147: ='Cost sharing calculations'!J$304 -> 1 | K147: ='Cost sharing calculations'!K$304 -> 1.122016155 | L147: ='Cost sharing calculations'!L$304 -> 1.090182817 | M147: ='Cost sharing calculations'!M$304 -> 1.05925264 | N147: ='Cost sharing calculations'!N$304 -> 1.0292 | O147: ='Cost sharing calculations'!O$304 -> 1 | P147: ='Cost sharing calculations'!P$304 -> 1
E148: Variance on abstraction charges time value adjusted- WN - Real | G148: £m | H148: =SUM(J148:P148) -> -0.4063539528 | J148: =J146 * J147 -> 0 | K148: -0.08601502855 | L148: -0.08357464881 | M148: -0.08120350642 | N148: -0.07889963702 | O148: -0.07666113197 | P148: 0
E149: Adjustment for abstraction charges - WN - Real | F149: =H$148 -> -0.4063539528 | G149: £m
D151: Under / Overperformance abstraction charges
E152: =InpActive!E$282 -> Cost sharing rates Abstraction - Overperformance | F152: =InpActive!F$282 -> 0.25 | G152: =InpActive!G$282 -> %
E153: =E$149 -> Adjustment for abstraction charges - WN - Real | F153: =F$149 -> -0.4063539528 | G153: £m
E154: Abstraction charges Outperformance Adjustment - WN - Real | F154: =IF( F153 < 0, $F$153 * (1 - F152), 0) -> -0.3047654646 | G154: £m
E156: =InpActive!E$283 -> Cost sharing rates Abstraction - Underperformance | F156: =InpActive!F$283 -> 0.25 | G156: =InpActive!G$283 -> %
E157: =E$149 -> Adjustment for abstraction charges - WN - Real | F157: =F$149 -> -0.4063539528 | G157: £m
E158: Abstraction charges Underperformance Adjustment - WN - Real | F158: =IF( F157 > 0, $F$157 * (1 - F156), 0) -> 0 | G158: £m
E160: =E$154 -> Abstraction charges Outperformance Adjustment - WN - Real | F160: =F$154 -> -0.3047654646 | G160: £m
E161: =E$158 -> Abstraction charges Underperformance Adjustment - WN - Real | F161: =F$158 -> 0 | G161: £m
E162: Active adjustment for abstraction charges uncertainty mechanism - WN - Real | F162: =IF(F160 <> 0, F160, F161) -> -0.3047654646 | G162: £m
E164: =E127 -> Active adjustment for business rates uncertainty mechanism - WN - Real | F164: =F127 -> -42.93479982 | G164: £m
E165: =E162 -> Active adjustment for abstraction charges uncertainty mechanism - WN - Real | F165: =F162 -> -0.3047654646 | G165: £m
E166: Active adjustment for abstraction charges & business rates uncertainty mechanism - WR - Real | F166: =SUM(F164:F165) -> -43.23956529 | G166: £m
E168: =E$166 -> Active adjustment for abstraction charges & business rates uncertainty mechanism - WR - Real | F168: =F$166 -> -43.23956529 | G168: £m
E169: =InpActive!E$96 -> Weighted average PAYG rate - WN | F169: =InpActive!F$96 -> 0.438 | G169: =InpActive!G$96 -> %
E170: Revenue adjustment business rates and abstraction - WN - Real | F170: =F168 * $F$169 -> -18.9389296 | G170: £m
E172: =E$166 -> Active adjustment for abstraction charges & business rates uncertainty mechanism - WR - Real | F172: =F$166 -> -43.23956529 | G172: £m
E173: =InpActive!E$96 -> Weighted average PAYG rate - WN | F173: =InpActive!F$96 -> 0.438 | G173: =InpActive!G$96 -> %
E174: RCV adjustment business rates and abstraction - WN - Real | F174: =F172 * (1 - $F$173) -> -24.30063569 | G174: £m
A176: WASTEWATER NETWORK
C178: Uncertainty mechanism for business rates
D180: Profile total forecast business rates
E181: =InpActive!E$131 -> Business rates - Forecast - WWN - Real | F181: =InpActive!F$131 -> 131.2828126 | G181: =InpActive!G$131 -> £m
E182: =InpActive!E$121 -> Business Rates forecast profile - WWN | F182: =InpActive!F$121 -> 0 | G182: =InpActive!G$121 -> % | H182: =InpActive!H$121 -> 0 | I182: =InpActive!I$121 -> 0 | J182: =InpActive!J$121 -> 0 | K182: =InpActive!K$121 -> 0.2 | L182: =InpActive!L$121 -> 0.2 | M182: =InpActive!M$121 -> 0.2 | N182: =InpActive!N$121 -> 0.2 | O182: =InpActive!O$121 -> 0.2 | P182: =InpActive!P$121 -> 0
E183: Business rates - Forecast Profiled - WWN - Real | G183: £m | H183: =SUM(J183:P183) -> 131.2828126 | J183: =J182 * $F181 -> 0 | K183: 26.25656252 | L183: 26.25656252 | M183: 26.25656252 | N183: 26.25656252 | O183: 26.25656252 | P183: 0
E185: =InpActive!E$133 -> Business rates - Actual - WWN - Nominal | F185: =InpActive!F$133 -> 0 | G185: =InpActive!G$133 -> £m | H185: =InpActive!H$133 -> 0 | I185: =InpActive!I$133 -> 0 | J185: =InpActive!J$133 -> 0 | K185: =InpActive!K$133 -> 37.65 | L185: =InpActive!L$133 -> 25.771 | M185: =InpActive!M$133 -> 43.67 | N185: =InpActive!N$133 -> 46.58483734 | O185: =InpActive!O$133 -> 49.87030575 | P185: =InpActive!P$133 -> 0
E186: =Index!E$43 -> CPI(H): Fin year average - inflate from base year 2017-18 average - CALC | F186: =Index!F$43 -> 0 | G186: =Index!G$43 -> % | H186: =Index!H$43 -> 0 | I186: =Index!I$43 -> 0 | J186: =Index!J$43 -> 1.038621462 | K186: =Index!K$43 -> 1.04693747 | L186: =Index!L$43 -> 1.085399008 | M186: =Index!M$43 -> 1.180633296 | N186: =Index!N$43 -> 1.246121862 | O186: =Index!O$43 -> 1.286182632 | P186: =Index!P$43 -> 1.328090069
E187: Business rates - Outturn - WWN - Real | G187: £m | J187: =J185 / J186 -> 0 | K187: =K185 / K186 -> 35.96203315 | L187: =L185 / L186 -> 23.74334212 | M187: =M185 / M186 -> 36.9886231 | N187: =N185 / N186 -> 37.38385368 | O187: =O185 / O186 -> 38.77389143 | P187: =P185 / P186 -> 0
D189: Variance to forecast business rates
E190: =E$187 -> Business rates - Outturn - WWN - Real | F190: =F$187 -> 0 | G190: £m | H190: 0 | I190: 0 | J190: 0 | K190: 35.96203315 | L190: 23.74334212 | M190: 36.9886231 | N190: 37.38385368 | O190: 38.77389143 | P190: 0
E191: =E$183 -> Business rates - Forecast Profiled - WWN - Real | F191: =F$183 -> 0 | G191: £m | H191: 131.2828126 | I191: 0 | J191: 0 | K191: 26.25656252 | L191: 26.25656252 | M191: 26.25656252 | N191: 26.25656252 | O191: 26.25656252 | P191: 0
E192: Variance between forecast and outturn business rates - WWN - Real | G192: £m | H192: =SUM(J192:P192) -> 41.56893089 | J192: =J190 - J191 -> 0 | K192: 9.70547063 | L192: -2.513220393 | M192: 10.73206058 | N192: 11.12729117 | O192: 12.51732891 | P192: 0
D194: Variance to forecast business rates - Time adjusted
E195: =E$192 -> Variance between forecast and outturn business rates - WWN - Real | F195: 0 | G195: £m | H195: 41.56893089 | I195: 0 | J195: 0 | K195: 9.70547063 | L195: -2.513220393 | M195: 10.73206058 | N195: 11.12729117 | O195: 12.51732891 | P195: 0
E196: ='Cost sharing calculations'!E$473 -> Time value of money factor - WWN | F196: ='Cost sharing calculations'!F$473 -> 0 | G196: ='Cost sharing calculations'!G$473 -> Factor | H196: ='Cost sharing calculations'!H$473 -> 0 | I196: ='Cost sharing calculations'!I$473 -> 0 | J196: ='Cost sharing calculations'!J$473 -> 1 | K196: ='Cost sharing calculations'!K$473 -> 1.122016155 | L196: ='Cost sharing calculations'!L$473 -> 1.090182817 | M196: ='Cost sharing calculations'!M$473 -> 1.05925264 | N196: ='Cost sharing calculations'!N$473 -> 1.0292 | O196: ='Cost sharing calculations'!O$473 -> 1 | P196: ='Cost sharing calculations'!P$473 -> 1
E197: Variance on business rates time value adjusted- WWN - Real | G197: £m | H197: =SUM(J197:P197) -> 43.48732564 | J197: =J195 * J196 -> 0 | K197: 10.88969484 | L197: -2.739869688 | M197: 11.3679635 | N197: 11.45220807 | O197: 12.51732891 | P197: 0
E198: Adjustment for business rates for cost sharing - WWN - Real | F198: =H$197 -> 43.48732564 | G198: £m
D200: Under / Overperformance business rates
E201: =InpActive!E$280 -> Cost sharing rates Business rates - Overperformance | F201: =InpActive!F$280 -> 0.25 | G201: =InpActive!G$280 -> %
E202: =E$198 -> Adjustment for business rates for cost sharing - WWN - Real | F202: =F$198 -> 43.48732564 | G202: =G$198 -> £m
E203: Business Rates Outperformance Adjustment - WWN - Real | F203: =IF( F202 < 0, $F$202 * (1 - F201), 0) -> 0 | G203: £m
E205: =InpActive!E$281 -> Cost sharing rates Business rates - Underperformance | F205: =InpActive!F$281 -> 0.25 | G205: =InpActive!G$281 -> %
E206: =E$198 -> Adjustment for business rates for cost sharing - WWN - Real | F206: =F$198 -> 43.48732564 | G206: =G$198 -> £m
E207: Business Rates Underperformance Adjustment - WWN - Real | F207: =IF( F206 > 0, $F$206 * (1 - F205), 0) -> 32.61549423 | G207: £m
E209: =E$203 -> Business Rates Outperformance Adjustment - WWN - Real | F209: =F$203 -> 0 | G209: =G$203 -> £m
E210: =E$207 -> Business Rates Underperformance Adjustment - WWN - Real | F210: =F$207 -> 32.61549423 | G210: =G$207 -> £m
E211: Active adjustment for business rates uncertainty mechanism - WWN - Real | F211: =IF(F209 <> 0, F209, F210) -> 32.61549423 | G211: £m
E213: =E$211 -> Active adjustment for business rates uncertainty mechanism - WWN - Real | F213: =F$211 -> 32.61549423 | G213: £m
E214: =InpActive!E$135 -> Weighted average PAYG rate - WWN | F214: =InpActive!F$135 -> 0.473 | G214: =InpActive!G$135 -> %
E215: Revenue adjustment business rates - WWN - Real | F215: =F213 * $F$214 -> 15.42712877 | G215: £m
E217: =E$211 -> Active adjustment for business rates uncertainty mechanism - WWN - Real | F217: =F$211 -> 32.61549423 | G217: £m
E218: =InpActive!E$135 -> Weighted average PAYG rate - WWN | F218: =InpActive!F$135 -> 0.473 | G218: =InpActive!G$135 -> %
E219: RCV adjustment business rates - WWN - Real | F219: =F217 * (1 - $F$218) -> 17.18836546 | G219: £m
A221: BIORESOURCES
C223: Uncertainty mechanism for business rates
D225: Profile total forecast business rates
E226: =InpActive!E$156 -> Business rates - Forecast - BIO - Real | F226: =InpActive!F$156 -> 45.34036725 | G226: =InpActive!G$156 -> £m
E227: =InpActive!E$160 -> Business Rates forecast profile - BIO | F227: =InpActive!F$160 -> 0 | G227: =InpActive!G$160 -> % | H227: =InpActive!H$160 -> 0 | I227: =InpActive!I$160 -> 0 | J227: =InpActive!J$160 -> 0 | K227: =InpActive!K$160 -> 0.2 | L227: =InpActive!L$160 -> 0.2 | M227: =InpActive!M$160 -> 0.2 | N227: =InpActive!N$160 -> 0.2 | O227: =InpActive!O$160 -> 0.2 | P227: =InpActive!P$160 -> 0
E228: Business rates - Forecast Profiled - BIO - Real | G228: £m | H228: =SUM(J228:P228) -> 45.34036725 | J228: =J227 * $F226 -> 0 | K228: 9.06807345 | L228: 9.06807345 | M228: 9.06807345 | N228: 9.06807345 | O228: 9.06807345 | P228: 0
E230: =InpActive!E$158 -> Business rates - Actual - BIO - Nominal | F230: =InpActive!F$158 -> 0 | G230: =InpActive!G$158 -> £m | H230: =InpActive!H$158 -> 0 | I230: =InpActive!I$158 -> 0 | J230: =InpActive!J$158 -> 0 | K230: =InpActive!K$158 -> 0.477 | L230: =InpActive!L$158 -> 6.335 | M230: =InpActive!M$158 -> 0.499 | N230: =InpActive!N$158 -> 0.5147163885 | O230: =InpActive!O$158 -> 0.5880153959 | P230: =InpActive!P$158 -> 0
E231: =Index!E$43 -> CPI(H): Fin year average - inflate from base year 2017-18 average - CALC | F231: =Index!F$43 -> 0 | G231: =Index!G$43 -> % | H231: =Index!H$43 -> 0 | I231: =Index!I$43 -> 0 | J231: =Index!J$43 -> 1.038621462 | K231: =Index!K$43 -> 1.04693747 | L231: =Index!L$43 -> 1.085399008 | M231: =Index!M$43 -> 1.180633296 | N231: =Index!N$43 -> 1.246121862 | O231: =Index!O$43 -> 1.286182632 | P231: =Index!P$43 -> 1.328090069
E232: Business rates - Outturn - BIO - Real | G232: £m | J232: =J230 / J231 -> 0 | K232: =K230 / K231 -> 0.4556146032 | L232: =L230 / L231 -> 5.836563283 | M232: =M230 / M231 -> 0.4226545208 | N232: =N230 / N231 -> 0.4130546172 | O232: =O230 / O231 -> 0.4571787716 | P232: =P230 / P231 -> 0
D234: Variance to forecast business rates
E235: =E$232 -> Business rates - Outturn - BIO - Real | F235: =F$232 -> 0 | G235: £m | H235: 0 | I235: 0 | J235: 0 | K235: 0.4556146032 | L235: 5.836563283 | M235: 0.4226545208 | N235: 0.4130546172 | O235: 0.4571787716 | P235: 0
E236: =E$228 -> Business rates - Forecast Profiled - BIO - Real | F236: =F$228 -> 0 | G236: £m | H236: 45.34036725 | I236: 0 | J236: 0 | K236: 9.06807345 | L236: 9.06807345 | M236: 9.06807345 | N236: 9.06807345 | O236: 9.06807345 | P236: 0
E237: Variance between forecast and outturn business rates - BIO - Real | G237: £m | H237: =SUM(J237:P237) -> -37.75530146 | J237: =J235 - J236 -> 0 | K237: -8.612458847 | L237: -3.231510168 | M237: -8.64541893 | N237: -8.655018833 | O237: -8.610894679 | P237: 0
D239: Variance to forecast business rates - Time adjusted
E240: =E$237 -> Variance between forecast and outturn business rates - BIO - Real | F240: 0 | G240: £m | H240: -37.75530146 | I240: 0 | J240: 0 | K240: -8.612458847 | L240: -3.231510168 | M240: -8.64541893 | N240: -8.655018833 | O240: -8.610894679 | P240: 0
E241: =Bioresources!E$49 -> Time value of money factor - BIO | F241: =Bioresources!F$49 -> 0 | G241: =Bioresources!G$49 -> Factor | H241: =Bioresources!H$49 -> 0 | I241: =Bioresources!I$49 -> 0 | J241: =Bioresources!J$49 -> 1 | K241: =Bioresources!K$49 -> 1.122016155 | L241: =Bioresources!L$49 -> 1.090182817 | M241: =Bioresources!M$49 -> 1.05925264 | N241: =Bioresources!N$49 -> 1.0292 | O241: =Bioresources!O$49 -> 1 | P241: =Bioresources!P$49 -> 1
E242: Variance on business rates time value adjusted- BIO - Real | G242: £m | H242: =SUM(J242:P242) -> -39.86257771 | J242: =J240 * J241 -> 0 | K242: -9.663317964 | L242: -3.522936858 | M242: -9.157682825 | N242: -8.907745383 | O242: -8.610894679 | P242: 0
E243: Adjustment for business rates for cost sharing - BIO - Real | F243: =H$242 -> -39.86257771 | G243: £m
D245: Under / Overperformance business rates
E246: =InpActive!E$280 -> Cost sharing rates Business rates - Overperformance | F246: =InpActive!F$280 -> 0.25 | G246: =InpActive!G$280 -> %
E247: =E$243 -> Adjustment for business rates for cost sharing - BIO - Real | F247: =F$243 -> -39.86257771 | G247: =G$243 -> £m
E248: Business Rates Outperformance Adjustment - BIO - Real | F248: =IF( F247 < 0, $F$247 * (1 - F246), 0) -> -29.89693328 | G248: £m
E250: =InpActive!E$281 -> Cost sharing rates Business rates - Underperformance | F250: =InpActive!F$281 -> 0.25 | G250: =InpActive!G$281 -> %
E251: =E$243 -> Adjustment for business rates for cost sharing - BIO - Real | F251: =F$243 -> -39.86257771 | G251: =G$243 -> £m
E252: Business Rates Underperformance Adjustment - BIO - Real | F252: =IF( F251 > 0, $F$251 * (1 - F250), 0) -> 0 | G252: £m
E254: =E$248 -> Business Rates Outperformance Adjustment - BIO - Real | F254: =F$248 -> -29.89693328 | G254: £m
E255: =E$252 -> Business Rates Underperformance Adjustment - BIO - Real | F255: =F$252 -> 0 | G255: £m
E256: Active adjustment for business rates uncertainty mechanism - BIO - Real | F256: =IF(F254 <> 0, F254, F255) -> -29.89693328 | G256: £m
E258: =E$256 -> Active adjustment for business rates uncertainty mechanism - BIO - Real | F258: =F$256 -> -29.89693328 | G258: £m
E259: =InpActive!E$162 -> Weighted average PAYG rate - BIO | F259: =InpActive!F$162 -> 0.385 | G259: =InpActive!G$162 -> %
E260: Revenue adjustment business rates - BIO - Real | F260: =F258 * $F$259 -> -11.51031931 | G260: £m
E262: =E$256 -> Active adjustment for business rates uncertainty mechanism - BIO - Real | F262: =F$256 -> -29.89693328 | G262: =G$256 -> £m
... 3 more rows

Sheet Bioresources
A1: =RIGHT(CELL("filename", $A$1), LEN(CELL("filename", $A$1)) - SEARCH("]", CELL("filename", $A$1))) -> 
E2: =Time!E$22 -> Model Period BEG | J2: =Time!J$22 -> 2019-04-01 | K2: =Time!K$22 -> 2020-04-01 | L2: =Time!L$22 -> 2021-04-01 | M2: =Time!M$22 -> 2022-04-01 | N2: =Time!N$22 -> 2023-04-01 | O2: =Time!O$22 -> 2024-04-01 | P2: =Time!P$22 -> 2025-04-01
E3: =Time!E$23 -> Model Period END | F3: =Check!F$8 -> 0 | G3: Error chks | J3: =Time!J$23 -> 2020-03-31 | K3: =Time!K$23 -> 2021-03-31 | L3: =Time!L$23 -> 2022-03-31 | M3: =Time!M$23 -> 2023-03-31 | N3: =Time!N$23 -> 2024-03-31 | O3: =Time!O$23 -> 2025-03-31 | P3: =Time!P$23 -> 2026-03-31
E4: =Time!E$59 -> Pre Forecast vs Forecast | J4: =Time!J$59 -> Pre Fcst | K4: =Time!K$59 -> Forecast | L4: =Time!L$59 -> Forecast | M4: =Time!M$59 -> Forecast | N4: =Time!N$59 -> Forecast | O4: =Time!O$59 -> Forecast | P4: =Time!P$59 -> Post-Fcst
E5: =Time!E$101 -> Financial Year Ending | J5: =Time!J$101 -> 2020 | K5: =Time!K$101 -> 2021 | L5: =Time!L$101 -> 2022 | M5: =Time!M$101 -> 2023 | N5: =Time!N$101 -> 2024 | O5: =Time!O$101 -> 2025 | P5: =Time!P$101 -> 2026
E6: =Time!E$11 -> Model column counter | F6: Constant | G6: Unit | H6: Total | J6: =Time!J$11 -> 1 | K6: =Time!K$11 -> 2 | L6: =Time!L$11 -> 3 | M6: =Time!M$11 -> 4 | N6: =Time!N$11 -> 5 | O6: =Time!O$11 -> 6 | P6: =Time!P$11 -> 7
A8: BIORESOURCES
C10: Adjustment For Wage Growth
D12: Totex for wage adjustment
E13: =InpActive!E$150 -> Base Costs - BIO - Real | F13: =InpActive!F$150 -> 583.3300438 | G13: =InpActive!G$150 -> £m
E14: =InpActive!E$151 -> WINEP / NEP ~ In-the-Round - BIO - Real | F14: =InpActive!F$151 -> 0 | G14: =InpActive!G$151 -> £m
E15: Totex available for wage indexation adjustment - BIO - Real | F15: =SUM(F13:F14) -> 583.3300438 | G15: £m
D17: Profile for totex for wage adjustment
E18: =InpActive!E$153 -> Opex Split Profile - Base costs - BIO | F18: =InpActive!F$153 -> 0 | G18: =InpActive!G$153 -> % | H18: =InpActive!H$153 -> 0 | I18: =InpActive!I$153 -> 0 | J18: =InpActive!J$153 -> 0 | K18: =InpActive!K$153 -> 0.07089917301 | L18: =InpActive!L$153 -> 0.0746919429 | M18: =InpActive!M$153 -> 0.0765297189 | N18: =InpActive!N$153 -> 0.07288439705 | O18: =InpActive!O$153 -> 0.07297641713 | P18: =InpActive!P$153 -> 0
E19: =InpActive!E$154 -> Capex Split Profile - Base costs - BIO | F19: =InpActive!F$154 -> 0 | G19: =InpActive!G$154 -> % | H19: =InpActive!H$154 -> 0 | I19: =InpActive!I$154 -> 0 | J19: =InpActive!J$154 -> 0 | K19: =InpActive!K$154 -> 0.08513374019 | L19: =InpActive!L$154 -> 0.1532476868 | M19: =InpActive!M$154 -> 0.1567105021 | N19: =InpActive!N$154 -> 0.1327111842 | O19: =InpActive!O$154 -> 0.1042152377 | P19: =InpActive!P$154 -> 0
E20: Totex profile - BIO | G20: % | H20: =SUM(J20:P20) -> 1 | J20: =SUM(J18:J19) -> 0 | K20: 0.1560329132 | L20: 0.2279396297 | M20: 0.233240221 | N20: 0.2055955812 | O20: 0.1771916548 | P20: 0
E21: Totex profile - 5 year percentage - BIO | F21: =H$20 -> 1 | G21: %
E23: =E$21 -> Totex profile - 5 year percentage - BIO | F23: =F$21 -> 1 | G23: =G$21 -> %
E24: WWN Totex profile 100% check | F24: =IF(OR($F$23 = 1, F23 = 0), 0, 1) -> 0 | G24: Check
E26: =E$15 -> Totex available for wage indexation adjustment - BIO - Real | F26: =F$15 -> 583.3300438 | G26: =G$15 -> £m
E27: =Time!E$54 -> Forecast Period Flag | F27: =Time!F$54 -> 0 | G27: =Time!G$54 -> flag | H27: =Time!H$54 -> 5 | I27: =Time!I$54 -> 0 | J27: =Time!J$54 -> 0 | K27: =Time!K$54 -> 1 | L27: =Time!L$54 -> 1 | M27: =Time!M$54 -> 1 | N27: =Time!N$54 -> 1 | O27: =Time!O$54 -> 1 | P27: =Time!P$54 -> 0
E28: =E$20 -> Totex profile - BIO | F28: 0 | G28: % | H28: 1 | I28: 0 | J28: 0 | K28: 0.1560329132 | L28: 0.2279396297 | M28: 0.233240221 | N28: 0.2055955812 | O28: 0.1771916548 | P28: 0
E29: Profiled Totex available for wage indexation adjustment - BIO - Real | G29: £m | H29: =SUM(J29:P29) -> 583.3300438 | J29: =IF(J27 = 1, J28 * $F26, 0) -> 0 | K29: 91.01868608 | L29: 132.9640342 | M29: 136.0560283 | N29: 119.9300794 | O29: 103.3612158 | P29: 0
D31: Totex applicable for wage adjustment by year
E32: =InpActive!E$259 -> Percentage totex linked to wage growth - BIO | F32: =InpActive!F$259 -> 0.386 | G32: =InpActive!G$259 -> %
E33: =E29 -> Profiled Totex available for wage indexation adjustment - BIO - Real | F33: 0 | G33: £m | H33: 583.3300438 | I33: 0 | J33: 0 | K33: 91.01868608 | L33: 132.9640342 | M33: 136.0560283 | N33: 119.9300794 | O33: 103.3612158 | P33: 0
E34: Profiled Net totex available for wage adj - BIO - Real | G34: £m | H34: =SUM(J34:P34) -> 225.1653969 | J34: =J33 * $F32 -> 0 | K34: 35.13321283 | L34: 51.32411719 | M34: 52.51762694 | N34: 46.29301065 | O34: 39.89742929 | P34: 0
D36: Adjustment factor for wage linked totex
E37: =Time!E$54 -> Forecast Period Flag | F37: =Time!F$54 -> 0 | G37: =Time!G$54 -> flag | H37: =Time!H$54 -> 5 | I37: =Time!I$54 -> 0 | J37: =Time!J$54 -> 0 | K37: =Time!K$54 -> 1 | L37: =Time!L$54 -> 1 | M37: =Time!M$54 -> 1 | N37: =Time!N$54 -> 1 | O37: =Time!O$54 -> 1 | P37: =Time!P$54 -> 0
E38: =E$34 -> Profiled Net totex available for wage adj - BIO - Real | F38: 0 | G38: £m | H38: 225.1653969 | I38: 0 | J38: 0 | K38: 35.13321283 | L38: 51.32411719 | M38: 52.51762694 | N38: 46.29301065 | O38: 39.89742929 | P38: 0
E39: ='Cost sharing calculations'!E$26 -> Real adjustment factor for wages | F39: ='Cost sharing calculations'!F$26 -> 0 | G39: ='Cost sharing calculations'!G$26 -> % | H39: ='Cost sharing calculations'!H$26 -> 0 | I39: ='Cost sharing calculations'!I$26 -> 0 | J39: ='Cost sharing calculations'!J$26 -> 0 | K39: ='Cost sharing calculations'!K$26 -> 1.008871737 | L39: ='Cost sharing calculations'!L$26 -> 0.9954600068 | M39: ='Cost sharing calculations'!M$26 -> 0.9810824548 | N39: ='Cost sharing calculations'!N$26 -> 0.970281077 | O39: ='Cost sharing calculations'!O$26 -> 0.970281077 | P39: ='Cost sharing calculations'!P$26 -> 0
E40: Profiled adjustment wage related totex - BIO - Real | G40: £m | H40: =SUM(J40:P40) -> 221.6890867 | J40: =IF(J37 = 1, J38 * J39, 0) -> 0 | K40: 35.44490544 | L40: 51.09110604 | M40: 51.52412236 | N40: 44.91723223 | O40: 38.71172066 | P40: 0
D42: Variance to forecast wage linked totex
E43: =E$40 -> Profiled adjustment wage related totex - BIO - Real | F43: 0 | G43: £m | H43: 221.6890867 | I43: 0 | J43: 0 | K43: 35.44490544 | L43: 51.09110604 | M43: 51.52412236 | N43: 44.91723223 | O43: 38.71172066 | P43: 0
E44: =E$34 -> Profiled Net totex available for wage adj - BIO - Real | F44: 0 | G44: £m | H44: 225.1653969 | I44: 0 | J44: 0 | K44: 35.13321283 | L44: 51.32411719 | M44: 52.51762694 | N44: 46.29301065 | O44: 39.89742929 | P44: 0
E45: Variance to forecast totex for wage adjustment- BIO | G45: £m | H45: =SUM(J45:P45) -> -3.47631016 | J45: =J43 - J44 -> 0 | K45: 0.3116926121 | L45: -0.2330111452 | M45: -0.9935045807 | N45: -1.375778418 | O45: -1.185708628 | P45: 0
E47: =InpActive!E$288 -> Financing cost index | F47: =InpActive!F$288 -> 0 | G47: =InpActive!G$288 -> Index | H47: =InpActive!H$288 -> 0 | I47: =InpActive!I$288 -> 0 | J47: =InpActive!J$288 -> 0 | K47: =InpActive!K$288 -> 4 | L47: =InpActive!L$288 -> 3 | M47: =InpActive!M$288 -> 2 | N47: =InpActive!N$288 -> 1 | O47: =InpActive!O$288 -> 0 | P47: =InpActive!P$288 -> 0
E48: =InpActive!E$293 -> Real WACC CPIH Deflated - BIO | F48: =InpActive!F$293 -> 0.0292 | G48: =InpActive!G$293 -> %
E49: Time value of money factor - BIO | G49: Factor | J49: =(1+$F48) ^ J47 -> 1 | K49: 1.122016155 | L49: 1.090182817 | M49: 1.05925264 | N49: 1.0292 | O49: 1 | P49: 1
D51: Wage totex overfunded/unfunded at PR19
E52: =E$45 -> Variance to forecast totex for wage adjustment- BIO | F52: 0 | G52: £m | H52: -3.47631016 | I52: 0 | J52: 0 | K52: 0.3116926121 | L52: -0.2330111452 | M52: -0.9935045807 | N52: -1.375778418 | O52: -1.185708628 | P52: 0
E53: =E49 -> Time value of money factor - BIO | F53: 0 | G53: Factor | H53: 0 | I53: 0 | J53: 1 | K53: 1.122016155 | L53: 1.090182817 | M53: 1.05925264 | N53: 1.0292 | O53: 1 | P53: 1
E54: Variance to forecast totex for wage adjustment - NPV adjusted - BIO | G54: £m | H54: =SUM(J54:P54) -> -3.558332727 | J54: =J52*J53 -> 0 | K54: 0.3497241463 | L54: -0.2540247466 | M54: -1.05237235 | N54: -1.415951148 | O54: -1.185708628 | P54: 0
E55: Total adjustment for wage related totex - BIO - Real | F55: =H54 -> -3.558332727 | G55: £m
C58: Performance related pay recovery mechanism adjustment
E60: =InpActive!E$170 -> Performance related pay recovery mechanism adjustment - BIO - Nominal (Neg) | F60: =InpActive!F$170 -> 0 | G60: =InpActive!G$170 -> £m | H60: =InpActive!H$170 -> 0 | I60: =InpActive!I$170 -> 0 | J60: =InpActive!J$170 -> 0 | K60: =InpActive!K$170 -> 0 | L60: =InpActive!L$170 -> 0 | M60: =InpActive!M$170 -> 0 | N60: =InpActive!N$170 -> 0 | O60: =InpActive!O$170 -> 0 | P60: =InpActive!P$170 -> 0
E61: =Index!E$43 -> CPI(H): Fin year average - inflate from base year 2017-18 average - CALC | F61: =Index!F$43 -> 0 | G61: =Index!G$43 -> % | H61: =Index!H$43 -> 0 | I61: =Index!I$43 -> 0 | J61: =Index!J$43 -> 1.038621462 | K61: =Index!K$43 -> 1.04693747 | L61: =Index!L$43 -> 1.085399008 | M61: =Index!M$43 -> 1.180633296 | N61: =Index!N$43 -> 1.246121862 | O61: =Index!O$43 -> 1.286182632 | P61: =Index!P$43 -> 1.328090069
E62: Performance related pay recovery mechanism adjustment - BIO - real | G62: £m | H62: =SUM(K62:O62) -> 0 | J62: =J60 / J61 -> 0 | K62: =K60 / K61 -> 0 | L62: =L60 / L61 -> 0 | M62: 0 | N62: 0 | O62: 0 | P62: 0
E63: Total Performance related pay recovery mechanism adjustment - BIO - real | F63: =H62 -> 0 | G63: £m
C65: CMA exclusions
E67: =InpActive!E$165 -> Actuals for CMA excluded items - BIO - nominal | F67: =InpActive!F$165 -> 0 | G67: =InpActive!G$165 -> £m | H67: =InpActive!H$165 -> 0 | I67: =InpActive!I$165 -> 0 | J67: =InpActive!J$165 -> 0 | K67: =InpActive!K$165 -> 0 | L67: =InpActive!L$165 -> 0 | M67: =InpActive!M$165 -> 0 | N67: =InpActive!N$165 -> 0 | O67: =InpActive!O$165 -> 0 | P67: =InpActive!P$165 -> 0
E68: =Index!E$43 -> CPI(H): Fin year average - inflate from base year 2017-18 average - CALC | F68: =Index!F$43 -> 0 | G68: =Index!G$43 -> % | H68: =Index!H$43 -> 0 | I68: =Index!I$43 -> 0 | J68: =Index!J$43 -> 1.038621462 | K68: =Index!K$43 -> 1.04693747 | L68: =Index!L$43 -> 1.085399008 | M68: =Index!M$43 -> 1.180633296 | N68: =Index!N$43 -> 1.246121862 | O68: =Index!O$43 -> 1.286182632 | P68: =Index!P$43 -> 1.328090069
E69: Actuals for CMA excluded items - BIO - real | G69: £m | J69: =J67 / J68 -> 0 | K69: =K67 / K68 -> 0 | L69: =L67 / L68 -> 0 | M69: 0 | N69: 0 | O69: 0 | P69: 0
E71: =InpActive!E$166 -> Allowance for CMA excluded items - BIO - real | F71: =InpActive!F$166 -> 0 | G71: =InpActive!G$166 -> £m | H71: =InpActive!H$166 -> 0 | I71: =InpActive!I$166 -> 0 | J71: =InpActive!J$166 -> 0 | K71: =InpActive!K$166 -> 0 | L71: =InpActive!L$166 -> 0 | M71: =InpActive!M$166 -> 0 | N71: =InpActive!N$166 -> 0 | O71: =InpActive!O$166 -> 0 | P71: =InpActive!P$166 -> 0
E72: =E69 -> Actuals for CMA excluded items - BIO - real | F72: =F69 -> 0 | G72: £m | H72: 0 | I72: 0 | J72: 0 | K72: =K69 -> 0 | L72: =L69 -> 0 | M72: 0 | N72: 0 | O72: 0 | P72: 0
E73: Variance to allowances for CMA excluded items - BIO | G73: £m | H73: =SUM(J73:P73) -> 0 | J73: =J72-J71 -> 0 | K73: =K72-K71 -> 0 | L73: =L72-L71 -> 0 | M73: 0 | N73: 0 | O73: 0 | P73: 0
E75: =E$73 -> Variance to allowances for CMA excluded items - BIO | F75: =F$73 -> 0 | G75: £m | H75: 0 | I75: 0 | J75: 0 | K75: =K$73 -> 0 | L75: 0 | M75: 0 | N75: 0 | O75: 0 | P75: 0
E76: =E$49 -> Time value of money factor - BIO | F76: =F$49 -> 0 | G76: Factor | H76: 0 | I76: 0 | J76: 1 | K76: 1.122016155 | L76: 1.090182817 | M76: 1.05925264 | N76: 1.0292 | O76: 1 | P76: 1
E77: Time value adjusted variance to allowances for CMA excluded items - BIO - real | G77: £m | H77: =SUM(J77:P77) -> 0 | J77: =J75 * J76 -> 0 | K77: =K75 * K76 -> 0 | L77: 0 | M77: 0 | N77: 0 | O77: 0 | P77: 0
E78: Total variance to allowances for CMA excluded items - BIO - real | F78: =$H77 -> 0 | G78: £m
E80: =E78 -> Total variance to allowances for CMA excluded items - BIO - real | F80: =F78 -> 0 | G80: =G78 -> £m
E81: =InpActive!E167 -> CMA excluded items sharing rate - BIO - real | F81: =InpActive!F167 -> 0 | G81: =InpActive!G167 -> %
E82: Allowable adjustment for CMA excluded items - BIO - Real | F82: =(F80* F81) -> 0 | G82: £m
E84: =E55 -> Total adjustment for wage related totex - BIO - Real | F84: =F55 -> -3.558332727 | G84: =G55 -> £m
E85: =E82 -> Allowable adjustment for CMA excluded items - BIO - Real | F85: =F82 -> 0 | G85: £m
E86: =E63 -> Total Performance related pay recovery mechanism adjustment - BIO - real | F86: 0 | G86: £m
E87: Total adjustment for cost sharing - BIO - Real | F87: =SUM(F84:F85) + F86 -> -3.558332727 | G87: £m
E89: =E87 -> Total adjustment for cost sharing - BIO - Real | F89: =F87 -> -3.558332727 | G89: £m
E90: =InpActive!E162 -> Weighted average PAYG rate - BIO | F90: =InpActive!F162 -> 0.385 | G90: =InpActive!G162 -> %
E91: Cost sharing Revenue adjustment - BIO - Real | F91: =F90 * F89 -> -1.3699581 | G91: £m
E93: =E87 -> Total adjustment for cost sharing - BIO - Real | F93: =F87 -> -3.558332727 | G93: =G87 -> £m
E94: =InpActive!E162 -> Weighted average PAYG rate - BIO | F94: =InpActive!F162 -> 0.385 | G94: =InpActive!G162 -> %
E95: Cost sharing RCV adjustment - BIO - Real | F95: =F93 * (1 - F94) -> -2.188374627 | G95: £m
A100: END OF SHEET

Sheet Thames Tideway Tunnel
A1: =RIGHT(CELL("filename", $A$1), LEN(CELL("filename", $A$1)) - SEARCH("]", CELL("filename", $A$1))) -> 
E2: =Time!E$22 -> Model Period BEG | J2: =Time!J$22 -> 2019-04-01 | K2: =Time!K$22 -> 2020-04-01 | L2: =Time!L$22 -> 2021-04-01 | M2: =Time!M$22 -> 2022-04-01 | N2: =Time!N$22 -> 2023-04-01 | O2: =Time!O$22 -> 2024-04-01 | P2: =Time!P$22 -> 2025-04-01
E3: =Time!E$23 -> Model Period END | F3: =Check!F$8 -> 0 | G3: Error chks | J3: =Time!J$23 -> 2020-03-31 | K3: =Time!K$23 -> 2021-03-31 | L3: =Time!L$23 -> 2022-03-31 | M3: =Time!M$23 -> 2023-03-31 | N3: =Time!N$23 -> 2024-03-31 | O3: =Time!O$23 -> 2025-03-31 | P3: =Time!P$23 -> 2026-03-31
E4: =Time!E$59 -> Pre Forecast vs Forecast | J4: =Time!J$59 -> Pre Fcst | K4: =Time!K$59 -> Forecast | L4: =Time!L$59 -> Forecast | M4: =Time!M$59 -> Forecast | N4: =Time!N$59 -> Forecast | O4: =Time!O$59 -> Forecast | P4: =Time!P$59 -> Post-Fcst
E5: =Time!E$101 -> Financial Year Ending | J5: =Time!J$101 -> 2020 | K5: =Time!K$101 -> 2021 | L5: =Time!L$101 -> 2022 | M5: =Time!M$101 -> 2023 | N5: =Time!N$101 -> 2024 | O5: =Time!O$101 -> 2025 | P5: =Time!P$101 -> 2026
E6: =Time!E$11 -> Model column counter | F6: Constant | G6: Unit | H6: Total | J6: =Time!J$11 -> 1 | K6: =Time!K$11 -> 2 | L6: =Time!L$11 -> 3 | M6: =Time!M$11 -> 4 | N6: =Time!N$11 -> 5 | O6: =Time!O$11 -> 6 | P6: =Time!P$11 -> 7
A8: THAMES TIDEWAY TUNNEL
C10: Adjustment For Wage Growth
D12: Profile for totex for wage adjustment
E13: =InpActive!E$177 -> Opex Split Profile - Base costs - TTT | F13: =InpActive!F$177 -> 0 | G13: =InpActive!G$177 -> % | H13: =InpActive!H$177 -> 0 | I13: =InpActive!I$177 -> 0 | J13: =InpActive!J$177 -> 0 | K13: =InpActive!K$177 -> 0 | L13: =InpActive!L$177 -> 0 | M13: =InpActive!M$177 -> 0 | N13: =InpActive!N$177 -> 0 | O13: =InpActive!O$177 -> 0 | P13: =InpActive!P$177 -> 0
E14: =InpActive!E$178 -> Capex Split Profile - Base costs - TTT | F14: =InpActive!F$178 -> 0 | G14: =InpActive!G$178 -> % | H14: =InpActive!H$178 -> 0 | I14: =InpActive!I$178 -> 0 | J14: =InpActive!J$178 -> 0 | K14: =InpActive!K$178 -> 0 | L14: =InpActive!L$178 -> 0 | M14: =InpActive!M$178 -> 0 | N14: =InpActive!N$178 -> 0 | O14: =InpActive!O$178 -> 0 | P14: =InpActive!P$178 -> 0
E15: Totex profile - TTT | G15: % | H15: =SUM(J15:P15) -> 0 | J15: =SUM(J13:J14) -> 0 | K15: 0 | L15: 0 | M15: 0 | N15: 0 | O15: 0 | P15: 0
E16: Totex profile - 5 year percentage - TTT | F16: =H15 -> 0 | G16: %
E18: =E$16 -> Totex profile - 5 year percentage - TTT | F18: =F$16 -> 0 | G18: =G$16 -> %
E19: TTT Totex profile 100% check | F19: =IF(OR($F$18 = 1, F18 = 0), 0, 1) -> 0 | G19: Check
E21: =InpActive!E$175 -> Base Costs - TTT - Real | F21: =InpActive!F$175 -> 0 | G21: =InpActive!G$175 -> £m
E22: =Time!E$54 -> Forecast Period Flag | F22: =Time!F$54 -> 0 | G22: =Time!G$54 -> flag | H22: =Time!H$54 -> 5 | I22: =Time!I$54 -> 0 | J22: =Time!J$54 -> 0 | K22: =Time!K$54 -> 1 | L22: =Time!L$54 -> 1 | M22: =Time!M$54 -> 1 | N22: =Time!N$54 -> 1 | O22: =Time!O$54 -> 1 | P22: =Time!P$54 -> 0
E23: =E$15 -> Totex profile - TTT | F23: 0 | G23: % | H23: 0 | I23: 0 | J23: 0 | K23: 0 | L23: 0 | M23: 0 | N23: 0 | O23: 0 | P23: 0
E24: Profiled Totex available for wage indexation adjustment - TTT - Real | G24: £m | H24: =SUM(J24:P24) -> 0 | J24: =IF(J22 = 1, J23 * $F21, 0) -> 0 | K24: 0 | L24: 0 | M24: 0 | N24: 0 | O24: 0 | P24: 0
D26: Totex applicable for wage adjustment by year
E27: =InpActive!E261 -> Percentage totex linked to wage growth - TTT | F27: =InpActive!F261 -> 0.386 | G27: =InpActive!G261 -> %
E28: =E24 -> Profiled Totex available for wage indexation adjustment - TTT - Real | F28: 0 | G28: £m | H28: 0 | I28: 0 | J28: 0 | K28: 0 | L28: 0 | M28: 0 | N28: 0 | O28: 0 | P28: 0
E29: Profiled Net totex available for wage adj - TTT - Real | G29: £m | H29: =SUM(J29:P29) -> 0 | J29: =J28 * $F27 -> 0 | K29: 0 | L29: 0 | M29: 0 | N29: 0 | O29: 0 | P29: 0
D31: Adjustment factor for wage linked totex
E32: =Time!E$54 -> Forecast Period Flag | F32: =Time!F$54 -> 0 | G32: =Time!G$54 -> flag | H32: =Time!H$54 -> 5 | I32: =Time!I$54 -> 0 | J32: =Time!J$54 -> 0 | K32: =Time!K$54 -> 1 | L32: =Time!L$54 -> 1 | M32: =Time!M$54 -> 1 | N32: =Time!N$54 -> 1 | O32: =Time!O$54 -> 1 | P32: =Time!P$54 -> 0
E33: =E$29 -> Profiled Net totex available for wage adj - TTT - Real | F33: 0 | G33: £m | H33: 0 | I33: 0 | J33: 0 | K33: 0 | L33: 0 | M33: 0 | N33: 0 | O33: 0 | P33: 0
E34: ='Cost sharing calculations'!E26 -> Real adjustment factor for wages | F34: ='Cost sharing calculations'!F26 -> 0 | G34: ='Cost sharing calculations'!G26 -> % | H34: ='Cost sharing calculations'!H26 -> 0 | I34: ='Cost sharing calculations'!I26 -> 0 | J34: ='Cost sharing calculations'!J26 -> 0 | K34: ='Cost sharing calculations'!K26 -> 1.008871737 | L34: ='Cost sharing calculations'!L26 -> 0.9954600068 | M34: ='Cost sharing calculations'!M26 -> 0.9810824548 | N34: ='Cost sharing calculations'!N26 -> 0.970281077 | O34: ='Cost sharing calculations'!O26 -> 0.970281077 | P34: ='Cost sharing calculations'!P26 -> 0
E35: Profiled adjustment wage related totex - TTT - Real | G35: £m | H35: =SUM(J35:P35) -> 0 | J35: =IF(J32 = 1, J33 * J34, 0) -> 0 | K35: 0 | L35: 0 | M35: 0 | N35: 0 | O35: 0 | P35: 0
D37: Variance to forecast wage linked totex
E38: =E$35 -> Profiled adjustment wage related totex - TTT - Real | F38: 0 | G38: £m | H38: 0 | I38: 0 | J38: 0 | K38: 0 | L38: 0 | M38: 0 | N38: 0 | O38: 0 | P38: 0
E39: =E$29 -> Profiled Net totex available for wage adj - TTT - Real | F39: 0 | G39: £m | H39: 0 | I39: 0 | J39: 0 | K39: 0 | L39: 0 | M39: 0 | N39: 0 | O39: 0 | P39: 0
E40: Variance to forecast totex for wage adjustment - TTT | G40: £m | H40: =SUM(J40:P40) -> 0 | J40: =J38 - J39 -> 0 | K40: 0 | L40: 0 | M40: 0 | N40: 0 | O40: 0 | P40: 0
D42: Wage totex overfunded/unfunded at PR19
